Workbook

Sheet Veröffentl
A1: Veröffentlichungspflichtige Lastgänge mit Arbeit und Höchstleistung
A2: Verordnung | B2: StromNZV | C2: EnWG | F2: EnWG | H2: EnWG | I2: EnWG | L2: EnWG
B3: §12 | C3: § 23c | F3: § 23c | H3: § 23c | I3: § 23c | L3: § 23c
B4: Abs. 3 | C4: Abs. 3 | F4: Abs. 3 | H4: Abs. 3 | I4: Abs. 3 | L4: Abs. 3
B5: Satz 3 | C5: Nr. 1 | F5: Nr. 3 | H5: Nr. 4 | I5: Nr. 5 | L5: Nr. 6
A6: Lastgang | B6: Ergebnis der Differenz-bilanzierung | C6: Entnahmen der Ebenen | F6: Summenlast der nicht leistungs-gemessenen Kunden | G6: Summenlast der Netzverluste | H6: Summenlast der Fahrplan-prognosen aller Lastprofil-kunden | I6: Entnahme aus der vorgelagerten Netz- oder Umspannebene | L6: Summe aller dezentralen Einspeisungen
A7: Netz- oder Umspannebenen | C7: MS | D7: Umsg. MS/NS | E7: NS | I7: MS | J7: Umsg. MS/NS | K7: NS | L7: MS | M7: Umsg. MS/NS | N7: NS
A8: Arbeit des Lastganges [kWh] | B8: =ROUND([1]Lastfluss!CJ10,0) -> 0 | C8: =ROUND([1]Lastfluss!AW10,0) -> 19,165,387 | D8: =ROUND([1]Lastfluss!BO10,0) -> 23,156,397 | E8: =ROUND([1]Lastfluss!CD10,0) -> 22,510,790 | F8: =ROUND([1]Lastfluss!CH10,0) -> 18,848,317 | G8: =ROUND([1]Lastfluss!B10,0) -> 1,712,562 | H8: =ROUND([1]Lastfluss!CI10,0) -> 18,848,317 | I8: =ROUND([1]Lastfluss!AL10,0) -> 8,371,867 | J8: =ROUND([1]Lastfluss!BD10,0) -> 14,409,011 | K8: =ROUND([1]Lastfluss!BV10,0) -> 21,051,926 | L8: =ROUND([1]Lastfluss!AU10,0) -> 13,165,496 | M8: =ROUND([1]Lastfluss!BM10,0) -> 9,842,625 | N8: =ROUND([1]Lastfluss!CA10,0) -> 2,398,206
A9: Höchstleistung [kW] | B9: =ROUND([1]Lastfluss!CJ12,0) -> 295 | C9: =ROUND([1]Lastfluss!AW12,0) -> 5,639 | D9: =ROUND([1]Lastfluss!BO12,0) -> 4,877 | E9: =ROUND([1]Lastfluss!CD12,0) -> 4,565 | F9: =ROUND([1]Lastfluss!CH12,0) -> 4,313 | G9: =ROUND([1]Lastfluss!B12,0) -> 418 | H9: =ROUND([1]Lastfluss!CI12,0) -> 4,197 | I9: =ROUND([1]Lastfluss!AL12,0) -> 4,668 | J9: =ROUND([1]Lastfluss!BD12,0) -> 4,626 | K9: =ROUND([1]Lastfluss!BV12,0) -> 4,714 | L9: =ROUND([1]Lastfluss!AU12,0) -> 4,878 | M9: =ROUND([1]Lastfluss!BM12,0) -> 4,428 | N9: =ROUND([1]Lastfluss!CA12,0) -> 1,851
A11: =[1]Lastfluss!A27 -> 2021-01-01T00:15:00 | B11: =ROUND([1]Lastfluss!CJ27,1) -> -19 | C11: =ROUND([1]Lastfluss!AW27,1) -> 2,874 | D11: =ROUND([1]Lastfluss!BO27,1) -> 2,438 | E11: =ROUND([1]Lastfluss!CD27,1) -> 2,280 | F11: =ROUND([1]Lastfluss!CH27,1) -> 2,101 | G11: =ROUND([1]Lastfluss!B27,1) -> 175 | H11: =ROUND([1]Lastfluss!CI27,1) -> 2,120 | I11: =ROUND([1]Lastfluss!AL27,1) -> 911 | J11: =ROUND([1]Lastfluss!BD27,1) -> 2,482 | K11: =ROUND([1]Lastfluss!BV27,1) -> 2,300 | L11: =ROUND([1]Lastfluss!AU27,1) -> 2,008 | M11: =ROUND([1]Lastfluss!BM27,1) -> 0 | N11: =ROUND([1]Lastfluss!CA27,1) -> 67
A12: =[1]Lastfluss!A28 -> 2021-01-01T00:30:00 | B12: =ROUND([1]Lastfluss!CJ28,1) -> -18 | C12: =ROUND([1]Lastfluss!AW28,1) -> 2,846 | D12: =ROUND([1]Lastfluss!BO28,1) -> 2,471 | E12: =ROUND([1]Lastfluss!CD28,1) -> 2,309 | F12: =ROUND([1]Lastfluss!CH28,1) -> 2,128 | G12: =ROUND([1]Lastfluss!B28,1) -> 176 | H12: =ROUND([1]Lastfluss!CI28,1) -> 2,146 | I12: =ROUND([1]Lastfluss!AL28,1) -> 871 | J12: =ROUND([1]Lastfluss!BD28,1) -> 2,514 | K12: =ROUND([1]Lastfluss!BV28,1) -> 2,330 | L12: =ROUND([1]Lastfluss!AU28,1) -> 2,019 | M12: =ROUND([1]Lastfluss!BM28,1) -> 0 | N12: =ROUND([1]Lastfluss!CA28,1) -> 67
A13: =[1]Lastfluss!A29 -> 2021-01-01T00:45:00 | B13: =ROUND([1]Lastfluss!CJ29,1) -> -19 | C13: =ROUND([1]Lastfluss!AW29,1) -> 2,814 | D13: =ROUND([1]Lastfluss!BO29,1) -> 2,407 | E13: =ROUND([1]Lastfluss!CD29,1) -> 2,249 | F13: =ROUND([1]Lastfluss!CH29,1) -> 2,066 | G13: =ROUND([1]Lastfluss!B29,1) -> 172 | H13: =ROUND([1]Lastfluss!CI29,1) -> 2,085 | I13: =ROUND([1]Lastfluss!AL29,1) -> 834 | J13: =ROUND([1]Lastfluss!BD29,1) -> 2,450 | K13: =ROUND([1]Lastfluss!BV29,1) -> 2,267 | L13: =ROUND([1]Lastfluss!AU29,1) -> 2,023 | M13: =ROUND([1]Lastfluss!BM29,1) -> 0 | N13: =ROUND([1]Lastfluss!CA29,1) -> 68
A14: =[1]Lastfluss!A30 -> 2021-01-01T01:00:00 | B14: =ROUND([1]Lastfluss!CJ30,1) -> -19 | C14: =ROUND([1]Lastfluss!AW30,1) -> 2,790 | D14: =ROUND([1]Lastfluss!BO30,1) -> 2,367 | E14: =ROUND([1]Lastfluss!CD30,1) -> 2,210 | F14: =ROUND([1]Lastfluss!CH30,1) -> 2,033 | G14: =ROUND([1]Lastfluss!B30,1) -> 170 | H14: =ROUND([1]Lastfluss!CI30,1) -> 2,052 | I14: =ROUND([1]Lastfluss!AL30,1) -> 810 | J14: =ROUND([1]Lastfluss!BD30,1) -> 2,410 | K14: =ROUND([1]Lastfluss!BV30,1) -> 2,227 | L14: =ROUND([1]Lastfluss!AU30,1) -> 2,023 | M14: =ROUND([1]Lastfluss!BM30,1) -> 0 | N14: =ROUND([1]Lastfluss!CA30,1) -> 67
A15: =[1]Lastfluss!A31 -> 2021-01-01T01:15:00 | B15: =ROUND([1]Lastfluss!CJ31,1) -> -19 | C15: =ROUND([1]Lastfluss!AW31,1) -> 2,743 | D15: =ROUND([1]Lastfluss!BO31,1) -> 2,308 | E15: =ROUND([1]Lastfluss!CD31,1) -> 2,146 | F15: =ROUND([1]Lastfluss!CH31,1) -> 1,966 | G15: =ROUND([1]Lastfluss!B31,1) -> 166 | H15: =ROUND([1]Lastfluss!CI31,1) -> 1,985 | I15: =ROUND([1]Lastfluss!AL31,1) -> 774 | J15: =ROUND([1]Lastfluss!BD31,1) -> 2,351 | K15: =ROUND([1]Lastfluss!BV31,1) -> 2,163 | L15: =ROUND([1]Lastfluss!AU31,1) -> 2,011 | M15: =ROUND([1]Lastfluss!BM31,1) -> 0 | N15: =ROUND([1]Lastfluss!CA31,1) -> 65
A16: =[1]Lastfluss!A32 -> 2021-01-01T01:30:00 | B16: =ROUND([1]Lastfluss!CJ32,1) -> -43 | C16: =ROUND([1]Lastfluss!AW32,1) -> 1,385 | D16: =ROUND([1]Lastfluss!BO32,1) -> 2,326 | E16: =ROUND([1]Lastfluss!CD32,1) -> 2,171 | F16: =ROUND([1]Lastfluss!CH32,1) -> 1,994 | G16: =ROUND([1]Lastfluss!B32,1) -> 162 | H16: =ROUND([1]Lastfluss!CI32,1) -> 2,036 | I16: =ROUND([1]Lastfluss!AL32,1) -> 0 | J16: =ROUND([1]Lastfluss!BD32,1) -> 1,018 | K16: =ROUND([1]Lastfluss!BV32,1) -> 2,187 | L16: =ROUND([1]Lastfluss!AU32,1) -> 2,008 | M16: =ROUND([1]Lastfluss!BM32,1) -> 1,351 | N16: =ROUND([1]Lastfluss!CA32,1) -> 67
A17: =[1]Lastfluss!A33 -> 2021-01-01T01:45:00 | B17: =ROUND([1]Lastfluss!CJ33,1) -> -38 | C17: =ROUND([1]Lastfluss!AW33,1) -> 1,556 | D17: =ROUND([1]Lastfluss!BO33,1) -> 2,227 | E17: =ROUND([1]Lastfluss!CD33,1) -> 2,070 | F17: =ROUND([1]Lastfluss!CH33,1) -> 1,890 | G17: =ROUND([1]Lastfluss!B33,1) -> 154 | H17: =ROUND([1]Lastfluss!CI33,1) -> 1,928 | I17: =ROUND([1]Lastfluss!AL33,1) -> 0 | J17: =ROUND([1]Lastfluss!BD33,1) -> 1,160 | K17: =ROUND([1]Lastfluss!BV33,1) -> 2,082 | L17: =ROUND([1]Lastfluss!AU33,1) -> 2,000 | M17: =ROUND([1]Lastfluss!BM33,1) -> 1,108 | N17: =ROUND([1]Lastfluss!CA33,1) -> 66
A18: =[1]Lastfluss!A34 -> 2021-01-01T02:00:00 | B18: =ROUND([1]Lastfluss!CJ34,1) -> -37 | C18: =ROUND([1]Lastfluss!AW34,1) -> 1,556 | D18: =ROUND([1]Lastfluss!BO34,1) -> 2,213 | E18: =ROUND([1]Lastfluss!CD34,1) -> 2,062 | F18: =ROUND([1]Lastfluss!CH34,1) -> 1,884 | G18: =ROUND([1]Lastfluss!B34,1) -> 153 | H18: =ROUND([1]Lastfluss!CI34,1) -> 1,921 | I18: =ROUND([1]Lastfluss!AL34,1) -> 0 | J18: =ROUND([1]Lastfluss!BD34,1) -> 1,156 | K18: =ROUND([1]Lastfluss!BV34,1) -> 2,073 | L18: =ROUND([1]Lastfluss!AU34,1) -> 1,994 | M18: =ROUND([1]Lastfluss!BM34,1) -> 1,099 | N18: =ROUND([1]Lastfluss!CA34,1) -> 67
A19: =[1]Lastfluss!A35 -> 2021-01-01T02:15:00 | B19: =ROUND([1]Lastfluss!CJ35,1) -> -81 | C19: =ROUND([1]Lastfluss!AW35,1) -> 397 | D19: =ROUND([1]Lastfluss!BO35,1) -> 2,217 | E19: =ROUND([1]Lastfluss!CD35,1) -> 2,065 | F19: =ROUND([1]Lastfluss!CH35,1) -> 1,873 | G19: =ROUND([1]Lastfluss!B35,1) -> 208 | H19: =ROUND([1]Lastfluss!CI35,1) -> 1,953 | I19: =ROUND([1]Lastfluss!AL35,1) -> 0 | J19: =ROUND([1]Lastfluss!BD35,1) -> 0 | K19: =ROUND([1]Lastfluss!BV35,1) -> 2,077 | L19: =ROUND([1]Lastfluss!AU35,1) -> 2,571 | M19: =ROUND([1]Lastfluss!BM35,1) -> 2,831 | N19: =ROUND([1]Lastfluss!CA35,1) -> 67
A20: =[1]Lastfluss!A36 -> 2021-01-01T02:30:00 | B20: =ROUND([1]Lastfluss!CJ36,1) -> -87 | C20: =ROUND([1]Lastfluss!AW36,1) -> 393 | D20: =ROUND([1]Lastfluss!BO36,1) -> 2,123 | E20: =ROUND([1]Lastfluss!CD36,1) -> 1,982 | F20: =ROUND([1]Lastfluss!CH36,1) -> 1,779 | G20: =ROUND([1]Lastfluss!B36,1) -> 218 | H20: =ROUND([1]Lastfluss!CI36,1) -> 1,866 | I20: =ROUND([1]Lastfluss!AL36,1) -> 0 | J20: =ROUND([1]Lastfluss!BD36,1) -> 0 | K20: =ROUND([1]Lastfluss!BV36,1) -> 1,990 | L20: =ROUND([1]Lastfluss!AU36,1) -> 2,825 | M20: =ROUND([1]Lastfluss!BM36,1) -> 2,998 | N20: =ROUND([1]Lastfluss!CA36,1) -> 66
A21: =[1]Lastfluss!A37 -> 2021-01-01T02:45:00 | B21: =ROUND([1]Lastfluss!CJ37,1) -> -80 | C21: =ROUND([1]Lastfluss!AW37,1) -> 353 | D21: =ROUND([1]Lastfluss!BO37,1) -> 2,201 | E21: =ROUND([1]Lastfluss!CD37,1) -> 2,047 | F21: =ROUND([1]Lastfluss!CH37,1) -> 1,848 | G21: =ROUND([1]Lastfluss!B37,1) -> 203 | H21: =ROUND([1]Lastfluss!CI37,1) -> 1,927 | I21: =ROUND([1]Lastfluss!AL37,1) -> 0 | J21: =ROUND([1]Lastfluss!BD37,1) -> 0 | K21: =ROUND([1]Lastfluss!BV37,1) -> 2,057 | L21: =ROUND([1]Lastfluss!AU37,1) -> 2,447 | M21: =ROUND([1]Lastfluss!BM37,1) -> 2,692 | N21: =ROUND([1]Lastfluss!CA37,1) -> 67
A22: =[1]Lastfluss!A38 -> 2021-01-01T03:00:00 | B22: =ROUND([1]Lastfluss!CJ38,1) -> -87 | C22: =ROUND([1]Lastfluss!AW38,1) -> 409 | D22: =ROUND([1]Lastfluss!BO38,1) -> 2,121 | E22: =ROUND([1]Lastfluss!CD38,1) -> 1,973 | F22: =ROUND([1]Lastfluss!CH38,1) -> 1,776 | G22: =ROUND([1]Lastfluss!B38,1) -> 216 | H22: =ROUND([1]Lastfluss!CI38,1) -> 1,863 | I22: =ROUND([1]Lastfluss!AL38,1) -> 0 | J22: =ROUND([1]Lastfluss!BD38,1) -> 0 | K22: =ROUND([1]Lastfluss!BV38,1) -> 1,981 | L22: =ROUND([1]Lastfluss!AU38,1) -> 2,818 | M22: =ROUND([1]Lastfluss!BM38,1) -> 2,993 | N22: =ROUND([1]Lastfluss!CA38,1) -> 67
A23: =[1]Lastfluss!A39 -> 2021-01-01T03:15:00 | B23: =ROUND([1]Lastfluss!CJ39,1) -> -76 | C23: =ROUND([1]Lastfluss!AW39,1) -> 423 | D23: =ROUND([1]Lastfluss!BO39,1) -> 2,178 | E23: =ROUND([1]Lastfluss!CD39,1) -> 1,989 | F23: =ROUND([1]Lastfluss!CH39,1) -> 1,779 | G23: =ROUND([1]Lastfluss!B39,1) -> 195 | H23: =ROUND([1]Lastfluss!CI39,1) -> 1,855 | I23: =ROUND([1]Lastfluss!AL39,1) -> 0 | J23: =ROUND([1]Lastfluss!BD39,1) -> 0 | K23: =ROUND([1]Lastfluss!BV39,1) -> 1,997 | L23: =ROUND([1]Lastfluss!AU39,1) -> 2,383 | M23: =ROUND([1]Lastfluss!BM39,1) -> 2,612 | N23: =ROUND([1]Lastfluss!CA39,1) -> 67
A24: =[1]Lastfluss!A40 -> 2021-01-01T03:30:00 | B24: =ROUND([1]Lastfluss!CJ40,1) -> -33 | C24: =ROUND([1]Lastfluss!AW40,1) -> 1,621 | D24: =ROUND([1]Lastfluss!BO40,1) -> 2,162 | E24: =ROUND([1]Lastfluss!CD40,1) -> 1,973 | F24: =ROUND([1]Lastfluss!CH40,1) -> 1,778 | G24: =ROUND([1]Lastfluss!B40,1) -> 149 | H24: =ROUND([1]Lastfluss!CI40,1) -> 1,811 | I24: =ROUND([1]Lastfluss!AL40,1) -> 0 | J24: =ROUND([1]Lastfluss!BD40,1) -> 1,225 | K24: =ROUND([1]Lastfluss!BV40,1) -> 1,980 | L24: =ROUND([1]Lastfluss!AU40,1) -> 2,012 | M24: =ROUND([1]Lastfluss!BM40,1) -> 979 | N24: =ROUND([1]Lastfluss!CA40,1) -> 67
A25: =[1]Lastfluss!A41 -> 2021-01-01T03:45:00 | B25: =ROUND([1]Lastfluss!CJ41,1) -> -19 | C25: =ROUND([1]Lastfluss!AW41,1) -> 2,531 | D25: =ROUND([1]Lastfluss!BO41,1) -> 2,129 | E25: =ROUND([1]Lastfluss!CD41,1) -> 1,959 | F25: =ROUND([1]Lastfluss!CH41,1) -> 1,775 | G25: =ROUND([1]Lastfluss!B41,1) -> 152 | H25: =ROUND([1]Lastfluss!CI41,1) -> 1,795 | I25: =ROUND([1]Lastfluss!AL41,1) -> 553 | J25: =ROUND([1]Lastfluss!BD41,1) -> 2,171 | K25: =ROUND([1]Lastfluss!BV41,1) -> 1,965 | L25: =ROUND([1]Lastfluss!AU41,1) -> 2,014 | M25: =ROUND([1]Lastfluss!BM41,1) -> 0 | N25: =ROUND([1]Lastfluss!CA41,1) -> 67
A26: =[1]Lastfluss!A42 -> 2021-01-01T04:00:00 | B26: =ROUND([1]Lastfluss!CJ42,1) -> -19 | C26: =ROUND([1]Lastfluss!AW42,1) -> 2,489 | D26: =ROUND([1]Lastfluss!BO42,1) -> 2,047 | E26: =ROUND([1]Lastfluss!CD42,1) -> 1,882 | F26: =ROUND([1]Lastfluss!CH42,1) -> 1,701 | G26: =ROUND([1]Lastfluss!B42,1) -> 148 | H26: =ROUND([1]Lastfluss!CI42,1) -> 1,720 | I26: =ROUND([1]Lastfluss!AL42,1) -> 515 | J26: =ROUND([1]Lastfluss!BD42,1) -> 2,088 | K26: =ROUND([1]Lastfluss!BV42,1) -> 1,885 | L26: =ROUND([1]Lastfluss!AU42,1) -> 2,010 | M26: =ROUND([1]Lastfluss!BM42,1) -> 0 | N26: =ROUND([1]Lastfluss!CA42,1) -> 67
A27: =[1]Lastfluss!A43 -> 2021-01-01T04:15:00 | B27: =ROUND([1]Lastfluss!CJ43,1) -> -19 | C27: =ROUND([1]Lastfluss!AW43,1) -> 2,467 | D27: =ROUND([1]Lastfluss!BO43,1) -> 2,048 | E27: =ROUND([1]Lastfluss!CD43,1) -> 1,873 | F27: =ROUND([1]Lastfluss!CH43,1) -> 1,692 | G27: =ROUND([1]Lastfluss!B43,1) -> 147 | H27: =ROUND([1]Lastfluss!CI43,1) -> 1,712 | I27: =ROUND([1]Lastfluss!AL43,1) -> 493 | J27: =ROUND([1]Lastfluss!BD43,1) -> 2,089 | K27: =ROUND([1]Lastfluss!BV43,1) -> 1,876 | L27: =ROUND([1]Lastfluss!AU43,1) -> 2,009 | M27: =ROUND([1]Lastfluss!BM43,1) -> 0 | N27: =ROUND([1]Lastfluss!CA43,1) -> 67
A28: =[1]Lastfluss!A44 -> 2021-01-01T04:30:00 | B28: =ROUND([1]Lastfluss!CJ44,1) -> -19 | C28: =ROUND([1]Lastfluss!AW44,1) -> 2,396 | D28: =ROUND([1]Lastfluss!BO44,1) -> 2,028 | E28: =ROUND([1]Lastfluss!CD44,1) -> 1,859 | F28: =ROUND([1]Lastfluss!CH44,1) -> 1,679 | G28: =ROUND([1]Lastfluss!B44,1) -> 145 | H28: =ROUND([1]Lastfluss!CI44,1) -> 1,698 | I28: =ROUND([1]Lastfluss!AL44,1) -> 428 | J28: =ROUND([1]Lastfluss!BD44,1) -> 2,068 | K28: =ROUND([1]Lastfluss!BV44,1) -> 1,862 | L28: =ROUND([1]Lastfluss!AU44,1) -> 2,001 | M28: =ROUND([1]Lastfluss!BM44,1) -> 0 | N28: =ROUND([1]Lastfluss!CA44,1) -> 67
A29: =[1]Lastfluss!A45 -> 2021-01-01T04:45:00 | B29: =ROUND([1]Lastfluss!CJ45,1) -> -20 | C29: =ROUND([1]Lastfluss!AW45,1) -> 2,445 | D29: =ROUND([1]Lastfluss!BO45,1) -> 2,047 | E29: =ROUND([1]Lastfluss!CD45,1) -> 1,881 | F29: =ROUND([1]Lastfluss!CH45,1) -> 1,699 | G29: =ROUND([1]Lastfluss!B45,1) -> 147 | H29: =ROUND([1]Lastfluss!CI45,1) -> 1,718 | I29: =ROUND([1]Lastfluss!AL45,1) -> 485 | J29: =ROUND([1]Lastfluss!BD45,1) -> 2,088 | K29: =ROUND([1]Lastfluss!BV45,1) -> 1,884 | L29: =ROUND([1]Lastfluss!AU45,1) -> 1,995 | M29: =ROUND([1]Lastfluss!BM45,1) -> 0 | N29: =ROUND([1]Lastfluss!CA45,1) -> 67
A30: =[1]Lastfluss!A46 -> 2021-01-01T05:00:00 | B30: =ROUND([1]Lastfluss!CJ46,1) -> -20 | C30: =ROUND([1]Lastfluss!AW46,1) -> 2,478 | D30: =ROUND([1]Lastfluss!BO46,1) -> 2,021 | E30: =ROUND([1]Lastfluss!CD46,1) -> 1,851 | F30: =ROUND([1]Lastfluss!CH46,1) -> 1,673 | G30: =ROUND([1]Lastfluss!B46,1) -> 146 | H30: =ROUND([1]Lastfluss!CI46,1) -> 1,692 | I30: =ROUND([1]Lastfluss!AL46,1) -> 522 | J30: =ROUND([1]Lastfluss!BD46,1) -> 2,062 | K30: =ROUND([1]Lastfluss!BV46,1) -> 1,854 | L30: =ROUND([1]Lastfluss!AU46,1) -> 1,991 | M30: =ROUND([1]Lastfluss!BM46,1) -> 0 | N30: =ROUND([1]Lastfluss!CA46,1) -> 67
A31: =[1]Lastfluss!A47 -> 2021-01-01T05:15:00 | B31: =ROUND([1]Lastfluss!CJ47,1) -> -19 | C31: =ROUND([1]Lastfluss!AW47,1) -> 2,515 | D31: =ROUND([1]Lastfluss!BO47,1) -> 2,067 | E31: =ROUND([1]Lastfluss!CD47,1) -> 1,894 | F31: =ROUND([1]Lastfluss!CH47,1) -> 1,702 | G31: =ROUND([1]Lastfluss!B47,1) -> 149 | H31: =ROUND([1]Lastfluss!CI47,1) -> 1,721 | I31: =ROUND([1]Lastfluss!AL47,1) -> 560 | J31: =ROUND([1]Lastfluss!BD47,1) -> 2,108 | K31: =ROUND([1]Lastfluss!BV47,1) -> 1,899 | L31: =ROUND([1]Lastfluss!AU47,1) -> 1,991 | M31: =ROUND([1]Lastfluss!BM47,1) -> 0 | N31: =ROUND([1]Lastfluss!CA47,1) -> 67
A32: =[1]Lastfluss!A48 -> 2021-01-01T05:30:00 | B32: =ROUND([1]Lastfluss!CJ48,1) -> -19 | C32: =ROUND([1]Lastfluss!AW48,1) -> 2,520 | D32: =ROUND([1]Lastfluss!BO48,1) -> 2,073 | E32: =ROUND([1]Lastfluss!CD48,1) -> 1,905 | F32: =ROUND([1]Lastfluss!CH48,1) -> 1,696 | G32: =ROUND([1]Lastfluss!B48,1) -> 149 | H32: =ROUND([1]Lastfluss!CI48,1) -> 1,715 | I32: =ROUND([1]Lastfluss!AL48,1) -> 559 | J32: =ROUND([1]Lastfluss!BD48,1) -> 2,114 | K32: =ROUND([1]Lastfluss!BV48,1) -> 1,910 | L32: =ROUND([1]Lastfluss!AU48,1) -> 1,997 | M32: =ROUND([1]Lastfluss!BM48,1) -> 0 | N32: =ROUND([1]Lastfluss!CA48,1) -> 67
A33: =[1]Lastfluss!A49 -> 2021-01-01T05:45:00 | B33: =ROUND([1]Lastfluss!CJ49,1) -> -18 | C33: =ROUND([1]Lastfluss!AW49,1) -> 2,552 | D33: =ROUND([1]Lastfluss!BO49,1) -> 2,059 | E33: =ROUND([1]Lastfluss!CD49,1) -> 1,895 | F33: =ROUND([1]Lastfluss!CH49,1) -> 1,686 | G33: =ROUND([1]Lastfluss!B49,1) -> 150 | H33: =ROUND([1]Lastfluss!CI49,1) -> 1,704 | I33: =ROUND([1]Lastfluss!AL49,1) -> 589 | J33: =ROUND([1]Lastfluss!BD49,1) -> 2,100 | K33: =ROUND([1]Lastfluss!BV49,1) -> 1,900 | L33: =ROUND([1]Lastfluss!AU49,1) -> 2,000 | M33: =ROUND([1]Lastfluss!BM49,1) -> 0 | N33: =ROUND([1]Lastfluss!CA49,1) -> 67
A34: =[1]Lastfluss!A50 -> 2021-01-01T06:00:00 | B34: =ROUND([1]Lastfluss!CJ50,1) -> -19 | C34: =ROUND([1]Lastfluss!AW50,1) -> 2,537 | D34: =ROUND([1]Lastfluss!BO50,1) -> 1,997 | E34: =ROUND([1]Lastfluss!CD50,1) -> 1,835 | F34: =ROUND([1]Lastfluss!CH50,1) -> 1,615 | G34: =ROUND([1]Lastfluss!B50,1) -> 147 | H34: =ROUND([1]Lastfluss!CI50,1) -> 1,633 | I34: =ROUND([1]Lastfluss!AL50,1) -> 572 | J34: =ROUND([1]Lastfluss!BD50,1) -> 2,038 | K34: =ROUND([1]Lastfluss!BV50,1) -> 1,837 | L34: =ROUND([1]Lastfluss!AU50,1) -> 2,001 | M34: =ROUND([1]Lastfluss!BM50,1) -> 0 | N34: =ROUND([1]Lastfluss!CA50,1) -> 67
A35: =[1]Lastfluss!A51 -> 2021-01-01T06:15:00 | B35: =ROUND([1]Lastfluss!CJ51,1) -> -19 | C35: =ROUND([1]Lastfluss!AW51,1) -> 2,578 | D35: =ROUND([1]Lastfluss!BO51,1) -> 2,003 | E35: =ROUND([1]Lastfluss!CD51,1) -> 1,843 | F35: =ROUND([1]Lastfluss!CH51,1) -> 1,615 | G35: =ROUND([1]Lastfluss!B51,1) -> 148 | H35: =ROUND([1]Lastfluss!CI51,1) -> 1,634 | I35: =ROUND([1]Lastfluss!AL51,1) -> 604 | J35: =ROUND([1]Lastfluss!BD51,1) -> 2,044 | K35: =ROUND([1]Lastfluss!BV51,1) -> 1,846 | L35: =ROUND([1]Lastfluss!AU51,1) -> 2,012 | M35: =ROUND([1]Lastfluss!BM51,1) -> 0 | N35: =ROUND([1]Lastfluss!CA51,1) -> 67
A36: =[1]Lastfluss!A52 -> 2021-01-01T06:30:00 | B36: =ROUND([1]Lastfluss!CJ52,1) -> -19 | C36: =ROUND([1]Lastfluss!AW52,1) -> 2,559 | D36: =ROUND([1]Lastfluss!BO52,1) -> 2,019 | E36: =ROUND([1]Lastfluss!CD52,1) -> 1,863 | F36: =ROUND([1]Lastfluss!CH52,1) -> 1,645 | G36: =ROUND([1]Lastfluss!B52,1) -> 148 | H36: =ROUND([1]Lastfluss!CI52,1) -> 1,663 | I36: =ROUND([1]Lastfluss!AL52,1) -> 616 | J36: =ROUND([1]Lastfluss!BD52,1) -> 2,060 | K36: =ROUND([1]Lastfluss!BV52,1) -> 1,865 | L36: =ROUND([1]Lastfluss!AU52,1) -> 1,981 | M36: =ROUND([1]Lastfluss!BM52,1) -> 0 | N36: =ROUND([1]Lastfluss!CA52,1) -> 67
A37: =[1]Lastfluss!A53 -> 2021-01-01T06:45:00 | B37: =ROUND([1]Lastfluss!CJ53,1) -> -19 | C37: =ROUND([1]Lastfluss!AW53,1) -> 2,530 | D37: =ROUND([1]Lastfluss!BO53,1) -> 1,991 | E37: =ROUND([1]Lastfluss!CD53,1) -> 1,834 | F37: =ROUND([1]Lastfluss!CH53,1) -> 1,623 | G37: =ROUND([1]Lastfluss!B53,1) -> 146 | H37: =ROUND([1]Lastfluss!CI53,1) -> 1,642 | I37: =ROUND([1]Lastfluss!AL53,1) -> 584 | J37: =ROUND([1]Lastfluss!BD53,1) -> 2,032 | K37: =ROUND([1]Lastfluss!BV53,1) -> 1,835 | L37: =ROUND([1]Lastfluss!AU53,1) -> 1,982 | M37: =ROUND([1]Lastfluss!BM53,1) -> 0 | N37: =ROUND([1]Lastfluss!CA53,1) -> 68
A38: =[1]Lastfluss!A54 -> 2021-01-01T07:00:00 | B38: =ROUND([1]Lastfluss!CJ54,1) -> -19 | C38: =ROUND([1]Lastfluss!AW54,1) -> 2,597 | D38: =ROUND([1]Lastfluss!BO54,1) -> 2,020 | E38: =ROUND([1]Lastfluss!CD54,1) -> 1,861 | F38: =ROUND([1]Lastfluss!CH54,1) -> 1,650 | G38: =ROUND([1]Lastfluss!B54,1) -> 149 | H38: =ROUND([1]Lastfluss!CI54,1) -> 1,669 | I38: =ROUND([1]Lastfluss!AL54,1) -> 656 | J38: =ROUND([1]Lastfluss!BD54,1) -> 2,060 | K38: =ROUND([1]Lastfluss!BV54,1) -> 1,864 | L38: =ROUND([1]Lastfluss!AU54,1) -> 1,979 | M38: =ROUND([1]Lastfluss!BM54,1) -> 0 | N38: =ROUND([1]Lastfluss!CA54,1) -> 67
A39: =[1]Lastfluss!A55 -> 2021-01-01T07:15:00 | B39: =ROUND([1]Lastfluss!CJ55,1) -> -20 | C39: =ROUND([1]Lastfluss!AW55,1) -> 2,635 | D39: =ROUND([1]Lastfluss!BO55,1) -> 2,027 | E39: =ROUND([1]Lastfluss!CD55,1) -> 1,866 | F39: =ROUND([1]Lastfluss!CH55,1) -> 1,660 | G39: =ROUND([1]Lastfluss!B55,1) -> 150 | H39: =ROUND([1]Lastfluss!CI55,1) -> 1,680 | I39: =ROUND([1]Lastfluss!AL55,1) -> 713 | J39: =ROUND([1]Lastfluss!BD55,1) -> 2,068 | K39: =ROUND([1]Lastfluss!BV55,1) -> 1,868 | L39: =ROUND([1]Lastfluss!AU55,1) -> 1,961 | M39: =ROUND([1]Lastfluss!BM55,1) -> 0 | N39: =ROUND([1]Lastfluss!CA55,1) -> 68
A40: =[1]Lastfluss!A56 -> 2021-01-01T07:30:00 | B40: =ROUND([1]Lastfluss!CJ56,1) -> -21 | C40: =ROUND([1]Lastfluss!AW56,1) -> 2,719 | D40: =ROUND([1]Lastfluss!BO56,1) -> 2,086 | E40: =ROUND([1]Lastfluss!CD56,1) -> 1,932 | F40: =ROUND([1]Lastfluss!CH56,1) -> 1,683 | G40: =ROUND([1]Lastfluss!B56,1) -> 155 | H40: =ROUND([1]Lastfluss!CI56,1) -> 1,703 | I40: =ROUND([1]Lastfluss!AL56,1) -> 794 | J40: =ROUND([1]Lastfluss!BD56,1) -> 2,127 | K40: =ROUND([1]Lastfluss!BV56,1) -> 1,938 | L40: =ROUND([1]Lastfluss!AU56,1) -> 1,966 | M40: =ROUND([1]Lastfluss!BM56,1) -> 0 | N40: =ROUND([1]Lastfluss!CA56,1) -> 67
A41: =[1]Lastfluss!A57 -> 2021-01-01T07:45:00 | B41: =ROUND([1]Lastfluss!CJ57,1) -> -21 | C41: =ROUND([1]Lastfluss!AW57,1) -> 2,800 | D41: =ROUND([1]Lastfluss!BO57,1) -> 2,150 | E41: =ROUND([1]Lastfluss!CD57,1) -> 1,987 | F41: =ROUND([1]Lastfluss!CH57,1) -> 1,726 | G41: =ROUND([1]Lastfluss!B57,1) -> 159 | H41: =ROUND([1]Lastfluss!CI57,1) -> 1,747 | I41: =ROUND([1]Lastfluss!AL57,1) -> 896 | J41: =ROUND([1]Lastfluss!BD57,1) -> 2,191 | K41: =ROUND([1]Lastfluss!BV57,1) -> 1,994 | L41: =ROUND([1]Lastfluss!AU57,1) -> 1,946 | M41: =ROUND([1]Lastfluss!BM57,1) -> 0 | N41: =ROUND([1]Lastfluss!CA57,1) -> 68
A42: =[1]Lastfluss!A58 -> 2021-01-01T08:00:00 | B42: =ROUND([1]Lastfluss!CJ58,1) -> -21 | C42: =ROUND([1]Lastfluss!AW58,1) -> 2,851 | D42: =ROUND([1]Lastfluss!BO58,1) -> 2,277 | E42: =ROUND([1]Lastfluss!CD58,1) -> 2,117 | F42: =ROUND([1]Lastfluss!CH58,1) -> 1,843 | G42: =ROUND([1]Lastfluss!B58,1) -> 167 | H42: =ROUND([1]Lastfluss!CI58,1) -> 1,863 | I42: =ROUND([1]Lastfluss!AL58,1) -> 979 | J42: =ROUND([1]Lastfluss!BD58,1) -> 2,319 | K42: =ROUND([1]Lastfluss!BV58,1) -> 2,131 | L42: =ROUND([1]Lastfluss!AU58,1) -> 1,916 | M42: =ROUND([1]Lastfluss!BM58,1) -> 0 | N42: =ROUND([1]Lastfluss!CA58,1) -> 67
A43: =[1]Lastfluss!A59 -> 2021-01-01T08:15:00 | B43: =ROUND([1]Lastfluss!CJ59,1) -> -21 | C43: =ROUND([1]Lastfluss!AW59,1) -> 2,911 | D43: =ROUND([1]Lastfluss!BO59,1) -> 2,315 | E43: =ROUND([1]Lastfluss!CD59,1) -> 2,149 | F43: =ROUND([1]Lastfluss!CH59,1) -> 1,894 | G43: =ROUND([1]Lastfluss!B59,1) -> 170 | H43: =ROUND([1]Lastfluss!CI59,1) -> 1,914 | I43: =ROUND([1]Lastfluss!AL59,1) -> 1,043 | J43: =ROUND([1]Lastfluss!BD59,1) -> 2,358 | K43: =ROUND([1]Lastfluss!BV59,1) -> 2,164 | L43: =ROUND([1]Lastfluss!AU59,1) -> 1,914 | M43: =ROUND([1]Lastfluss!BM59,1) -> 0 | N43: =ROUND([1]Lastfluss!CA59,1) -> 67
A44: =[1]Lastfluss!A60 -> 2021-01-01T08:30:00 | B44: =ROUND([1]Lastfluss!CJ60,1) -> -20 | C44: =ROUND([1]Lastfluss!AW60,1) -> 2,986 | D44: =ROUND([1]Lastfluss!BO60,1) -> 2,431 | E44: =ROUND([1]Lastfluss!CD60,1) -> 2,258 | F44: =ROUND([1]Lastfluss!CH60,1) -> 2,002 | G44: =ROUND([1]Lastfluss!B60,1) -> 177 | H44: =ROUND([1]Lastfluss!CI60,1) -> 2,022 | I44: =ROUND([1]Lastfluss!AL60,1) -> 1,102 | J44: =ROUND([1]Lastfluss!BD60,1) -> 2,474 | K44: =ROUND([1]Lastfluss!BV60,1) -> 2,277 | L44: =ROUND([1]Lastfluss!AU60,1) -> 1,932 | M44: =ROUND([1]Lastfluss!BM60,1) -> 0 | N44: =ROUND([1]Lastfluss!CA60,1) -> 68
A45: =[1]Lastfluss!A61 -> 2021-01-01T08:45:00 | B45: =ROUND([1]Lastfluss!CJ61,1) -> -20 | C45: =ROUND([1]Lastfluss!AW61,1) -> 3,047 | D45: =ROUND([1]Lastfluss!BO61,1) -> 2,497 | E45: =ROUND([1]Lastfluss!CD61,1) -> 2,328 | F45: =ROUND([1]Lastfluss!CH61,1) -> 2,092 | G45: =ROUND([1]Lastfluss!B61,1) -> 183 | H45: =ROUND([1]Lastfluss!CI61,1) -> 2,111 | I45: =ROUND([1]Lastfluss!AL61,1) -> 1,159 | J45: =ROUND([1]Lastfluss!BD61,1) -> 2,541 | K45: =ROUND([1]Lastfluss!BV61,1) -> 2,349 | L45: =ROUND([1]Lastfluss!AU61,1) -> 1,937 | M45: =ROUND([1]Lastfluss!BM61,1) -> 0 | N45: =ROUND([1]Lastfluss!CA61,1) -> 68
A46: =[1]Lastfluss!A62 -> 2021-01-01T09:00:00 | B46: =ROUND([1]Lastfluss!CJ62,1) -> -20 | C46: =ROUND([1]Lastfluss!AW62,1) -> 3,134 | D46: =ROUND([1]Lastfluss!BO62,1) -> 2,574 | E46: =ROUND([1]Lastfluss!CD62,1) -> 2,401 | F46: =ROUND([1]Lastfluss!CH62,1) -> 2,165 | G46: =ROUND([1]Lastfluss!B62,1) -> 189 | H46: =ROUND([1]Lastfluss!CI62,1) -> 2,185 | I46: =ROUND([1]Lastfluss!AL62,1) -> 1,229 | J46: =ROUND([1]Lastfluss!BD62,1) -> 2,618 | K46: =ROUND([1]Lastfluss!BV62,1) -> 2,425 | L46: =ROUND([1]Lastfluss!AU62,1) -> 1,957 | M46: =ROUND([1]Lastfluss!BM62,1) -> 0 | N46: =ROUND([1]Lastfluss!CA62,1) -> 69
A47: =[1]Lastfluss!A63 -> 2021-01-01T09:15:00 | B47: =ROUND([1]Lastfluss!CJ63,1) -> -19 | C47: =ROUND([1]Lastfluss!AW63,1) -> 3,341 | D47: =ROUND([1]Lastfluss!BO63,1) -> 2,697 | E47: =ROUND([1]Lastfluss!CD63,1) -> 2,528 | F47: =ROUND([1]Lastfluss!CH63,1) -> 2,284 | G47: =ROUND([1]Lastfluss!B63,1) -> 202 | H47: =ROUND([1]Lastfluss!CI63,1) -> 2,303 | I47: =ROUND([1]Lastfluss!AL63,1) -> 1,415 | J47: =ROUND([1]Lastfluss!BD63,1) -> 2,742 | K47: =ROUND([1]Lastfluss!BV63,1) -> 2,558 | L47: =ROUND([1]Lastfluss!AU63,1) -> 1,984 | M47: =ROUND([1]Lastfluss!BM63,1) -> 0 | N47: =ROUND([1]Lastfluss!CA63,1) -> 69
A48: =[1]Lastfluss!A64 -> 2021-01-01T09:30:00 | B48: =ROUND([1]Lastfluss!CJ64,1) -> -15 | C48: =ROUND([1]Lastfluss!AW64,1) -> 3,336 | D48: =ROUND([1]Lastfluss!BO64,1) -> 2,776 | E48: =ROUND([1]Lastfluss!CD64,1) -> 2,608 | F48: =ROUND([1]Lastfluss!CH64,1) -> 2,374 | G48: =ROUND([1]Lastfluss!B64,1) -> 206 | H48: =ROUND([1]Lastfluss!CI64,1) -> 2,388 | I48: =ROUND([1]Lastfluss!AL64,1) -> 1,416 | J48: =ROUND([1]Lastfluss!BD64,1) -> 2,821 | K48: =ROUND([1]Lastfluss!BV64,1) -> 2,635 | L48: =ROUND([1]Lastfluss!AU64,1) -> 1,977 | M48: =ROUND([1]Lastfluss!BM64,1) -> 0 | N48: =ROUND([1]Lastfluss!CA64,1) -> 76
A49: =[1]Lastfluss!A65 -> 2021-01-01T09:45:00 | B49: =ROUND([1]Lastfluss!CJ65,1) -> -12 | C49: =ROUND([1]Lastfluss!AW65,1) -> 3,277 | D49: =ROUND([1]Lastfluss!BO65,1) -> 2,747 | E49: =ROUND([1]Lastfluss!CD65,1) -> 2,587 | F49: =ROUND([1]Lastfluss!CH65,1) -> 2,362 | G49: =ROUND([1]Lastfluss!B65,1) -> 203 | H49: =ROUND([1]Lastfluss!CI65,1) -> 2,374 | I49: =ROUND([1]Lastfluss!AL65,1) -> 1,350 | J49: =ROUND([1]Lastfluss!BD65,1) -> 2,792 | K49: =ROUND([1]Lastfluss!BV65,1) -> 2,607 | L49: =ROUND([1]Lastfluss!AU65,1) -> 1,982 | M49: =ROUND([1]Lastfluss!BM65,1) -> 0 | N49: =ROUND([1]Lastfluss!CA65,1) -> 83
A50: =[1]Lastfluss!A66 -> 2021-01-01T10:00:00 | B50: =ROUND([1]Lastfluss!CJ66,1) -> -7 | C50: =ROUND([1]Lastfluss!AW66,1) -> 3,415 | D50: =ROUND([1]Lastfluss!BO66,1) -> 2,843 | E50: =ROUND([1]Lastfluss!CD66,1) -> 2,688 | F50: =ROUND([1]Lastfluss!CH66,1) -> 2,482 | G50: =ROUND([1]Lastfluss!B66,1) -> 214 | H50: =ROUND([1]Lastfluss!CI66,1) -> 2,489 | I50: =ROUND([1]Lastfluss!AL66,1) -> 1,501 | J50: =ROUND([1]Lastfluss!BD66,1) -> 2,889 | K50: =ROUND([1]Lastfluss!BV66,1) -> 2,706 | L50: =ROUND([1]Lastfluss!AU66,1) -> 1,974 | M50: =ROUND([1]Lastfluss!BM66,1) -> 0 | N50: =ROUND([1]Lastfluss!CA66,1) -> 90
A51: =[1]Lastfluss!A67 -> 2021-01-01T10:15:00 | B51: =ROUND([1]Lastfluss!CJ67,1) -> -3 | C51: =ROUND([1]Lastfluss!AW67,1) -> 3,561 | D51: =ROUND([1]Lastfluss!BO67,1) -> 2,972 | E51: =ROUND([1]Lastfluss!CD67,1) -> 2,811 | F51: =ROUND([1]Lastfluss!CH67,1) -> 2,595 | G51: =ROUND([1]Lastfluss!B67,1) -> 226 | H51: =ROUND([1]Lastfluss!CI67,1) -> 2,598 | I51: =ROUND([1]Lastfluss!AL67,1) -> 1,643 | J51: =ROUND([1]Lastfluss!BD67,1) -> 3,019 | K51: =ROUND([1]Lastfluss!BV67,1) -> 2,830 | L51: =ROUND([1]Lastfluss!AU67,1) -> 1,982 | M51: =ROUND([1]Lastfluss!BM67,1) -> 0 | N51: =ROUND([1]Lastfluss!CA67,1) -> 95
A52: =[1]Lastfluss!A68 -> 2021-01-01T10:30:00 | B52: =ROUND([1]Lastfluss!CJ68,1) -> -4 | C52: =ROUND([1]Lastfluss!AW68,1) -> 3,620 | D52: =ROUND([1]Lastfluss!BO68,1) -> 3,120 | E52: =ROUND([1]Lastfluss!CD68,1) -> 2,954 | F52: =ROUND([1]Lastfluss!CH68,1) -> 2,730 | G52: =ROUND([1]Lastfluss!B68,1) -> 237 | H52: =ROUND([1]Lastfluss!CI68,1) -> 2,733 | I52: =ROUND([1]Lastfluss!AL68,1) -> 1,686 | J52: =ROUND([1]Lastfluss!BD68,1) -> 3,168 | K52: =ROUND([1]Lastfluss!BV68,1) -> 2,977 | L52: =ROUND([1]Lastfluss!AU68,1) -> 2,000 | M52: =ROUND([1]Lastfluss!BM68,1) -> 0 | N52: =ROUND([1]Lastfluss!CA68,1) -> 100
A53: =[1]Lastfluss!A69 -> 2021-01-01T10:45:00 | B53: =ROUND([1]Lastfluss!CJ69,1) -> 1 | C53: =ROUND([1]Lastfluss!AW69,1) -> 3,668 | D53: =ROUND([1]Lastfluss!BO69,1) -> 3,151 | E53: =ROUND([1]Lastfluss!CD69,1) -> 2,994 | F53: =ROUND([1]Lastfluss!CH69,1) -> 2,781 | G53: =ROUND([1]Lastfluss!B69,1) -> 242 | H53: =ROUND([1]Lastfluss!CI69,1) -> 2,780 | I53: =ROUND([1]Lastfluss!AL69,1) -> 1,726 | J53: =ROUND([1]Lastfluss!BD69,1) -> 3,199 | K53: =ROUND([1]Lastfluss!BV69,1) -> 3,013 | L53: =ROUND([1]Lastfluss!AU69,1) -> 2,010 | M53: =ROUND([1]Lastfluss!BM69,1) -> 0 | N53: =ROUND([1]Lastfluss!CA69,1) -> 107
A54: =[1]Lastfluss!A70 -> 2021-01-01T11:00:00 | B54: =ROUND([1]Lastfluss!CJ70,1) -> -3 | C54: =ROUND([1]Lastfluss!AW70,1) -> 3,774 | D54: =ROUND([1]Lastfluss!BO70,1) -> 3,245 | E54: =ROUND([1]Lastfluss!CD70,1) -> 3,111 | F54: =ROUND([1]Lastfluss!CH70,1) -> 2,904 | G54: =ROUND([1]Lastfluss!B70,1) -> 253 | H54: =ROUND([1]Lastfluss!CI70,1) -> 2,908 | I54: =ROUND([1]Lastfluss!AL70,1) -> 1,810 | J54: =ROUND([1]Lastfluss!BD70,1) -> 3,290 | K54: =ROUND([1]Lastfluss!BV70,1) -> 3,103 | L54: =ROUND([1]Lastfluss!AU70,1) -> 2,036 | M54: =ROUND([1]Lastfluss!BM70,1) -> 4 | N54: =ROUND([1]Lastfluss!CA70,1) -> 140
A55: =[1]Lastfluss!A71 -> 2021-01-01T11:15:00 | B55: =ROUND([1]Lastfluss!CJ71,1) -> -14 | C55: =ROUND([1]Lastfluss!AW71,1) -> 2,661 | D55: =ROUND([1]Lastfluss!BO71,1) -> 3,395 | E55: =ROUND([1]Lastfluss!CD71,1) -> 3,263 | F55: =ROUND([1]Lastfluss!CH71,1) -> 3,063 | G55: =ROUND([1]Lastfluss!B71,1) -> 233 | H55: =ROUND([1]Lastfluss!CI71,1) -> 3,077 | I55: =ROUND([1]Lastfluss!AL71,1) -> 648 | J55: =ROUND([1]Lastfluss!BD71,1) -> 2,153 | K55: =ROUND([1]Lastfluss!BV71,1) -> 3,257 | L55: =ROUND([1]Lastfluss!AU71,1) -> 2,053 | M55: =ROUND([1]Lastfluss!BM71,1) -> 1,293 | N55: =ROUND([1]Lastfluss!CA71,1) -> 148
A56: =[1]Lastfluss!A72 -> 2021-01-01T11:30:00 | B56: =ROUND([1]Lastfluss!CJ72,1) -> -24 | C56: =ROUND([1]Lastfluss!AW72,1) -> 2,880 | D56: =ROUND([1]Lastfluss!BO72,1) -> 3,477 | E56: =ROUND([1]Lastfluss!CD72,1) -> 3,376 | F56: =ROUND([1]Lastfluss!CH72,1) -> 3,185 | G56: =ROUND([1]Lastfluss!B72,1) -> 247 | H56: =ROUND([1]Lastfluss!CI72,1) -> 3,209 | I56: =ROUND([1]Lastfluss!AL72,1) -> 870 | J56: =ROUND([1]Lastfluss!BD72,1) -> 2,410 | K56: =ROUND([1]Lastfluss!BV72,1) -> 3,355 | L56: =ROUND([1]Lastfluss!AU72,1) -> 2,055 | M56: =ROUND([1]Lastfluss!BM72,1) -> 1,119 | N56: =ROUND([1]Lastfluss!CA72,1) -> 171
A57: =[1]Lastfluss!A73 -> 2021-01-01T11:45:00 | B57: =ROUND([1]Lastfluss!CJ73,1) -> -24 | C57: =ROUND([1]Lastfluss!AW73,1) -> 2,863 | D57: =ROUND([1]Lastfluss!BO73,1) -> 3,510 | E57: =ROUND([1]Lastfluss!CD73,1) -> 3,450 | F57: =ROUND([1]Lastfluss!CH73,1) -> 3,255 | G57: =ROUND([1]Lastfluss!B73,1) -> 252 | H57: =ROUND([1]Lastfluss!CI73,1) -> 3,278 | I57: =ROUND([1]Lastfluss!AL73,1) -> 822 | J57: =ROUND([1]Lastfluss!BD73,1) -> 2,419 | K57: =ROUND([1]Lastfluss!BV73,1) -> 3,387 | L57: =ROUND([1]Lastfluss!AU73,1) -> 2,086 | M57: =ROUND([1]Lastfluss!BM73,1) -> 1,144 | N57: =ROUND([1]Lastfluss!CA73,1) -> 218
A58: =[1]Lastfluss!A74 -> 2021-01-01T12:00:00 | B58: =ROUND([1]Lastfluss!CJ74,1) -> -13 | C58: =ROUND([1]Lastfluss!AW74,1) -> 2,833 | D58: =ROUND([1]Lastfluss!BO74,1) -> 3,395 | E58: =ROUND([1]Lastfluss!CD74,1) -> 3,353 | F58: =ROUND([1]Lastfluss!CH74,1) -> 3,149 | G58: =ROUND([1]Lastfluss!B74,1) -> 243 | H58: =ROUND([1]Lastfluss!CI74,1) -> 3,162 | I58: =ROUND([1]Lastfluss!AL74,1) -> 780 | J58: =ROUND([1]Lastfluss!BD74,1) -> 2,316 | K58: =ROUND([1]Lastfluss!BV74,1) -> 3,274 | L58: =ROUND([1]Lastfluss!AU74,1) -> 2,096 | M58: =ROUND([1]Lastfluss!BM74,1) -> 1,130 | N58: =ROUND([1]Lastfluss!CA74,1) -> 227
A59: =[1]Lastfluss!A75 -> 2021-01-01T12:15:00 | B59: =ROUND([1]Lastfluss!CJ75,1) -> -26 | C59: =ROUND([1]Lastfluss!AW75,1) -> 2,354 | D59: =ROUND([1]Lastfluss!BO75,1) -> 3,312 | E59: =ROUND([1]Lastfluss!CD75,1) -> 3,265 | F59: =ROUND([1]Lastfluss!CH75,1) -> 3,072 | G59: =ROUND([1]Lastfluss!B75,1) -> 226 | H59: =ROUND([1]Lastfluss!CI75,1) -> 3,098 | I59: =ROUND([1]Lastfluss!AL75,1) -> 311 | J59: =ROUND([1]Lastfluss!BD75,1) -> 1,847 | K59: =ROUND([1]Lastfluss!BV75,1) -> 3,176 | L59: =ROUND([1]Lastfluss!AU75,1) -> 2,077 | M59: =ROUND([1]Lastfluss!BM75,1) -> 1,516 | N59: =ROUND([1]Lastfluss!CA75,1) -> 232
A60: =[1]Lastfluss!A76 -> 2021-01-01T12:30:00 | B60: =ROUND([1]Lastfluss!CJ76,1) -> -28 | C60: =ROUND([1]Lastfluss!AW76,1) -> 2,147 | D60: =ROUND([1]Lastfluss!BO76,1) -> 3,187 | E60: =ROUND([1]Lastfluss!CD76,1) -> 3,161 | F60: =ROUND([1]Lastfluss!CH76,1) -> 2,971 | G60: =ROUND([1]Lastfluss!B76,1) -> 214 | H60: =ROUND([1]Lastfluss!CI76,1) -> 2,999 | I60: =ROUND([1]Lastfluss!AL76,1) -> 113 | J60: =ROUND([1]Lastfluss!BD76,1) -> 1,717 | K60: =ROUND([1]Lastfluss!BV76,1) -> 3,070 | L60: =ROUND([1]Lastfluss!AU76,1) -> 2,063 | M60: =ROUND([1]Lastfluss!BM76,1) -> 1,519 | N60: =ROUND([1]Lastfluss!CA76,1) -> 227
A61: =[1]Lastfluss!A77 -> 2021-01-01T12:45:00 | B61: =ROUND([1]Lastfluss!CJ77,1) -> -32 | C61: =ROUND([1]Lastfluss!AW77,1) -> 2,090 | D61: =ROUND([1]Lastfluss!BO77,1) -> 3,086 | E61: =ROUND([1]Lastfluss!CD77,1) -> 2,993 | F61: =ROUND([1]Lastfluss!CH77,1) -> 2,795 | G61: =ROUND([1]Lastfluss!B77,1) -> 201 | H61: =ROUND([1]Lastfluss!CI77,1) -> 2,827 | I61: =ROUND([1]Lastfluss!AL77,1) -> 59 | J61: =ROUND([1]Lastfluss!BD77,1) -> 1,620 | K61: =ROUND([1]Lastfluss!BV77,1) -> 2,959 | L61: =ROUND([1]Lastfluss!AU77,1) -> 2,059 | M61: =ROUND([1]Lastfluss!BM77,1) -> 1,515 | N61: =ROUND([1]Lastfluss!CA77,1) -> 159
A62: =[1]Lastfluss!A78 -> 2021-01-01T13:00:00 | B62: =ROUND([1]Lastfluss!CJ78,1) -> -29 | C62: =ROUND([1]Lastfluss!AW78,1) -> 2,187 | D62: =ROUND([1]Lastfluss!BO78,1) -> 3,142 | E62: =ROUND([1]Lastfluss!CD78,1) -> 3,022 | F62: =ROUND([1]Lastfluss!CH78,1) -> 2,817 | G62: =ROUND([1]Lastfluss!B78,1) -> 205 | H62: =ROUND([1]Lastfluss!CI78,1) -> 2,846 | I62: =ROUND([1]Lastfluss!AL78,1) -> 162 | J62: =ROUND([1]Lastfluss!BD78,1) -> 1,683 | K62: =ROUND([1]Lastfluss!BV78,1) -> 3,014 | L62: =ROUND([1]Lastfluss!AU78,1) -> 2,055 | M62: =ROUND([1]Lastfluss!BM78,1) -> 1,508 | N62: =ROUND([1]Lastfluss!CA78,1) -> 135
A63: =[1]Lastfluss!A79 -> 2021-01-01T13:15:00 | B63: =ROUND([1]Lastfluss!CJ79,1) -> -34 | C63: =ROUND([1]Lastfluss!AW79,1) -> 2,103 | D63: =ROUND([1]Lastfluss!BO79,1) -> 3,068 | E63: =ROUND([1]Lastfluss!CD79,1) -> 2,977 | F63: =ROUND([1]Lastfluss!CH79,1) -> 2,789 | G63: =ROUND([1]Lastfluss!B79,1) -> 200 | H63: =ROUND([1]Lastfluss!CI79,1) -> 2,824 | I63: =ROUND([1]Lastfluss!AL79,1) -> 26 | J63: =ROUND([1]Lastfluss!BD79,1) -> 1,605 | K63: =ROUND([1]Lastfluss!BV79,1) -> 2,935 | L63: =ROUND([1]Lastfluss!AU79,1) -> 2,105 | M63: =ROUND([1]Lastfluss!BM79,1) -> 1,511 | N63: =ROUND([1]Lastfluss!CA79,1) -> 167
A64: =[1]Lastfluss!A80 -> 2021-01-01T13:30:00 | B64: =ROUND([1]Lastfluss!CJ80,1) -> -49 | C64: =ROUND([1]Lastfluss!AW80,1) -> 3,077 | D64: =ROUND([1]Lastfluss!BO80,1) -> 2,773 | E64: =ROUND([1]Lastfluss!CD80,1) -> 2,764 | F64: =ROUND([1]Lastfluss!CH80,1) -> 2,587 | G64: =ROUND([1]Lastfluss!B80,1) -> 208 | H64: =ROUND([1]Lastfluss!CI80,1) -> 2,636 | I64: =ROUND([1]Lastfluss!AL80,1) -> 974 | J64: =ROUND([1]Lastfluss!BD80,1) -> 2,642 | K64: =ROUND([1]Lastfluss!BV80,1) -> 2,640 | L64: =ROUND([1]Lastfluss!AU80,1) -> 2,153 | M64: =ROUND([1]Lastfluss!BM80,1) -> 177 | N64: =ROUND([1]Lastfluss!CA80,1) -> 236
A65: =[1]Lastfluss!A81 -> 2021-01-01T13:45:00 | B65: =ROUND([1]Lastfluss!CJ81,1) -> -41 | C65: =ROUND([1]Lastfluss!AW81,1) -> 3,247 | D65: =ROUND([1]Lastfluss!BO81,1) -> 2,793 | E65: =ROUND([1]Lastfluss!CD81,1) -> 2,742 | F65: =ROUND([1]Lastfluss!CH81,1) -> 2,561 | G65: =ROUND([1]Lastfluss!B81,1) -> 211 | H65: =ROUND([1]Lastfluss!CI81,1) -> 2,601 | I65: =ROUND([1]Lastfluss!AL81,1) -> 1,182 | J65: =ROUND([1]Lastfluss!BD81,1) -> 2,807 | K65: =ROUND([1]Lastfluss!BV81,1) -> 2,657 | L65: =ROUND([1]Lastfluss!AU81,1) -> 2,120 | M65: =ROUND([1]Lastfluss!BM81,1) -> 32 | N65: =ROUND([1]Lastfluss!CA81,1) -> 196
A66: =[1]Lastfluss!A82 -> 2021-01-01T14:00:00 | B66: =ROUND([1]Lastfluss!CJ82,1) -> -41 | C66: =ROUND([1]Lastfluss!AW82,1) -> 3,262 | D66: =ROUND([1]Lastfluss!BO82,1) -> 2,817 | E66: =ROUND([1]Lastfluss!CD82,1) -> 2,739 | F66: =ROUND([1]Lastfluss!CH82,1) -> 2,563 | G66: =ROUND([1]Lastfluss!B82,1) -> 212 | H66: =ROUND([1]Lastfluss!CI82,1) -> 2,603 | I66: =ROUND([1]Lastfluss!AL82,1) -> 1,216 | J66: =ROUND([1]Lastfluss!BD82,1) -> 2,836 | K66: =ROUND([1]Lastfluss!BV82,1) -> 2,673 | L66: =ROUND([1]Lastfluss!AU82,1) -> 2,102 | M66: =ROUND([1]Lastfluss!BM82,1) -> 26 | N66: =ROUND([1]Lastfluss!CA82,1) -> 176
A67: =[1]Lastfluss!A83 -> 2021-01-01T14:15:00 | B67: =ROUND([1]Lastfluss!CJ83,1) -> -25 | C67: =ROUND([1]Lastfluss!AW83,1) -> 3,273 | D67: =ROUND([1]Lastfluss!BO83,1) -> 2,822 | E67: =ROUND([1]Lastfluss!CD83,1) -> 2,688 | F67: =ROUND([1]Lastfluss!CH83,1) -> 2,498 | G67: =ROUND([1]Lastfluss!B83,1) -> 209 | H67: =ROUND([1]Lastfluss!CI83,1) -> 2,523 | I67: =ROUND([1]Lastfluss!AL83,1) -> 1,268 | J67: =ROUND([1]Lastfluss!BD83,1) -> 2,853 | K67: =ROUND([1]Lastfluss!BV83,1) -> 2,679 | L67: =ROUND([1]Lastfluss!AU83,1) -> 2,060 | M67: =ROUND([1]Lastfluss!BM83,1) -> 16 | N67: =ROUND([1]Lastfluss!CA83,1) -> 117
A68: =[1]Lastfluss!A84 -> 2021-01-01T14:30:00 | B68: =ROUND([1]Lastfluss!CJ84,1) -> -23 | C68: =ROUND([1]Lastfluss!AW84,1) -> 3,239 | D68: =ROUND([1]Lastfluss!BO84,1) -> 2,801 | E68: =ROUND([1]Lastfluss!CD84,1) -> 2,658 | F68: =ROUND([1]Lastfluss!CH84,1) -> 2,476 | G68: =ROUND([1]Lastfluss!B84,1) -> 207 | H68: =ROUND([1]Lastfluss!CI84,1) -> 2,499 | I68: =ROUND([1]Lastfluss!AL84,1) -> 1,248 | J68: =ROUND([1]Lastfluss!BD84,1) -> 2,842 | K68: =ROUND([1]Lastfluss!BV84,1) -> 2,665 | L68: =ROUND([1]Lastfluss!AU84,1) -> 2,045 | M68: =ROUND([1]Lastfluss!BM84,1) -> 6 | N68: =ROUND([1]Lastfluss!CA84,1) -> 99
A69: =[1]Lastfluss!A85 -> 2021-01-01T14:45:00 | B69: =ROUND([1]Lastfluss!CJ85,1) -> -23 | C69: =ROUND([1]Lastfluss!AW85,1) -> 3,289 | D69: =ROUND([1]Lastfluss!BO85,1) -> 2,820 | E69: =ROUND([1]Lastfluss!CD85,1) -> 2,671 | F69: =ROUND([1]Lastfluss!CH85,1) -> 2,494 | G69: =ROUND([1]Lastfluss!B85,1) -> 209 | H69: =ROUND([1]Lastfluss!CI85,1) -> 2,517 | I69: =ROUND([1]Lastfluss!AL85,1) -> 1,306 | J69: =ROUND([1]Lastfluss!BD85,1) -> 2,866 | K69: =ROUND([1]Lastfluss!BV85,1) -> 2,683 | L69: =ROUND([1]Lastfluss!AU85,1) -> 2,039 | M69: =ROUND([1]Lastfluss!BM85,1) -> 0 | N69: =ROUND([1]Lastfluss!CA85,1) -> 95
A70: =[1]Lastfluss!A86 -> 2021-01-01T15:00:00 | B70: =ROUND([1]Lastfluss!CJ86,1) -> -23 | C70: =ROUND([1]Lastfluss!AW86,1) -> 3,360 | D70: =ROUND([1]Lastfluss!BO86,1) -> 2,867 | E70: =ROUND([1]Lastfluss!CD86,1) -> 2,713 | F70: =ROUND([1]Lastfluss!CH86,1) -> 2,525 | G70: =ROUND([1]Lastfluss!B86,1) -> 213 | H70: =ROUND([1]Lastfluss!CI86,1) -> 2,547 | I70: =ROUND([1]Lastfluss!AL86,1) -> 1,387 | J70: =ROUND([1]Lastfluss!BD86,1) -> 2,912 | K70: =ROUND([1]Lastfluss!BV86,1) -> 2,728 | L70: =ROUND([1]Lastfluss!AU86,1) -> 2,031 | M70: =ROUND([1]Lastfluss!BM86,1) -> 1 | N70: =ROUND([1]Lastfluss!CA86,1) -> 94
A71: =[1]Lastfluss!A87 -> 2021-01-01T15:15:00 | B71: =ROUND([1]Lastfluss!CJ87,1) -> -20 | C71: =ROUND([1]Lastfluss!AW87,1) -> 3,424 | D71: =ROUND([1]Lastfluss!BO87,1) -> 2,882 | E71: =ROUND([1]Lastfluss!CD87,1) -> 2,717 | F71: =ROUND([1]Lastfluss!CH87,1) -> 2,531 | G71: =ROUND([1]Lastfluss!B87,1) -> 216 | H71: =ROUND([1]Lastfluss!CI87,1) -> 2,551 | I71: =ROUND([1]Lastfluss!AL87,1) -> 1,474 | J71: =ROUND([1]Lastfluss!BD87,1) -> 2,928 | K71: =ROUND([1]Lastfluss!BV87,1) -> 2,750 | L71: =ROUND([1]Lastfluss!AU87,1) -> 2,010 | M71: =ROUND([1]Lastfluss!BM87,1) -> 0 | N71: =ROUND([1]Lastfluss!CA87,1) -> 77
A72: =[1]Lastfluss!A88 -> 2021-01-01T15:30:00 | B72: =ROUND([1]Lastfluss!CJ88,1) -> -19 | C72: =ROUND([1]Lastfluss!AW88,1) -> 3,457 | D72: =ROUND([1]Lastfluss!BO88,1) -> 2,967 | E72: =ROUND([1]Lastfluss!CD88,1) -> 2,784 | F72: =ROUND([1]Lastfluss!CH88,1) -> 2,591 | G72: =ROUND([1]Lastfluss!B88,1) -> 221 | H72: =ROUND([1]Lastfluss!CI88,1) -> 2,611 | I72: =ROUND([1]Lastfluss!AL88,1) -> 1,513 | J72: =ROUND([1]Lastfluss!BD88,1) -> 3,014 | K72: =ROUND([1]Lastfluss!BV88,1) -> 2,824 | L72: =ROUND([1]Lastfluss!AU88,1) -> 2,005 | M72: =ROUND([1]Lastfluss!BM88,1) -> 0 | N72: =ROUND([1]Lastfluss!CA88,1) -> 73
A73: =[1]Lastfluss!A89 -> 2021-01-01T15:45:00 | B73: =ROUND([1]Lastfluss!CJ89,1) -> -19 | C73: =ROUND([1]Lastfluss!AW89,1) -> 3,487 | D73: =ROUND([1]Lastfluss!BO89,1) -> 2,991 | E73: =ROUND([1]Lastfluss!CD89,1) -> 2,806 | F73: =ROUND([1]Lastfluss!CH89,1) -> 2,589 | G73: =ROUND([1]Lastfluss!B89,1) -> 223 | H73: =ROUND([1]Lastfluss!CI89,1) -> 2,608 | I73: =ROUND([1]Lastfluss!AL89,1) -> 1,548 | J73: =ROUND([1]Lastfluss!BD89,1) -> 3,038 | K73: =ROUND([1]Lastfluss!BV89,1) -> 2,849 | L73: =ROUND([1]Lastfluss!AU89,1) -> 2,001 | M73: =ROUND([1]Lastfluss!BM89,1) -> 0 | N73: =ROUND([1]Lastfluss!CA89,1) -> 71
A74: =[1]Lastfluss!A90 -> 2021-01-01T16:00:00 | B74: =ROUND([1]Lastfluss!CJ90,1) -> -18 | C74: =ROUND([1]Lastfluss!AW90,1) -> 3,496 | D74: =ROUND([1]Lastfluss!BO90,1) -> 2,979 | E74: =ROUND([1]Lastfluss!CD90,1) -> 2,802 | F74: =ROUND([1]Lastfluss!CH90,1) -> 2,594 | G74: =ROUND([1]Lastfluss!B90,1) -> 223 | H74: =ROUND([1]Lastfluss!CI90,1) -> 2,612 | I74: =ROUND([1]Lastfluss!AL90,1) -> 1,553 | J74: =ROUND([1]Lastfluss!BD90,1) -> 3,027 | K74: =ROUND([1]Lastfluss!BV90,1) -> 2,847 | L74: =ROUND([1]Lastfluss!AU90,1) -> 2,006 | M74: =ROUND([1]Lastfluss!BM90,1) -> 0 | N74: =ROUND([1]Lastfluss!CA90,1) -> 69
A75: =[1]Lastfluss!A91 -> 2021-01-01T16:15:00 | B75: =ROUND([1]Lastfluss!CJ91,1) -> -18 | C75: =ROUND([1]Lastfluss!AW91,1) -> 3,600 | D75: =ROUND([1]Lastfluss!BO91,1) -> 3,073 | E75: =ROUND([1]Lastfluss!CD91,1) -> 2,877 | F75: =ROUND([1]Lastfluss!CH91,1) -> 2,668 | G75: =ROUND([1]Lastfluss!B91,1) -> 232 | H75: =ROUND([1]Lastfluss!CI91,1) -> 2,685 | I75: =ROUND([1]Lastfluss!AL91,1) -> 1,655 | J75: =ROUND([1]Lastfluss!BD91,1) -> 3,121 | K75: =ROUND([1]Lastfluss!BV91,1) -> 2,928 | L75: =ROUND([1]Lastfluss!AU91,1) -> 2,011 | M75: =ROUND([1]Lastfluss!BM91,1) -> 0 | N75: =ROUND([1]Lastfluss!CA91,1) -> 67
A76: =[1]Lastfluss!A92 -> 2021-01-01T16:30:00 | B76: =ROUND([1]Lastfluss!CJ92,1) -> -33 | C76: =ROUND([1]Lastfluss!AW92,1) -> 1,188 | D76: =ROUND([1]Lastfluss!BO92,1) -> 3,304 | E76: =ROUND([1]Lastfluss!CD92,1) -> 3,100 | F76: =ROUND([1]Lastfluss!CH92,1) -> 2,853 | G76: =ROUND([1]Lastfluss!B92,1) -> 224 | H76: =ROUND([1]Lastfluss!CI92,1) -> 2,886 | I76: =ROUND([1]Lastfluss!AL92,1) -> 0 | J76: =ROUND([1]Lastfluss!BD92,1) -> 705 | K76: =ROUND([1]Lastfluss!BV92,1) -> 3,164 | L76: =ROUND([1]Lastfluss!AU92,1) -> 2,012 | M76: =ROUND([1]Lastfluss!BM92,1) -> 2,650 | N76: =ROUND([1]Lastfluss!CA92,1) -> 67
A77: =[1]Lastfluss!A93 -> 2021-01-01T16:45:00 | B77: =ROUND([1]Lastfluss!CJ93,1) -> -43 | C77: =ROUND([1]Lastfluss!AW93,1) -> 876 | D77: =ROUND([1]Lastfluss!BO93,1) -> 3,339 | E77: =ROUND([1]Lastfluss!CD93,1) -> 3,118 | F77: =ROUND([1]Lastfluss!CH93,1) -> 2,891 | G77: =ROUND([1]Lastfluss!B93,1) -> 233 | H77: =ROUND([1]Lastfluss!CI93,1) -> 2,933 | I77: =ROUND([1]Lastfluss!AL93,1) -> 0 | J77: =ROUND([1]Lastfluss!BD93,1) -> 388 | K77: =ROUND([1]Lastfluss!BV93,1) -> 3,184 | L77: =ROUND([1]Lastfluss!AU93,1) -> 2,014 | M77: =ROUND([1]Lastfluss!BM93,1) -> 3,002 | N77: =ROUND([1]Lastfluss!CA93,1) -> 67
A78: =[1]Lastfluss!A94 -> 2021-01-01T17:00:00 | B78: =ROUND([1]Lastfluss!CJ94,1) -> -46 | C78: =ROUND([1]Lastfluss!AW94,1) -> 703 | D78: =ROUND([1]Lastfluss!BO94,1) -> 3,358 | E78: =ROUND([1]Lastfluss!CD94,1) -> 3,148 | F78: =ROUND([1]Lastfluss!CH94,1) -> 2,914 | G78: =ROUND([1]Lastfluss!B94,1) -> 239 | H78: =ROUND([1]Lastfluss!CI94,1) -> 2,960 | I78: =ROUND([1]Lastfluss!AL94,1) -> 0 | J78: =ROUND([1]Lastfluss!BD94,1) -> 173 | K78: =ROUND([1]Lastfluss!BV94,1) -> 3,216 | L78: =ROUND([1]Lastfluss!AU94,1) -> 2,003 | M78: =ROUND([1]Lastfluss!BM94,1) -> 3,236 | N78: =ROUND([1]Lastfluss!CA94,1) -> 67
A79: =[1]Lastfluss!A95 -> 2021-01-01T17:15:00 | B79: =ROUND([1]Lastfluss!CJ95,1) -> -53 | C79: =ROUND([1]Lastfluss!AW95,1) -> 531 | D79: =ROUND([1]Lastfluss!BO95,1) -> 3,446 | E79: =ROUND([1]Lastfluss!CD95,1) -> 3,223 | F79: =ROUND([1]Lastfluss!CH95,1) -> 2,986 | G79: =ROUND([1]Lastfluss!B95,1) -> 258 | H79: =ROUND([1]Lastfluss!CI95,1) -> 3,039 | I79: =ROUND([1]Lastfluss!AL95,1) -> 0 | J79: =ROUND([1]Lastfluss!BD95,1) -> 0 | K79: =ROUND([1]Lastfluss!BV95,1) -> 3,295 | L79: =ROUND([1]Lastfluss!AU95,1) -> 2,186 | M79: =ROUND([1]Lastfluss!BM95,1) -> 3,691 | N79: =ROUND([1]Lastfluss!CA95,1) -> 67
A80: =[1]Lastfluss!A96 -> 2021-01-01T17:30:00 | B80: =ROUND([1]Lastfluss!CJ96,1) -> -46 | C80: =ROUND([1]Lastfluss!AW96,1) -> 526 | D80: =ROUND([1]Lastfluss!BO96,1) -> 3,573 | E80: =ROUND([1]Lastfluss!CD96,1) -> 3,338 | F80: =ROUND([1]Lastfluss!CH96,1) -> 3,117 | G80: =ROUND([1]Lastfluss!B96,1) -> 257 | H80: =ROUND([1]Lastfluss!CI96,1) -> 3,163 | I80: =ROUND([1]Lastfluss!AL96,1) -> 0 | J80: =ROUND([1]Lastfluss!BD96,1) -> 31 | K80: =ROUND([1]Lastfluss!BV96,1) -> 3,419 | L80: =ROUND([1]Lastfluss!AU96,1) -> 1,987 | M80: =ROUND([1]Lastfluss!BM96,1) -> 3,594 | N80: =ROUND([1]Lastfluss!CA96,1) -> 67
A81: =[1]Lastfluss!A97 -> 2021-01-01T17:45:00 | B81: =ROUND([1]Lastfluss!CJ97,1) -> -33 | C81: =ROUND([1]Lastfluss!AW97,1) -> 1,002 | D81: =ROUND([1]Lastfluss!BO97,1) -> 3,630 | E81: =ROUND([1]Lastfluss!CD97,1) -> 3,393 | F81: =ROUND([1]Lastfluss!CH97,1) -> 3,165 | G81: =ROUND([1]Lastfluss!B97,1) -> 250 | H81: =ROUND([1]Lastfluss!CI97,1) -> 3,199 | I81: =ROUND([1]Lastfluss!AL97,1) -> 0 | J81: =ROUND([1]Lastfluss!BD97,1) -> 477 | K81: =ROUND([1]Lastfluss!BV97,1) -> 3,477 | L81: =ROUND([1]Lastfluss!AU97,1) -> 1,995 | M81: =ROUND([1]Lastfluss!BM97,1) -> 3,206 | N81: =ROUND([1]Lastfluss!CA97,1) -> 67
A82: =[1]Lastfluss!A98 -> 2021-01-01T18:00:00 | B82: =ROUND([1]Lastfluss!CJ98,1) -> -39 | C82: =ROUND([1]Lastfluss!AW98,1) -> 636 | D82: =ROUND([1]Lastfluss!BO98,1) -> 3,744 | E82: =ROUND([1]Lastfluss!CD98,1) -> 3,504 | F82: =ROUND([1]Lastfluss!CH98,1) -> 3,262 | G82: =ROUND([1]Lastfluss!B98,1) -> 268 | H82: =ROUND([1]Lastfluss!CI98,1) -> 3,301 | I82: =ROUND([1]Lastfluss!AL98,1) -> 0 | J82: =ROUND([1]Lastfluss!BD98,1) -> 124 | K82: =ROUND([1]Lastfluss!BV98,1) -> 3,595 | L82: =ROUND([1]Lastfluss!AU98,1) -> 1,986 | M82: =ROUND([1]Lastfluss!BM98,1) -> 3,674 | N82: =ROUND([1]Lastfluss!CA98,1) -> 67
A83: =[1]Lastfluss!A99 -> 2021-01-01T18:15:00 | B83: =ROUND([1]Lastfluss!CJ99,1) -> -39 | C83: =ROUND([1]Lastfluss!AW99,1) -> 638 | D83: =ROUND([1]Lastfluss!BO99,1) -> 3,710 | E83: =ROUND([1]Lastfluss!CD99,1) -> 3,478 | F83: =ROUND([1]Lastfluss!CH99,1) -> 3,247 | G83: =ROUND([1]Lastfluss!B99,1) -> 265 | H83: =ROUND([1]Lastfluss!CI99,1) -> 3,286 | I83: =ROUND([1]Lastfluss!AL99,1) -> 0 | J83: =ROUND([1]Lastfluss!BD99,1) -> 74 | K83: =ROUND([1]Lastfluss!BV99,1) -> 3,569 | L83: =ROUND([1]Lastfluss!AU99,1) -> 1,982 | M83: =ROUND([1]Lastfluss!BM99,1) -> 3,690 | N83: =ROUND([1]Lastfluss!CA99,1) -> 66
A84: =[1]Lastfluss!A100 -> 2021-01-01T18:30:00 | B84: =ROUND([1]Lastfluss!CJ100,1) -> -15 | C84: =ROUND([1]Lastfluss!AW100,1) -> 1,884 | D84: =ROUND([1]Lastfluss!BO100,1) -> 3,661 | E84: =ROUND([1]Lastfluss!CD100,1) -> 3,430 | F84: =ROUND([1]Lastfluss!CH100,1) -> 3,207 | G84: =ROUND([1]Lastfluss!B100,1) -> 234 | H84: =ROUND([1]Lastfluss!CI100,1) -> 3,222 | I84: =ROUND([1]Lastfluss!AL100,1) -> 0 | J84: =ROUND([1]Lastfluss!BD100,1) -> 1,385 | K84: =ROUND([1]Lastfluss!BV100,1) -> 3,518 | L84: =ROUND([1]Lastfluss!AU100,1) -> 1,984 | M84: =ROUND([1]Lastfluss!BM100,1) -> 2,330 | N84: =ROUND([1]Lastfluss!CA100,1) -> 67
A85: =[1]Lastfluss!A101 -> 2021-01-01T18:45:00 | B85: =ROUND([1]Lastfluss!CJ101,1) -> -15 | C85: =ROUND([1]Lastfluss!AW101,1) -> 1,985 | D85: =ROUND([1]Lastfluss!BO101,1) -> 3,611 | E85: =ROUND([1]Lastfluss!CD101,1) -> 3,388 | F85: =ROUND([1]Lastfluss!CH101,1) -> 3,177 | G85: =ROUND([1]Lastfluss!B101,1) -> 230 | H85: =ROUND([1]Lastfluss!CI101,1) -> 3,192 | I85: =ROUND([1]Lastfluss!AL101,1) -> 18 | J85: =ROUND([1]Lastfluss!BD101,1) -> 1,480 | K85: =ROUND([1]Lastfluss!BV101,1) -> 3,472 | L85: =ROUND([1]Lastfluss!AU101,1) -> 1,993 | M85: =ROUND([1]Lastfluss!BM101,1) -> 2,184 | N85: =ROUND([1]Lastfluss!CA101,1) -> 67
A86: =[1]Lastfluss!A102 -> 2021-01-01T19:00:00 | B86: =ROUND([1]Lastfluss!CJ102,1) -> -16 | C86: =ROUND([1]Lastfluss!AW102,1) -> 2,173 | D86: =ROUND([1]Lastfluss!BO102,1) -> 3,545 | E86: =ROUND([1]Lastfluss!CD102,1) -> 3,335 | F86: =ROUND([1]Lastfluss!CH102,1) -> 3,128 | G86: =ROUND([1]Lastfluss!B102,1) -> 229 | H86: =ROUND([1]Lastfluss!CI102,1) -> 3,144 | I86: =ROUND([1]Lastfluss!AL102,1) -> 194 | J86: =ROUND([1]Lastfluss!BD102,1) -> 1,639 | K86: =ROUND([1]Lastfluss!BV102,1) -> 3,415 | L86: =ROUND([1]Lastfluss!AU102,1) -> 2,008 | M86: =ROUND([1]Lastfluss!BM102,1) -> 1,958 | N86: =ROUND([1]Lastfluss!CA102,1) -> 67
A87: =[1]Lastfluss!A103 -> 2021-01-01T19:15:00 | B87: =ROUND([1]Lastfluss!CJ103,1) -> -17 | C87: =ROUND([1]Lastfluss!AW103,1) -> 1,935 | D87: =ROUND([1]Lastfluss!BO103,1) -> 3,558 | E87: =ROUND([1]Lastfluss!CD103,1) -> 3,343 | F87: =ROUND([1]Lastfluss!CH103,1) -> 3,147 | G87: =ROUND([1]Lastfluss!B103,1) -> 227 | H87: =ROUND([1]Lastfluss!CI103,1) -> 3,164 | I87: =ROUND([1]Lastfluss!AL103,1) -> 0 | J87: =ROUND([1]Lastfluss!BD103,1) -> 1,438 | K87: =ROUND([1]Lastfluss!BV103,1) -> 3,423 | L87: =ROUND([1]Lastfluss!AU103,1) -> 2,016 | M87: =ROUND([1]Lastfluss!BM103,1) -> 2,172 | N87: =ROUND([1]Lastfluss!CA103,1) -> 67
A88: =[1]Lastfluss!A104 -> 2021-01-01T19:30:00 | B88: =ROUND([1]Lastfluss!CJ104,1) -> -22 | C88: =ROUND([1]Lastfluss!AW104,1) -> 1,811 | D88: =ROUND([1]Lastfluss!BO104,1) -> 3,446 | E88: =ROUND([1]Lastfluss!CD104,1) -> 3,240 | F88: =ROUND([1]Lastfluss!CH104,1) -> 3,042 | G88: =ROUND([1]Lastfluss!B104,1) -> 221 | H88: =ROUND([1]Lastfluss!CI104,1) -> 3,064 | I88: =ROUND([1]Lastfluss!AL104,1) -> 0 | J88: =ROUND([1]Lastfluss!BD104,1) -> 1,314 | K88: =ROUND([1]Lastfluss!BV104,1) -> 3,313 | L88: =ROUND([1]Lastfluss!AU104,1) -> 2,020 | M88: =ROUND([1]Lastfluss!BM104,1) -> 2,183 | N88: =ROUND([1]Lastfluss!CA104,1) -> 67
A89: =[1]Lastfluss!A105 -> 2021-01-01T19:45:00 | B89: =ROUND([1]Lastfluss!CJ105,1) -> -24 | C89: =ROUND([1]Lastfluss!AW105,1) -> 1,774 | D89: =ROUND([1]Lastfluss!BO105,1) -> 3,369 | E89: =ROUND([1]Lastfluss!CD105,1) -> 3,170 | F89: =ROUND([1]Lastfluss!CH105,1) -> 2,975 | G89: =ROUND([1]Lastfluss!B105,1) -> 217 | H89: =ROUND([1]Lastfluss!CI105,1) -> 2,999 | I89: =ROUND([1]Lastfluss!AL105,1) -> 0 | J89: =ROUND([1]Lastfluss!BD105,1) -> 1,236 | K89: =ROUND([1]Lastfluss!BV105,1) -> 3,240 | L89: =ROUND([1]Lastfluss!AU105,1) -> 2,012 | M89: =ROUND([1]Lastfluss!BM105,1) -> 2,184 | N89: =ROUND([1]Lastfluss!CA105,1) -> 67
A90: =[1]Lastfluss!A106 -> 2021-01-01T20:00:00 | B90: =ROUND([1]Lastfluss!CJ106,1) -> -28 | C90: =ROUND([1]Lastfluss!AW106,1) -> 1,646 | D90: =ROUND([1]Lastfluss!BO106,1) -> 3,248 | E90: =ROUND([1]Lastfluss!CD106,1) -> 3,057 | F90: =ROUND([1]Lastfluss!CH106,1) -> 2,860 | G90: =ROUND([1]Lastfluss!B106,1) -> 211 | H90: =ROUND([1]Lastfluss!CI106,1) -> 2,888 | I90: =ROUND([1]Lastfluss!AL106,1) -> 0 | J90: =ROUND([1]Lastfluss!BD106,1) -> 1,114 | K90: =ROUND([1]Lastfluss!BV106,1) -> 3,119 | L90: =ROUND([1]Lastfluss!AU106,1) -> 2,007 | M90: =ROUND([1]Lastfluss!BM106,1) -> 2,184 | N90: =ROUND([1]Lastfluss!CA106,1) -> 67
A91: =[1]Lastfluss!A107 -> 2021-01-01T20:15:00 | B91: =ROUND([1]Lastfluss!CJ107,1) -> -29 | C91: =ROUND([1]Lastfluss!AW107,1) -> 1,622 | D91: =ROUND([1]Lastfluss!BO107,1) -> 3,221 | E91: =ROUND([1]Lastfluss!CD107,1) -> 3,028 | F91: =ROUND([1]Lastfluss!CH107,1) -> 2,834 | G91: =ROUND([1]Lastfluss!B107,1) -> 209 | H91: =ROUND([1]Lastfluss!CI107,1) -> 2,863 | I91: =ROUND([1]Lastfluss!AL107,1) -> 0 | J91: =ROUND([1]Lastfluss!BD107,1) -> 1,087 | K91: =ROUND([1]Lastfluss!BV107,1) -> 3,088 | L91: =ROUND([1]Lastfluss!AU107,1) -> 2,000 | M91: =ROUND([1]Lastfluss!BM107,1) -> 2,183 | N91: =ROUND([1]Lastfluss!CA107,1) -> 67
A92: =[1]Lastfluss!A108 -> 2021-01-01T20:30:00 | B92: =ROUND([1]Lastfluss!CJ108,1) -> -20 | C92: =ROUND([1]Lastfluss!AW108,1) -> 1,995 | D92: =ROUND([1]Lastfluss!BO108,1) -> 3,145 | E92: =ROUND([1]Lastfluss!CD108,1) -> 2,949 | F92: =ROUND([1]Lastfluss!CH108,1) -> 2,762 | G92: =ROUND([1]Lastfluss!B108,1) -> 197 | H92: =ROUND([1]Lastfluss!CI108,1) -> 2,782 | I92: =ROUND([1]Lastfluss!AL108,1) -> 22 | J92: =ROUND([1]Lastfluss!BD108,1) -> 1,505 | K92: =ROUND([1]Lastfluss!BV108,1) -> 3,004 | L92: =ROUND([1]Lastfluss!AU108,1) -> 2,000 | M92: =ROUND([1]Lastfluss!BM108,1) -> 1,688 | N92: =ROUND([1]Lastfluss!CA108,1) -> 67
A93: =[1]Lastfluss!A109 -> 2021-01-01T20:45:00 | B93: =ROUND([1]Lastfluss!CJ109,1) -> -21 | C93: =ROUND([1]Lastfluss!AW109,1) -> 2,111 | D93: =ROUND([1]Lastfluss!BO109,1) -> 3,079 | E93: =ROUND([1]Lastfluss!CD109,1) -> 2,888 | F93: =ROUND([1]Lastfluss!CH109,1) -> 2,700 | G93: =ROUND([1]Lastfluss!B109,1) -> 195 | H93: =ROUND([1]Lastfluss!CI109,1) -> 2,721 | I93: =ROUND([1]Lastfluss!AL109,1) -> 122 | J93: =ROUND([1]Lastfluss!BD109,1) -> 1,632 | K93: =ROUND([1]Lastfluss!BV109,1) -> 2,940 | L93: =ROUND([1]Lastfluss!AU109,1) -> 2,017 | M93: =ROUND([1]Lastfluss!BM109,1) -> 1,495 | N93: =ROUND([1]Lastfluss!CA109,1) -> 67
A94: =[1]Lastfluss!A110 -> 2021-01-01T21:00:00 | B94: =ROUND([1]Lastfluss!CJ110,1) -> -21 | C94: =ROUND([1]Lastfluss!AW110,1) -> 2,027 | D94: =ROUND([1]Lastfluss!BO110,1) -> 3,005 | E94: =ROUND([1]Lastfluss!CD110,1) -> 2,819 | F94: =ROUND([1]Lastfluss!CH110,1) -> 2,621 | G94: =ROUND([1]Lastfluss!B110,1) -> 189 | H94: =ROUND([1]Lastfluss!CI110,1) -> 2,642 | I94: =ROUND([1]Lastfluss!AL110,1) -> 42 | J94: =ROUND([1]Lastfluss!BD110,1) -> 1,557 | K94: =ROUND([1]Lastfluss!BV110,1) -> 2,866 | L94: =ROUND([1]Lastfluss!AU110,1) -> 2,012 | M94: =ROUND([1]Lastfluss!BM110,1) -> 1,496 | N94: =ROUND([1]Lastfluss!CA110,1) -> 68
A95: =[1]Lastfluss!A111 -> 2021-01-01T21:15:00 | B95: =ROUND([1]Lastfluss!CJ111,1) -> -23 | C95: =ROUND([1]Lastfluss!AW111,1) -> 1,941 | D95: =ROUND([1]Lastfluss!BO111,1) -> 2,963 | E95: =ROUND([1]Lastfluss!CD111,1) -> 2,776 | F95: =ROUND([1]Lastfluss!CH111,1) -> 2,583 | G95: =ROUND([1]Lastfluss!B111,1) -> 187 | H95: =ROUND([1]Lastfluss!CI111,1) -> 2,607 | I95: =ROUND([1]Lastfluss!AL111,1) -> 0 | J95: =ROUND([1]Lastfluss!BD111,1) -> 1,515 | K95: =ROUND([1]Lastfluss!BV111,1) -> 2,821 | L95: =ROUND([1]Lastfluss!AU111,1) -> 2,015 | M95: =ROUND([1]Lastfluss!BM111,1) -> 1,496 | N95: =ROUND([1]Lastfluss!CA111,1) -> 67
A96: =[1]Lastfluss!A112 -> 2021-01-01T21:30:00 | B96: =ROUND([1]Lastfluss!CJ112,1) -> -29 | C96: =ROUND([1]Lastfluss!AW112,1) -> 1,812 | D96: =ROUND([1]Lastfluss!BO112,1) -> 2,842 | E96: =ROUND([1]Lastfluss!CD112,1) -> 2,662 | F96: =ROUND([1]Lastfluss!CH112,1) -> 2,467 | G96: =ROUND([1]Lastfluss!B112,1) -> 182 | H96: =ROUND([1]Lastfluss!CI112,1) -> 2,496 | I96: =ROUND([1]Lastfluss!AL112,1) -> 0 | J96: =ROUND([1]Lastfluss!BD112,1) -> 1,393 | K96: =ROUND([1]Lastfluss!BV112,1) -> 2,700 | L96: =ROUND([1]Lastfluss!AU112,1) -> 2,026 | M96: =ROUND([1]Lastfluss!BM112,1) -> 1,496 | N96: =ROUND([1]Lastfluss!CA112,1) -> 68
A97: =[1]Lastfluss!A113 -> 2021-01-01T21:45:00 | B97: =ROUND([1]Lastfluss!CJ113,1) -> -30 | C97: =ROUND([1]Lastfluss!AW113,1) -> 1,779 | D97: =ROUND([1]Lastfluss!BO113,1) -> 2,810 | E97: =ROUND([1]Lastfluss!CD113,1) -> 2,636 | F97: =ROUND([1]Lastfluss!CH113,1) -> 2,423 | G97: =ROUND([1]Lastfluss!B113,1) -> 181 | H97: =ROUND([1]Lastfluss!CI113,1) -> 2,452 | I97: =ROUND([1]Lastfluss!AL113,1) -> 0 | J97: =ROUND([1]Lastfluss!BD113,1) -> 1,360 | K97: =ROUND([1]Lastfluss!BV113,1) -> 2,673 | L97: =ROUND([1]Lastfluss!AU113,1) -> 2,031 | M97: =ROUND([1]Lastfluss!BM113,1) -> 1,496 | N97: =ROUND([1]Lastfluss!CA113,1) -> 67
A98: =[1]Lastfluss!A114 -> 2021-01-01T22:00:00 | B98: =ROUND([1]Lastfluss!CJ114,1) -> -37 | C98: =ROUND([1]Lastfluss!AW114,1) -> 1,518 | D98: =ROUND([1]Lastfluss!BO114,1) -> 2,768 | E98: =ROUND([1]Lastfluss!CD114,1) -> 2,592 | F98: =ROUND([1]Lastfluss!CH114,1) -> 2,378 | G98: =ROUND([1]Lastfluss!B114,1) -> 184 | H98: =ROUND([1]Lastfluss!CI114,1) -> 2,415 | I98: =ROUND([1]Lastfluss!AL114,1) -> 0 | J98: =ROUND([1]Lastfluss!BD114,1) -> 1,082 | K98: =ROUND([1]Lastfluss!BV114,1) -> 2,628 | L98: =ROUND([1]Lastfluss!AU114,1) -> 2,031 | M98: =ROUND([1]Lastfluss!BM114,1) -> 1,732 | N98: =ROUND([1]Lastfluss!CA114,1) -> 67
A99: =[1]Lastfluss!A115 -> 2021-01-01T22:15:00 | B99: =ROUND([1]Lastfluss!CJ115,1) -> -74 | C99: =ROUND([1]Lastfluss!AW115,1) -> 442 | D99: =ROUND([1]Lastfluss!BO115,1) -> 2,675 | E99: =ROUND([1]Lastfluss!CD115,1) -> 2,505 | F99: =ROUND([1]Lastfluss!CH115,1) -> 2,283 | G99: =ROUND([1]Lastfluss!B115,1) -> 228 | H99: =ROUND([1]Lastfluss!CI115,1) -> 2,357 | I99: =ROUND([1]Lastfluss!AL115,1) -> 0 | J99: =ROUND([1]Lastfluss!BD115,1) -> 0 | K99: =ROUND([1]Lastfluss!BV115,1) -> 2,536 | L99: =ROUND([1]Lastfluss!AU115,1) -> 2,501 | M99: =ROUND([1]Lastfluss!BM115,1) -> 3,202 | N99: =ROUND([1]Lastfluss!CA115,1) -> 67
A100: =[1]Lastfluss!A116 -> 2021-01-01T22:30:00 | B100: =ROUND([1]Lastfluss!CJ116,1) -> -82 | C100: =ROUND([1]Lastfluss!AW116,1) -> 397 | D100: =ROUND([1]Lastfluss!BO116,1) -> 2,610 | E100: =ROUND([1]Lastfluss!CD116,1) -> 2,439 | F100: =ROUND([1]Lastfluss!CH116,1) -> 2,217 | G100: =ROUND([1]Lastfluss!B116,1) -> 239 | H100: =ROUND([1]Lastfluss!CI116,1) -> 2,299 | I100: =ROUND([1]Lastfluss!AL116,1) -> 0 | J100: =ROUND([1]Lastfluss!BD116,1) -> 0 | K100: =ROUND([1]Lastfluss!BV116,1) -> 2,466 | L100: =ROUND([1]Lastfluss!AU116,1) -> 2,748 | M100: =ROUND([1]Lastfluss!BM116,1) -> 3,389 | N100: =ROUND([1]Lastfluss!CA116,1) -> 67
A101: =[1]Lastfluss!A117 -> 2021-01-01T22:45:00 | B101: =ROUND([1]Lastfluss!CJ117,1) -> -40 | C101: =ROUND([1]Lastfluss!AW117,1) -> 1,445 | D101: =ROUND([1]Lastfluss!BO117,1) -> 2,512 | E101: =ROUND([1]Lastfluss!CD117,1) -> 2,343 | F101: =ROUND([1]Lastfluss!CH117,1) -> 2,136 | G101: =ROUND([1]Lastfluss!B117,1) -> 170 | H101: =ROUND([1]Lastfluss!CI117,1) -> 2,176 | I101: =ROUND([1]Lastfluss!AL117,1) -> 0 | J101: =ROUND([1]Lastfluss!BD117,1) -> 1,005 | K101: =ROUND([1]Lastfluss!BV117,1) -> 2,366 | L101: =ROUND([1]Lastfluss!AU117,1) -> 2,010 | M101: =ROUND([1]Lastfluss!BM117,1) -> 1,551 | N101: =ROUND([1]Lastfluss!CA117,1) -> 67
A102: =[1]Lastfluss!A118 -> 2021-01-01T23:00:00 | B102: =ROUND([1]Lastfluss!CJ118,1) -> -39 | C102: =ROUND([1]Lastfluss!AW118,1) -> 1,513 | D102: =ROUND([1]Lastfluss!BO118,1) -> 2,435 | E102: =ROUND([1]Lastfluss!CD118,1) -> 2,278 | F102: =ROUND([1]Lastfluss!CH118,1) -> 2,080 | G102: =ROUND([1]Lastfluss!B118,1) -> 165 | H102: =ROUND([1]Lastfluss!CI118,1) -> 2,120 | I102: =ROUND([1]Lastfluss!AL118,1) -> 0 | J102: =ROUND([1]Lastfluss!BD118,1) -> 1,087 | K102: =ROUND([1]Lastfluss!BV118,1) -> 2,298 | L102: =ROUND([1]Lastfluss!AU118,1) -> 2,008 | M102: =ROUND([1]Lastfluss!BM118,1) -> 1,391 | N102: =ROUND([1]Lastfluss!CA118,1) -> 67
A103: =[1]Lastfluss!A119 -> 2021-01-01T23:15:00 | B103: =ROUND([1]Lastfluss!CJ119,1) -> -43 | C103: =ROUND([1]Lastfluss!AW119,1) -> 1,423 | D103: =ROUND([1]Lastfluss!BO119,1) -> 2,364 | E103: =ROUND([1]Lastfluss!CD119,1) -> 2,203 | F103: =ROUND([1]Lastfluss!CH119,1) -> 2,001 | G103: =ROUND([1]Lastfluss!B119,1) -> 163 | H103: =ROUND([1]Lastfluss!CI119,1) -> 2,043 | I103: =ROUND([1]Lastfluss!AL119,1) -> 0 | J103: =ROUND([1]Lastfluss!BD119,1) -> 1,015 | K103: =ROUND([1]Lastfluss!BV119,1) -> 2,219 | L103: =ROUND([1]Lastfluss!AU119,1) -> 2,007 | M103: =ROUND([1]Lastfluss!BM119,1) -> 1,391 | N103: =ROUND([1]Lastfluss!CA119,1) -> 67
A104: =[1]Lastfluss!A120 -> 2021-01-01T23:30:00 | B104: =ROUND([1]Lastfluss!CJ120,1) -> -44 | C104: =ROUND([1]Lastfluss!AW120,1) -> 1,386 | D104: =ROUND([1]Lastfluss!BO120,1) -> 2,335 | E104: =ROUND([1]Lastfluss!CD120,1) -> 2,173 | F104: =ROUND([1]Lastfluss!CH120,1) -> 1,960 | G104: =ROUND([1]Lastfluss!B120,1) -> 163 | H104: =ROUND([1]Lastfluss!CI120,1) -> 2,004 | I104: =ROUND([1]Lastfluss!AL120,1) -> 0 | J104: =ROUND([1]Lastfluss!BD120,1) -> 986 | K104: =ROUND([1]Lastfluss!BV120,1) -> 2,189 | L104: =ROUND([1]Lastfluss!AU120,1) -> 2,010 | M104: =ROUND([1]Lastfluss!BM120,1) -> 1,391 | N104: =ROUND([1]Lastfluss!CA120,1) -> 67
A105: =[1]Lastfluss!A121 -> 2021-01-01T23:45:00 | B105: =ROUND([1]Lastfluss!CJ121,1) -> -21 | C105: =ROUND([1]Lastfluss!AW121,1) -> 2,181 | D105: =ROUND([1]Lastfluss!BO121,1) -> 2,174 | E105: =ROUND([1]Lastfluss!CD121,1) -> 2,019 | F105: =ROUND([1]Lastfluss!CH121,1) -> 1,828 | G105: =ROUND([1]Lastfluss!B121,1) -> 147 | H105: =ROUND([1]Lastfluss!CI121,1) -> 1,849 | I105: =ROUND([1]Lastfluss!AL121,1) -> 200 | J105: =ROUND([1]Lastfluss!BD121,1) -> 1,765 | K105: =ROUND([1]Lastfluss!BV121,1) -> 2,028 | L105: =ROUND([1]Lastfluss!AU121,1) -> 2,010 | M105: =ROUND([1]Lastfluss!BM121,1) -> 451 | N105: =ROUND([1]Lastfluss!CA121,1) -> 67
A106: =[1]Lastfluss!A122 -> 2021-01-01 | B106: =ROUND([1]Lastfluss!CJ122,1) -> -19 | C106: =ROUND([1]Lastfluss!AW122,1) -> 2,502 | D106: =ROUND([1]Lastfluss!BO122,1) -> 2,122 | E106: =ROUND([1]Lastfluss!CD122,1) -> 1,976 | F106: =ROUND([1]Lastfluss!CH122,1) -> 1,784 | G106: =ROUND([1]Lastfluss!B122,1) -> 152 | H106: =ROUND([1]Lastfluss!CI122,1) -> 1,803 | I106: =ROUND([1]Lastfluss!AL122,1) -> 522 | J106: =ROUND([1]Lastfluss!BD122,1) -> 2,114 | K106: =ROUND([1]Lastfluss!BV122,1) -> 1,983 | L106: =ROUND([1]Lastfluss!AU122,1) -> 2,016 | M106: =ROUND([1]Lastfluss!BM122,1) -> 50 | N106: =ROUND([1]Lastfluss!CA122,1) -> 68
A107: =[1]Lastfluss!A123 -> 2021-01-02T00:15:00 | B107: =ROUND([1]Lastfluss!CJ123,1) -> -19 | C107: =ROUND([1]Lastfluss!AW123,1) -> 2,464 | D107: =ROUND([1]Lastfluss!BO123,1) -> 2,032 | E107: =ROUND([1]Lastfluss!CD123,1) -> 1,881 | F107: =ROUND([1]Lastfluss!CH123,1) -> 1,695 | G107: =ROUND([1]Lastfluss!B123,1) -> 147 | H107: =ROUND([1]Lastfluss!CI123,1) -> 1,715 | I107: =ROUND([1]Lastfluss!AL123,1) -> 473 | J107: =ROUND([1]Lastfluss!BD123,1) -> 2,073 | K107: =ROUND([1]Lastfluss!BV123,1) -> 1,884 | L107: =ROUND([1]Lastfluss!AU123,1) -> 2,026 | M107: =ROUND([1]Lastfluss!BM123,1) -> 0 | N107: =ROUND([1]Lastfluss!CA123,1) -> 68
A108: =[1]Lastfluss!A124 -> 2021-01-02T00:30:00 | B108: =ROUND([1]Lastfluss!CJ124,1) -> -19 | C108: =ROUND([1]Lastfluss!AW124,1) -> 2,374 | D108: =ROUND([1]Lastfluss!BO124,1) -> 2,008 | E108: =ROUND([1]Lastfluss!CD124,1) -> 1,859 | F108: =ROUND([1]Lastfluss!CH124,1) -> 1,678 | G108: =ROUND([1]Lastfluss!B124,1) -> 144 | H108: =ROUND([1]Lastfluss!CI124,1) -> 1,696 | I108: =ROUND([1]Lastfluss!AL124,1) -> 377 | J108: =ROUND([1]Lastfluss!BD124,1) -> 2,049 | K108: =ROUND([1]Lastfluss!BV124,1) -> 1,861 | L108: =ROUND([1]Lastfluss!AU124,1) -> 2,030 | M108: =ROUND([1]Lastfluss!BM124,1) -> 0 | N108: =ROUND([1]Lastfluss!CA124,1) -> 68
A109: =[1]Lastfluss!A125 -> 2021-01-02T00:45:00 | B109: =ROUND([1]Lastfluss!CJ125,1) -> -18 | C109: =ROUND([1]Lastfluss!AW125,1) -> 2,365 | D109: =ROUND([1]Lastfluss!BO125,1) -> 1,975 | E109: =ROUND([1]Lastfluss!CD125,1) -> 1,819 | F109: =ROUND([1]Lastfluss!CH125,1) -> 1,617 | G109: =ROUND([1]Lastfluss!B125,1) -> 142 | H109: =ROUND([1]Lastfluss!CI125,1) -> 1,635 | I109: =ROUND([1]Lastfluss!AL125,1) -> 368 | J109: =ROUND([1]Lastfluss!BD125,1) -> 2,016 | K109: =ROUND([1]Lastfluss!BV125,1) -> 1,820 | L109: =ROUND([1]Lastfluss!AU125,1) -> 2,030 | M109: =ROUND([1]Lastfluss!BM125,1) -> 0 | N109: =ROUND([1]Lastfluss!CA125,1) -> 68
A110: =[1]Lastfluss!A126 -> 2021-01-02T01:00:00 | B110: =ROUND([1]Lastfluss!CJ126,1) -> -18 | C110: =ROUND([1]Lastfluss!AW126,1) -> 2,328 | D110: =ROUND([1]Lastfluss!BO126,1) -> 1,981 | E110: =ROUND([1]Lastfluss!CD126,1) -> 1,831 | F110: =ROUND([1]Lastfluss!CH126,1) -> 1,645 | G110: =ROUND([1]Lastfluss!B126,1) -> 142 | H110: =ROUND([1]Lastfluss!CI126,1) -> 1,663 | I110: =ROUND([1]Lastfluss!AL126,1) -> 330 | J110: =ROUND([1]Lastfluss!BD126,1) -> 2,021 | K110: =ROUND([1]Lastfluss!BV126,1) -> 1,833 | L110: =ROUND([1]Lastfluss!AU126,1) -> 2,030 | M110: =ROUND([1]Lastfluss!BM126,1) -> 0 | N110: =ROUND([1]Lastfluss!CA126,1) -> 67
A111: =[1]Lastfluss!A127 -> 2021-01-02T01:15:00 | B111: =ROUND([1]Lastfluss!CJ127,1) -> -18 | C111: =ROUND([1]Lastfluss!AW127,1) -> 2,320 | D111: =ROUND([1]Lastfluss!BO127,1) -> 1,951 | E111: =ROUND([1]Lastfluss!CD127,1) -> 1,801 | F111: =ROUND([1]Lastfluss!CH127,1) -> 1,617 | G111: =ROUND([1]Lastfluss!B127,1) -> 141 | H111: =ROUND([1]Lastfluss!CI127,1) -> 1,634 | I111: =ROUND([1]Lastfluss!AL127,1) -> 330 | J111: =ROUND([1]Lastfluss!BD127,1) -> 1,992 | K111: =ROUND([1]Lastfluss!BV127,1) -> 1,803 | L111: =ROUND([1]Lastfluss!AU127,1) -> 2,022 | M111: =ROUND([1]Lastfluss!BM127,1) -> 0 | N111: =ROUND([1]Lastfluss!CA127,1) -> 66
A112: =[1]Lastfluss!A128 -> 2021-01-02T01:30:00 | B112: =ROUND([1]Lastfluss!CJ128,1) -> -18 | C112: =ROUND([1]Lastfluss!AW128,1) -> 2,271 | D112: =ROUND([1]Lastfluss!BO128,1) -> 1,959 | E112: =ROUND([1]Lastfluss!CD128,1) -> 1,807 | F112: =ROUND([1]Lastfluss!CH128,1) -> 1,627 | G112: =ROUND([1]Lastfluss!B128,1) -> 140 | H112: =ROUND([1]Lastfluss!CI128,1) -> 1,645 | I112: =ROUND([1]Lastfluss!AL128,1) -> 287 | J112: =ROUND([1]Lastfluss!BD128,1) -> 1,999 | K112: =ROUND([1]Lastfluss!BV128,1) -> 1,808 | L112: =ROUND([1]Lastfluss!AU128,1) -> 2,015 | M112: =ROUND([1]Lastfluss!BM128,1) -> 0 | N112: =ROUND([1]Lastfluss!CA128,1) -> 68
A113: =[1]Lastfluss!A129 -> 2021-01-02T01:45:00 | B113: =ROUND([1]Lastfluss!CJ129,1) -> -18 | C113: =ROUND([1]Lastfluss!AW129,1) -> 2,264 | D113: =ROUND([1]Lastfluss!BO129,1) -> 1,916 | E113: =ROUND([1]Lastfluss!CD129,1) -> 1,767 | F113: =ROUND([1]Lastfluss!CH129,1) -> 1,587 | G113: =ROUND([1]Lastfluss!B129,1) -> 138 | H113: =ROUND([1]Lastfluss!CI129,1) -> 1,604 | I113: =ROUND([1]Lastfluss!AL129,1) -> 283 | J113: =ROUND([1]Lastfluss!BD129,1) -> 1,957 | K113: =ROUND([1]Lastfluss!BV129,1) -> 1,766 | L113: =ROUND([1]Lastfluss!AU129,1) -> 2,012 | M113: =ROUND([1]Lastfluss!BM129,1) -> 0 | N113: =ROUND([1]Lastfluss!CA129,1) -> 67
A114: =[1]Lastfluss!A130 -> 2021-01-02T02:00:00 | B114: =ROUND([1]Lastfluss!CJ130,1) -> -18 | C114: =ROUND([1]Lastfluss!AW130,1) -> 2,268 | D114: =ROUND([1]Lastfluss!BO130,1) -> 1,878 | E114: =ROUND([1]Lastfluss!CD130,1) -> 1,727 | F114: =ROUND([1]Lastfluss!CH130,1) -> 1,540 | G114: =ROUND([1]Lastfluss!B130,1) -> 137 | H114: =ROUND([1]Lastfluss!CI130,1) -> 1,558 | I114: =ROUND([1]Lastfluss!AL130,1) -> 283 | J114: =ROUND([1]Lastfluss!BD130,1) -> 1,918 | K114: =ROUND([1]Lastfluss!BV130,1) -> 1,725 | L114: =ROUND([1]Lastfluss!AU130,1) -> 2,016 | M114: =ROUND([1]Lastfluss!BM130,1) -> 0 | N114: =ROUND([1]Lastfluss!CA130,1) -> 67
A115: =[1]Lastfluss!A131 -> 2021-01-02T02:15:00 | B115: =ROUND([1]Lastfluss!CJ131,1) -> -18 | C115: =ROUND([1]Lastfluss!AW131,1) -> 2,257 | D115: =ROUND([1]Lastfluss!BO131,1) -> 1,907 | E115: =ROUND([1]Lastfluss!CD131,1) -> 1,760 | F115: =ROUND([1]Lastfluss!CH131,1) -> 1,585 | G115: =ROUND([1]Lastfluss!B131,1) -> 138 | H115: =ROUND([1]Lastfluss!CI131,1) -> 1,603 | I115: =ROUND([1]Lastfluss!AL131,1) -> 272 | J115: =ROUND([1]Lastfluss!BD131,1) -> 1,947 | K115: =ROUND([1]Lastfluss!BV131,1) -> 1,759 | L115: =ROUND([1]Lastfluss!AU131,1) -> 2,016 | M115: =ROUND([1]Lastfluss!BM131,1) -> 0 | N115: =ROUND([1]Lastfluss!CA131,1) -> 67
A116: =[1]Lastfluss!A132 -> 2021-01-02T02:30:00 | B116: =ROUND([1]Lastfluss!CJ132,1) -> -18 | C116: =ROUND([1]Lastfluss!AW132,1) -> 2,215 | D116: =ROUND([1]Lastfluss!BO132,1) -> 1,882 | E116: =ROUND([1]Lastfluss!CD132,1) -> 1,736 | F116: =ROUND([1]Lastfluss!CH132,1) -> 1,541 | G116: =ROUND([1]Lastfluss!B132,1) -> 136 | H116: =ROUND([1]Lastfluss!CI132,1) -> 1,559 | I116: =ROUND([1]Lastfluss!AL132,1) -> 218 | J116: =ROUND([1]Lastfluss!BD132,1) -> 1,922 | K116: =ROUND([1]Lastfluss!BV132,1) -> 1,735 | L116: =ROUND([1]Lastfluss!AU132,1) -> 2,027 | M116: =ROUND([1]Lastfluss!BM132,1) -> 0 | N116: =ROUND([1]Lastfluss!CA132,1) -> 66
A117: =[1]Lastfluss!A133 -> 2021-01-02T02:45:00 | B117: =ROUND([1]Lastfluss!CJ133,1) -> -18 | C117: =ROUND([1]Lastfluss!AW133,1) -> 2,235 | D117: =ROUND([1]Lastfluss!BO133,1) -> 1,889 | E117: =ROUND([1]Lastfluss!CD133,1) -> 1,744 | F117: =ROUND([1]Lastfluss!CH133,1) -> 1,556 | G117: =ROUND([1]Lastfluss!B133,1) -> 137 | H117: =ROUND([1]Lastfluss!CI133,1) -> 1,574 | I117: =ROUND([1]Lastfluss!AL133,1) -> 234 | J117: =ROUND([1]Lastfluss!BD133,1) -> 1,929 | K117: =ROUND([1]Lastfluss!BV133,1) -> 1,743 | L117: =ROUND([1]Lastfluss!AU133,1) -> 2,032 | M117: =ROUND([1]Lastfluss!BM133,1) -> 0 | N117: =ROUND([1]Lastfluss!CA133,1) -> 66
A118: =[1]Lastfluss!A134 -> 2021-01-02T03:00:00 | B118: =ROUND([1]Lastfluss!CJ134,1) -> -18 | C118: =ROUND([1]Lastfluss!AW134,1) -> 2,248 | D118: =ROUND([1]Lastfluss!BO134,1) -> 1,900 | E118: =ROUND([1]Lastfluss!CD134,1) -> 1,753 | F118: =ROUND([1]Lastfluss!CH134,1) -> 1,559 | G118: =ROUND([1]Lastfluss!B134,1) -> 137 | H118: =ROUND([1]Lastfluss!CI134,1) -> 1,577 | I118: =ROUND([1]Lastfluss!AL134,1) -> 247 | J118: =ROUND([1]Lastfluss!BD134,1) -> 1,940 | K118: =ROUND([1]Lastfluss!BV134,1) -> 1,753 | L118: =ROUND([1]Lastfluss!AU134,1) -> 2,032 | M118: =ROUND([1]Lastfluss!BM134,1) -> 0 | N118: =ROUND([1]Lastfluss!CA134,1) -> 67
A119: =[1]Lastfluss!A135 -> 2021-01-02T03:15:00 | B119: =ROUND([1]Lastfluss!CJ135,1) -> -19 | C119: =ROUND([1]Lastfluss!AW135,1) -> 2,381 | D119: =ROUND([1]Lastfluss!BO135,1) -> 1,979 | E119: =ROUND([1]Lastfluss!CD135,1) -> 1,796 | F119: =ROUND([1]Lastfluss!CH135,1) -> 1,597 | G119: =ROUND([1]Lastfluss!B135,1) -> 142 | H119: =ROUND([1]Lastfluss!CI135,1) -> 1,615 | I119: =ROUND([1]Lastfluss!AL135,1) -> 383 | J119: =ROUND([1]Lastfluss!BD135,1) -> 2,020 | K119: =ROUND([1]Lastfluss!BV135,1) -> 1,797 | L119: =ROUND([1]Lastfluss!AU135,1) -> 2,032 | M119: =ROUND([1]Lastfluss!BM135,1) -> 0 | N119: =ROUND([1]Lastfluss!CA135,1) -> 67
A120: =[1]Lastfluss!A136 -> 2021-01-02T03:30:00 | B120: =ROUND([1]Lastfluss!CJ136,1) -> -19 | C120: =ROUND([1]Lastfluss!AW136,1) -> 2,371 | D120: =ROUND([1]Lastfluss!BO136,1) -> 1,963 | E120: =ROUND([1]Lastfluss!CD136,1) -> 1,777 | F120: =ROUND([1]Lastfluss!CH136,1) -> 1,577 | G120: =ROUND([1]Lastfluss!B136,1) -> 141 | H120: =ROUND([1]Lastfluss!CI136,1) -> 1,596 | I120: =ROUND([1]Lastfluss!AL136,1) -> 378 | J120: =ROUND([1]Lastfluss!BD136,1) -> 2,003 | K120: =ROUND([1]Lastfluss!BV136,1) -> 1,777 | L120: =ROUND([1]Lastfluss!AU136,1) -> 2,026 | M120: =ROUND([1]Lastfluss!BM136,1) -> 0 | N120: =ROUND([1]Lastfluss!CA136,1) -> 67
A121: =[1]Lastfluss!A137 -> 2021-01-02T03:45:00 | B121: =ROUND([1]Lastfluss!CJ137,1) -> -19 | C121: =ROUND([1]Lastfluss!AW137,1) -> 2,385 | D121: =ROUND([1]Lastfluss!BO137,1) -> 1,982 | E121: =ROUND([1]Lastfluss!CD137,1) -> 1,816 | F121: =ROUND([1]Lastfluss!CH137,1) -> 1,615 | G121: =ROUND([1]Lastfluss!B137,1) -> 143 | H121: =ROUND([1]Lastfluss!CI137,1) -> 1,633 | I121: =ROUND([1]Lastfluss!AL137,1) -> 396 | J121: =ROUND([1]Lastfluss!BD137,1) -> 2,023 | K121: =ROUND([1]Lastfluss!BV137,1) -> 1,816 | L121: =ROUND([1]Lastfluss!AU137,1) -> 2,023 | M121: =ROUND([1]Lastfluss!BM137,1) -> 0 | N121: =ROUND([1]Lastfluss!CA137,1) -> 68
A122: =[1]Lastfluss!A138 -> 2021-01-02T04:00:00 | B122: =ROUND([1]Lastfluss!CJ138,1) -> -19 | C122: =ROUND([1]Lastfluss!AW138,1) -> 2,364 | D122: =ROUND([1]Lastfluss!BO138,1) -> 1,921 | E122: =ROUND([1]Lastfluss!CD138,1) -> 1,764 | F122: =ROUND([1]Lastfluss!CH138,1) -> 1,568 | G122: =ROUND([1]Lastfluss!B138,1) -> 140 | H122: =ROUND([1]Lastfluss!CI138,1) -> 1,587 | I122: =ROUND([1]Lastfluss!AL138,1) -> 382 | J122: =ROUND([1]Lastfluss!BD138,1) -> 1,961 | K122: =ROUND([1]Lastfluss!BV138,1) -> 1,764 | L122: =ROUND([1]Lastfluss!AU138,1) -> 2,016 | M122: =ROUND([1]Lastfluss!BM138,1) -> 0 | N122: =ROUND([1]Lastfluss!CA138,1) -> 67
A123: =[1]Lastfluss!A139 -> 2021-01-02T04:15:00 | B123: =ROUND([1]Lastfluss!CJ139,1) -> -19 | C123: =ROUND([1]Lastfluss!AW139,1) -> 2,407 | D123: =ROUND([1]Lastfluss!BO139,1) -> 1,972 | E123: =ROUND([1]Lastfluss!CD139,1) -> 1,797 | F123: =ROUND([1]Lastfluss!CH139,1) -> 1,597 | G123: =ROUND([1]Lastfluss!B139,1) -> 142 | H123: =ROUND([1]Lastfluss!CI139,1) -> 1,616 | I123: =ROUND([1]Lastfluss!AL139,1) -> 428 | J123: =ROUND([1]Lastfluss!BD139,1) -> 2,012 | K123: =ROUND([1]Lastfluss!BV139,1) -> 1,798 | L123: =ROUND([1]Lastfluss!AU139,1) -> 2,013 | M123: =ROUND([1]Lastfluss!BM139,1) -> 0 | N123: =ROUND([1]Lastfluss!CA139,1) -> 67
A124: =[1]Lastfluss!A140 -> 2021-01-02T04:30:00 | B124: =ROUND([1]Lastfluss!CJ140,1) -> -20 | C124: =ROUND([1]Lastfluss!AW140,1) -> 2,393 | D124: =ROUND([1]Lastfluss!BO140,1) -> 1,953 | E124: =ROUND([1]Lastfluss!CD140,1) -> 1,782 | F124: =ROUND([1]Lastfluss!CH140,1) -> 1,580 | G124: =ROUND([1]Lastfluss!B140,1) -> 141 | H124: =ROUND([1]Lastfluss!CI140,1) -> 1,600 | I124: =ROUND([1]Lastfluss!AL140,1) -> 415 | J124: =ROUND([1]Lastfluss!BD140,1) -> 1,993 | K124: =ROUND([1]Lastfluss!BV140,1) -> 1,782 | L124: =ROUND([1]Lastfluss!AU140,1) -> 2,011 | M124: =ROUND([1]Lastfluss!BM140,1) -> 0 | N124: =ROUND([1]Lastfluss!CA140,1) -> 67
A125: =[1]Lastfluss!A141 -> 2021-01-02T04:45:00 | B125: =ROUND([1]Lastfluss!CJ141,1) -> -18 | C125: =ROUND([1]Lastfluss!AW141,1) -> 2,375 | D125: =ROUND([1]Lastfluss!BO141,1) -> 1,979 | E125: =ROUND([1]Lastfluss!CD141,1) -> 1,822 | F125: =ROUND([1]Lastfluss!CH141,1) -> 1,621 | G125: =ROUND([1]Lastfluss!B141,1) -> 143 | H125: =ROUND([1]Lastfluss!CI141,1) -> 1,640 | I125: =ROUND([1]Lastfluss!AL141,1) -> 385 | J125: =ROUND([1]Lastfluss!BD141,1) -> 2,020 | K125: =ROUND([1]Lastfluss!BV141,1) -> 1,824 | L125: =ROUND([1]Lastfluss!AU141,1) -> 2,023 | M125: =ROUND([1]Lastfluss!BM141,1) -> 0 | N125: =ROUND([1]Lastfluss!CA141,1) -> 67
A126: =[1]Lastfluss!A142 -> 2021-01-02T05:00:00 | B126: =ROUND([1]Lastfluss!CJ142,1) -> -18 | C126: =ROUND([1]Lastfluss!AW142,1) -> 2,399 | D126: =ROUND([1]Lastfluss!BO142,1) -> 1,979 | E126: =ROUND([1]Lastfluss!CD142,1) -> 1,814 | F126: =ROUND([1]Lastfluss!CH142,1) -> 1,605 | G126: =ROUND([1]Lastfluss!B142,1) -> 143 | H126: =ROUND([1]Lastfluss!CI142,1) -> 1,623 | I126: =ROUND([1]Lastfluss!AL142,1) -> 404 | J126: =ROUND([1]Lastfluss!BD142,1) -> 2,020 | K126: =ROUND([1]Lastfluss!BV142,1) -> 1,815 | L126: =ROUND([1]Lastfluss!AU142,1) -> 2,028 | M126: =ROUND([1]Lastfluss!BM142,1) -> 0 | N126: =ROUND([1]Lastfluss!CA142,1) -> 67
A127: =[1]Lastfluss!A143 -> 2021-01-02T05:15:00 | B127: =ROUND([1]Lastfluss!CJ143,1) -> -18 | C127: =ROUND([1]Lastfluss!AW143,1) -> 2,482 | D127: =ROUND([1]Lastfluss!BO143,1) -> 2,063 | E127: =ROUND([1]Lastfluss!CD143,1) -> 1,895 | F127: =ROUND([1]Lastfluss!CH143,1) -> 1,660 | G127: =ROUND([1]Lastfluss!B143,1) -> 148 | H127: =ROUND([1]Lastfluss!CI143,1) -> 1,678 | I127: =ROUND([1]Lastfluss!AL143,1) -> 494 | J127: =ROUND([1]Lastfluss!BD143,1) -> 2,104 | K127: =ROUND([1]Lastfluss!BV143,1) -> 1,898 | L127: =ROUND([1]Lastfluss!AU143,1) -> 2,023 | M127: =ROUND([1]Lastfluss!BM143,1) -> 0 | N127: =ROUND([1]Lastfluss!CA143,1) -> 68
A128: =[1]Lastfluss!A144 -> 2021-01-02T05:30:00 | B128: =ROUND([1]Lastfluss!CJ144,1) -> -18 | C128: =ROUND([1]Lastfluss!AW144,1) -> 2,512 | D128: =ROUND([1]Lastfluss!BO144,1) -> 2,069 | E128: =ROUND([1]Lastfluss!CD144,1) -> 1,892 | F128: =ROUND([1]Lastfluss!CH144,1) -> 1,647 | G128: =ROUND([1]Lastfluss!B144,1) -> 149 | H128: =ROUND([1]Lastfluss!CI144,1) -> 1,665 | I128: =ROUND([1]Lastfluss!AL144,1) -> 526 | J128: =ROUND([1]Lastfluss!BD144,1) -> 2,110 | K128: =ROUND([1]Lastfluss!BV144,1) -> 1,897 | L128: =ROUND([1]Lastfluss!AU144,1) -> 2,023 | M128: =ROUND([1]Lastfluss!BM144,1) -> 0 | N128: =ROUND([1]Lastfluss!CA144,1) -> 67
A129: =[1]Lastfluss!A145 -> 2021-01-02T05:45:00 | B129: =ROUND([1]Lastfluss!CJ145,1) -> -18 | C129: =ROUND([1]Lastfluss!AW145,1) -> 2,583 | D129: =ROUND([1]Lastfluss!BO145,1) -> 2,099 | E129: =ROUND([1]Lastfluss!CD145,1) -> 1,933 | F129: =ROUND([1]Lastfluss!CH145,1) -> 1,646 | G129: =ROUND([1]Lastfluss!B145,1) -> 152 | H129: =ROUND([1]Lastfluss!CI145,1) -> 1,664 | I129: =ROUND([1]Lastfluss!AL145,1) -> 604 | J129: =ROUND([1]Lastfluss!BD145,1) -> 2,141 | K129: =ROUND([1]Lastfluss!BV145,1) -> 1,938 | L129: =ROUND([1]Lastfluss!AU145,1) -> 2,017 | M129: =ROUND([1]Lastfluss!BM145,1) -> 0 | N129: =ROUND([1]Lastfluss!CA145,1) -> 67
A130: =[1]Lastfluss!A146 -> 2021-01-02T06:00:00 | B130: =ROUND([1]Lastfluss!CJ146,1) -> -18 | C130: =ROUND([1]Lastfluss!AW146,1) -> 2,727 | D130: =ROUND([1]Lastfluss!BO146,1) -> 2,198 | E130: =ROUND([1]Lastfluss!CD146,1) -> 1,990 | F130: =ROUND([1]Lastfluss!CH146,1) -> 1,644 | G130: =ROUND([1]Lastfluss!B146,1) -> 158 | H130: =ROUND([1]Lastfluss!CI146,1) -> 1,662 | I130: =ROUND([1]Lastfluss!AL146,1) -> 764 | J130: =ROUND([1]Lastfluss!BD146,1) -> 2,239 | K130: =ROUND([1]Lastfluss!BV146,1) -> 1,997 | L130: =ROUND([1]Lastfluss!AU146,1) -> 2,004 | M130: =ROUND([1]Lastfluss!BM146,1) -> 0 | N130: =ROUND([1]Lastfluss!CA146,1) -> 68
A131: =[1]Lastfluss!A147 -> 2021-01-02T06:15:00 | B131: =ROUND([1]Lastfluss!CJ147,1) -> -16 | C131: =ROUND([1]Lastfluss!AW147,1) -> 2,845 | D131: =ROUND([1]Lastfluss!BO147,1) -> 2,290 | E131: =ROUND([1]Lastfluss!CD147,1) -> 2,041 | F131: =ROUND([1]Lastfluss!CH147,1) -> 1,654 | G131: =ROUND([1]Lastfluss!B147,1) -> 164 | H131: =ROUND([1]Lastfluss!CI147,1) -> 1,670 | I131: =ROUND([1]Lastfluss!AL147,1) -> 876 | J131: =ROUND([1]Lastfluss!BD147,1) -> 2,332 | K131: =ROUND([1]Lastfluss!BV147,1) -> 2,051 | L131: =ROUND([1]Lastfluss!AU147,1) -> 2,013 | M131: =ROUND([1]Lastfluss!BM147,1) -> 0 | N131: =ROUND([1]Lastfluss!CA147,1) -> 67
A132: =[1]Lastfluss!A148 -> 2021-01-02T06:30:00 | B132: =ROUND([1]Lastfluss!CJ148,1) -> -16 | C132: =ROUND([1]Lastfluss!AW148,1) -> 2,810 | D132: =ROUND([1]Lastfluss!BO148,1) -> 2,274 | E132: =ROUND([1]Lastfluss!CD148,1) -> 2,018 | F132: =ROUND([1]Lastfluss!CH148,1) -> 1,628 | G132: =ROUND([1]Lastfluss!B148,1) -> 162 | H132: =ROUND([1]Lastfluss!CI148,1) -> 1,645 | I132: =ROUND([1]Lastfluss!AL148,1) -> 851 | J132: =ROUND([1]Lastfluss!BD148,1) -> 2,317 | K132: =ROUND([1]Lastfluss!BV148,1) -> 2,026 | L132: =ROUND([1]Lastfluss!AU148,1) -> 2,002 | M132: =ROUND([1]Lastfluss!BM148,1) -> 0 | N132: =ROUND([1]Lastfluss!CA148,1) -> 68
A133: =[1]Lastfluss!A149 -> 2021-01-02T06:45:00 | B133: =ROUND([1]Lastfluss!CJ149,1) -> -16 | C133: =ROUND([1]Lastfluss!AW149,1) -> 2,823 | D133: =ROUND([1]Lastfluss!BO149,1) -> 2,337 | E133: =ROUND([1]Lastfluss!CD149,1) -> 2,082 | F133: =ROUND([1]Lastfluss!CH149,1) -> 1,694 | G133: =ROUND([1]Lastfluss!B149,1) -> 165 | H133: =ROUND([1]Lastfluss!CI149,1) -> 1,710 | I133: =ROUND([1]Lastfluss!AL149,1) -> 866 | J133: =ROUND([1]Lastfluss!BD149,1) -> 2,380 | K133: =ROUND([1]Lastfluss!BV149,1) -> 2,093 | L133: =ROUND([1]Lastfluss!AU149,1) -> 2,000 | M133: =ROUND([1]Lastfluss!BM149,1) -> 0 | N133: =ROUND([1]Lastfluss!CA149,1) -> 68
A134: =[1]Lastfluss!A150 -> 2021-01-02T07:00:00 | B134: =ROUND([1]Lastfluss!CJ150,1) -> -17 | C134: =ROUND([1]Lastfluss!AW150,1) -> 2,917 | D134: =ROUND([1]Lastfluss!BO150,1) -> 2,393 | E134: =ROUND([1]Lastfluss!CD150,1) -> 2,126 | F134: =ROUND([1]Lastfluss!CH150,1) -> 1,728 | G134: =ROUND([1]Lastfluss!B150,1) -> 170 | H134: =ROUND([1]Lastfluss!CI150,1) -> 1,745 | I134: =ROUND([1]Lastfluss!AL150,1) -> 958 | J134: =ROUND([1]Lastfluss!BD150,1) -> 2,436 | K134: =ROUND([1]Lastfluss!BV150,1) -> 2,139 | L134: =ROUND([1]Lastfluss!AU150,1) -> 2,005 | M134: =ROUND([1]Lastfluss!BM150,1) -> 0 | N134: =ROUND([1]Lastfluss!CA150,1) -> 67
A135: =[1]Lastfluss!A151 -> 2021-01-02T07:15:00 | B135: =ROUND([1]Lastfluss!CJ151,1) -> -17 | C135: =ROUND([1]Lastfluss!AW151,1) -> 3,110 | D135: =ROUND([1]Lastfluss!BO151,1) -> 2,514 | E135: =ROUND([1]Lastfluss!CD151,1) -> 2,240 | F135: =ROUND([1]Lastfluss!CH151,1) -> 1,804 | G135: =ROUND([1]Lastfluss!B151,1) -> 180 | H135: =ROUND([1]Lastfluss!CI151,1) -> 1,821 | I135: =ROUND([1]Lastfluss!AL151,1) -> 1,169 | J135: =ROUND([1]Lastfluss!BD151,1) -> 2,558 | K135: =ROUND([1]Lastfluss!BV151,1) -> 2,258 | L135: =ROUND([1]Lastfluss!AU151,1) -> 1,992 | M135: =ROUND([1]Lastfluss!BM151,1) -> 0 | N135: =ROUND([1]Lastfluss!CA151,1) -> 67
A136: =[1]Lastfluss!A152 -> 2021-01-02T07:30:00 | B136: =ROUND([1]Lastfluss!CJ152,1) -> -17 | C136: =ROUND([1]Lastfluss!AW152,1) -> 3,212 | D136: =ROUND([1]Lastfluss!BO152,1) -> 2,662 | E136: =ROUND([1]Lastfluss!CD152,1) -> 2,386 | F136: =ROUND([1]Lastfluss!CH152,1) -> 1,919 | G136: =ROUND([1]Lastfluss!B152,1) -> 191 | H136: =ROUND([1]Lastfluss!CI152,1) -> 1,937 | I136: =ROUND([1]Lastfluss!AL152,1) -> 1,254 | J136: =ROUND([1]Lastfluss!BD152,1) -> 2,707 | K136: =ROUND([1]Lastfluss!BV152,1) -> 2,411 | L136: =ROUND([1]Lastfluss!AU152,1) -> 2,012 | M136: =ROUND([1]Lastfluss!BM152,1) -> 0 | N136: =ROUND([1]Lastfluss!CA152,1) -> 68
A137: =[1]Lastfluss!A153 -> 2021-01-02T07:45:00 | B137: =ROUND([1]Lastfluss!CJ153,1) -> -19 | C137: =ROUND([1]Lastfluss!AW153,1) -> 3,343 | D137: =ROUND([1]Lastfluss!BO153,1) -> 2,729 | E137: =ROUND([1]Lastfluss!CD153,1) -> 2,445 | F137: =ROUND([1]Lastfluss!CH153,1) -> 1,964 | G137: =ROUND([1]Lastfluss!B153,1) -> 198 | H137: =ROUND([1]Lastfluss!CI153,1) -> 1,983 | I137: =ROUND([1]Lastfluss!AL153,1) -> 1,428 | J137: =ROUND([1]Lastfluss!BD153,1) -> 2,775 | K137: =ROUND([1]Lastfluss!BV153,1) -> 2,472 | L137: =ROUND([1]Lastfluss!AU153,1) -> 1,973 | M137: =ROUND([1]Lastfluss!BM153,1) -> 0 | N137: =ROUND([1]Lastfluss!CA153,1) -> 68
A138: =[1]Lastfluss!A154 -> 2021-01-02T08:00:00 | B138: =ROUND([1]Lastfluss!CJ154,1) -> -18 | C138: =ROUND([1]Lastfluss!AW154,1) -> 3,370 | D138: =ROUND([1]Lastfluss!BO154,1) -> 2,739 | E138: =ROUND([1]Lastfluss!CD154,1) -> 2,463 | F138: =ROUND([1]Lastfluss!CH154,1) -> 2,008 | G138: =ROUND([1]Lastfluss!B154,1) -> 200 | H138: =ROUND([1]Lastfluss!CI154,1) -> 2,026 | I138: =ROUND([1]Lastfluss!AL154,1) -> 1,468 | J138: =ROUND([1]Lastfluss!BD154,1) -> 2,784 | K138: =ROUND([1]Lastfluss!BV154,1) -> 2,490 | L138: =ROUND([1]Lastfluss!AU154,1) -> 1,961 | M138: =ROUND([1]Lastfluss!BM154,1) -> 0 | N138: =ROUND([1]Lastfluss!CA154,1) -> 69
A139: =[1]Lastfluss!A155 -> 2021-01-02T08:15:00 | B139: =ROUND([1]Lastfluss!CJ155,1) -> -18 | C139: =ROUND([1]Lastfluss!AW155,1) -> 3,430 | D139: =ROUND([1]Lastfluss!BO155,1) -> 2,890 | E139: =ROUND([1]Lastfluss!CD155,1) -> 2,597 | F139: =ROUND([1]Lastfluss!CH155,1) -> 2,167 | G139: =ROUND([1]Lastfluss!B155,1) -> 210 | H139: =ROUND([1]Lastfluss!CI155,1) -> 2,185 | I139: =ROUND([1]Lastfluss!AL155,1) -> 1,532 | J139: =ROUND([1]Lastfluss!BD155,1) -> 2,936 | K139: =ROUND([1]Lastfluss!BV155,1) -> 2,632 | L139: =ROUND([1]Lastfluss!AU155,1) -> 1,958 | M139: =ROUND([1]Lastfluss!BM155,1) -> 0 | N139: =ROUND([1]Lastfluss!CA155,1) -> 67
A140: =[1]Lastfluss!A156 -> 2021-01-02T08:30:00 | B140: =ROUND([1]Lastfluss!CJ156,1) -> -18 | C140: =ROUND([1]Lastfluss!AW156,1) -> 3,575 | D140: =ROUND([1]Lastfluss!BO156,1) -> 2,981 | E140: =ROUND([1]Lastfluss!CD156,1) -> 2,697 | F140: =ROUND([1]Lastfluss!CH156,1) -> 2,237 | G140: =ROUND([1]Lastfluss!B156,1) -> 220 | H140: =ROUND([1]Lastfluss!CI156,1) -> 2,255 | I140: =ROUND([1]Lastfluss!AL156,1) -> 1,642 | J140: =ROUND([1]Lastfluss!BD156,1) -> 3,029 | K140: =ROUND([1]Lastfluss!BV156,1) -> 2,738 | L140: =ROUND([1]Lastfluss!AU156,1) -> 1,998 | M140: =ROUND([1]Lastfluss!BM156,1) -> 0 | N140: =ROUND([1]Lastfluss!CA156,1) -> 68
A141: =[1]Lastfluss!A157 -> 2021-01-02T08:45:00 | B141: =ROUND([1]Lastfluss!CJ157,1) -> -18 | C141: =ROUND([1]Lastfluss!AW157,1) -> 3,576 | D141: =ROUND([1]Lastfluss!BO157,1) -> 3,066 | E141: =ROUND([1]Lastfluss!CD157,1) -> 2,790 | F141: =ROUND([1]Lastfluss!CH157,1) -> 2,362 | G141: =ROUND([1]Lastfluss!B157,1) -> 226 | H141: =ROUND([1]Lastfluss!CI157,1) -> 2,380 | I141: =ROUND([1]Lastfluss!AL157,1) -> 1,658 | J141: =ROUND([1]Lastfluss!BD157,1) -> 3,114 | K141: =ROUND([1]Lastfluss!BV157,1) -> 2,835 | L141: =ROUND([1]Lastfluss!AU157,1) -> 1,982 | M141: =ROUND([1]Lastfluss!BM157,1) -> 0 | N141: =ROUND([1]Lastfluss!CA157,1) -> 67
A142: =[1]Lastfluss!A158 -> 2021-01-02T09:00:00 | B142: =ROUND([1]Lastfluss!CJ158,1) -> -18 | C142: =ROUND([1]Lastfluss!AW158,1) -> 3,702 | D142: =ROUND([1]Lastfluss!BO158,1) -> 3,136 | E142: =ROUND([1]Lastfluss!CD158,1) -> 2,855 | F142: =ROUND([1]Lastfluss!CH158,1) -> 2,443 | G142: =ROUND([1]Lastfluss!B158,1) -> 234 | H142: =ROUND([1]Lastfluss!CI158,1) -> 2,461 | I142: =ROUND([1]Lastfluss!AL158,1) -> 1,796 | J142: =ROUND([1]Lastfluss!BD158,1) -> 3,184 | K142: =ROUND([1]Lastfluss!BV158,1) -> 2,903 | L142: =ROUND([1]Lastfluss!AU158,1) -> 1,975 | M142: =ROUND([1]Lastfluss!BM158,1) -> 0 | N142: =ROUND([1]Lastfluss!CA158,1) -> 69
A143: =[1]Lastfluss!A159 -> 2021-01-02T09:15:00 | B143: =ROUND([1]Lastfluss!CJ159,1) -> -14 | C143: =ROUND([1]Lastfluss!AW159,1) -> 3,907 | D143: =ROUND([1]Lastfluss!BO159,1) -> 3,303 | E143: =ROUND([1]Lastfluss!CD159,1) -> 3,023 | F143: =ROUND([1]Lastfluss!CH159,1) -> 2,581 | G143: =ROUND([1]Lastfluss!B159,1) -> 253 | H143: =ROUND([1]Lastfluss!CI159,1) -> 2,595 | I143: =ROUND([1]Lastfluss!AL159,1) -> 2,018 | J143: =ROUND([1]Lastfluss!BD159,1) -> 3,354 | K143: =ROUND([1]Lastfluss!BV159,1) -> 3,071 | L143: =ROUND([1]Lastfluss!AU159,1) -> 1,965 | M143: =ROUND([1]Lastfluss!BM159,1) -> 0 | N143: =ROUND([1]Lastfluss!CA159,1) -> 79
A144: =[1]Lastfluss!A160 -> 2021-01-02T09:30:00 | B144: =ROUND([1]Lastfluss!CJ160,1) -> -6 | C144: =ROUND([1]Lastfluss!AW160,1) -> 3,868 | D144: =ROUND([1]Lastfluss!BO160,1) -> 3,285 | E144: =ROUND([1]Lastfluss!CD160,1) -> 3,018 | F144: =ROUND([1]Lastfluss!CH160,1) -> 2,584 | G144: =ROUND([1]Lastfluss!B160,1) -> 251 | H144: =ROUND([1]Lastfluss!CI160,1) -> 2,590 | I144: =ROUND([1]Lastfluss!AL160,1) -> 1,984 | J144: =ROUND([1]Lastfluss!BD160,1) -> 3,335 | K144: =ROUND([1]Lastfluss!BV160,1) -> 3,050 | L144: =ROUND([1]Lastfluss!AU160,1) -> 1,959 | M144: =ROUND([1]Lastfluss!BM160,1) -> 0 | N144: =ROUND([1]Lastfluss!CA160,1) -> 94
A145: =[1]Lastfluss!A161 -> 2021-01-02T09:45:00 | B145: =ROUND([1]Lastfluss!CJ161,1) -> -8 | C145: =ROUND([1]Lastfluss!AW161,1) -> 4,005 | D145: =ROUND([1]Lastfluss!BO161,1) -> 3,479 | E145: =ROUND([1]Lastfluss!CD161,1) -> 3,188 | F145: =ROUND([1]Lastfluss!CH161,1) -> 2,765 | G145: =ROUND([1]Lastfluss!B161,1) -> 268 | H145: =ROUND([1]Lastfluss!CI161,1) -> 2,772 | I145: =ROUND([1]Lastfluss!AL161,1) -> 2,118 | J145: =ROUND([1]Lastfluss!BD161,1) -> 3,531 | K145: =ROUND([1]Lastfluss!BV161,1) -> 3,239 | L145: =ROUND([1]Lastfluss!AU161,1) -> 1,966 | M145: =ROUND([1]Lastfluss!BM161,1) -> 0 | N145: =ROUND([1]Lastfluss!CA161,1) -> 86
A146: =[1]Lastfluss!A162 -> 2021-01-02T10:00:00 | B146: =ROUND([1]Lastfluss!CJ162,1) -> -5 | C146: =ROUND([1]Lastfluss!AW162,1) -> 4,116 | D146: =ROUND([1]Lastfluss!BO162,1) -> 3,550 | E146: =ROUND([1]Lastfluss!CD162,1) -> 3,267 | F146: =ROUND([1]Lastfluss!CH162,1) -> 2,822 | G146: =ROUND([1]Lastfluss!B162,1) -> 278 | H146: =ROUND([1]Lastfluss!CI162,1) -> 2,827 | I146: =ROUND([1]Lastfluss!AL162,1) -> 2,228 | J146: =ROUND([1]Lastfluss!BD162,1) -> 3,602 | K146: =ROUND([1]Lastfluss!BV162,1) -> 3,320 | L146: =ROUND([1]Lastfluss!AU162,1) -> 1,971 | M146: =ROUND([1]Lastfluss!BM162,1) -> 0 | N146: =ROUND([1]Lastfluss!CA162,1) -> 89
A147: =[1]Lastfluss!A163 -> 2021-01-02T10:15:00 | B147: =ROUND([1]Lastfluss!CJ163,1) -> -6 | C147: =ROUND([1]Lastfluss!AW163,1) -> 2,527 | D147: =ROUND([1]Lastfluss!BO163,1) -> 3,744 | E147: =ROUND([1]Lastfluss!CD163,1) -> 3,443 | F147: =ROUND([1]Lastfluss!CH163,1) -> 3,019 | G147: =ROUND([1]Lastfluss!B163,1) -> 246 | H147: =ROUND([1]Lastfluss!CI163,1) -> 3,025 | I147: =ROUND([1]Lastfluss!AL163,1) -> 588 | J147: =ROUND([1]Lastfluss!BD163,1) -> 2,000 | K147: =ROUND([1]Lastfluss!BV163,1) -> 3,517 | L147: =ROUND([1]Lastfluss!AU163,1) -> 1,976 | M147: =ROUND([1]Lastfluss!BM163,1) -> 1,798 | N147: =ROUND([1]Lastfluss!CA163,1) -> 81
A148: =[1]Lastfluss!A164 -> 2021-01-02T10:30:00 | B148: =ROUND([1]Lastfluss!CJ164,1) -> -2 | C148: =ROUND([1]Lastfluss!AW164,1) -> 2,279 | D148: =ROUND([1]Lastfluss!BO164,1) -> 3,806 | E148: =ROUND([1]Lastfluss!CD164,1) -> 3,511 | F148: =ROUND([1]Lastfluss!CH164,1) -> 3,092 | G148: =ROUND([1]Lastfluss!B164,1) -> 246 | H148: =ROUND([1]Lastfluss!CI164,1) -> 3,094 | I148: =ROUND([1]Lastfluss!AL164,1) -> 307 | J148: =ROUND([1]Lastfluss!BD164,1) -> 1,783 | K148: =ROUND([1]Lastfluss!BV164,1) -> 3,580 | L148: =ROUND([1]Lastfluss!AU164,1) -> 2,003 | M148: =ROUND([1]Lastfluss!BM164,1) -> 2,078 | N148: =ROUND([1]Lastfluss!CA164,1) -> 91
A149: =[1]Lastfluss!A165 -> 2021-01-02T10:45:00 | B149: =ROUND([1]Lastfluss!CJ165,1) -> -3 | C149: =ROUND([1]Lastfluss!AW165,1) -> 2,391 | D149: =ROUND([1]Lastfluss!BO165,1) -> 3,872 | E149: =ROUND([1]Lastfluss!CD165,1) -> 3,599 | F149: =ROUND([1]Lastfluss!CH165,1) -> 3,167 | G149: =ROUND([1]Lastfluss!B165,1) -> 255 | H149: =ROUND([1]Lastfluss!CI165,1) -> 3,170 | I149: =ROUND([1]Lastfluss!AL165,1) -> 404 | J149: =ROUND([1]Lastfluss!BD165,1) -> 1,915 | K149: =ROUND([1]Lastfluss!BV165,1) -> 3,648 | L149: =ROUND([1]Lastfluss!AU165,1) -> 2,021 | M149: =ROUND([1]Lastfluss!BM165,1) -> 2,013 | N149: =ROUND([1]Lastfluss!CA165,1) -> 117
A150: =[1]Lastfluss!A166 -> 2021-01-02T11:00:00 | B150: =ROUND([1]Lastfluss!CJ166,1) -> -20 | C150: =ROUND([1]Lastfluss!AW166,1) -> 2,228 | D150: =ROUND([1]Lastfluss!BO166,1) -> 3,851 | E150: =ROUND([1]Lastfluss!CD166,1) -> 3,588 | F150: =ROUND([1]Lastfluss!CH166,1) -> 3,189 | G150: =ROUND([1]Lastfluss!B166,1) -> 251 | H150: =ROUND([1]Lastfluss!CI166,1) -> 3,209 | I150: =ROUND([1]Lastfluss!AL166,1) -> 215 | J150: =ROUND([1]Lastfluss!BD166,1) -> 1,729 | K150: =ROUND([1]Lastfluss!BV166,1) -> 3,603 | L150: =ROUND([1]Lastfluss!AU166,1) -> 2,044 | M150: =ROUND([1]Lastfluss!BM166,1) -> 2,178 | N150: =ROUND([1]Lastfluss!CA166,1) -> 150
A151: =[1]Lastfluss!A167 -> 2021-01-02T11:15:00 | B151: =ROUND([1]Lastfluss!CJ167,1) -> -16 | C151: =ROUND([1]Lastfluss!AW167,1) -> 2,242 | D151: =ROUND([1]Lastfluss!BO167,1) -> 3,887 | E151: =ROUND([1]Lastfluss!CD167,1) -> 3,636 | F151: =ROUND([1]Lastfluss!CH167,1) -> 3,263 | G151: =ROUND([1]Lastfluss!B167,1) -> 255 | H151: =ROUND([1]Lastfluss!CI167,1) -> 3,279 | I151: =ROUND([1]Lastfluss!AL167,1) -> 232 | J151: =ROUND([1]Lastfluss!BD167,1) -> 1,749 | K151: =ROUND([1]Lastfluss!BV167,1) -> 3,645 | L151: =ROUND([1]Lastfluss!AU167,1) -> 2,041 | M151: =ROUND([1]Lastfluss!BM167,1) -> 2,194 | N151: =ROUND([1]Lastfluss!CA167,1) -> 159
A152: =[1]Lastfluss!A168 -> 2021-01-02T11:30:00 | B152: =ROUND([1]Lastfluss!CJ168,1) -> -12 | C152: =ROUND([1]Lastfluss!AW168,1) -> 2,503 | D152: =ROUND([1]Lastfluss!BO168,1) -> 4,115 | E152: =ROUND([1]Lastfluss!CD168,1) -> 3,844 | F152: =ROUND([1]Lastfluss!CH168,1) -> 3,480 | G152: =ROUND([1]Lastfluss!B168,1) -> 279 | H152: =ROUND([1]Lastfluss!CI168,1) -> 3,492 | I152: =ROUND([1]Lastfluss!AL168,1) -> 517 | J152: =ROUND([1]Lastfluss!BD168,1) -> 2,008 | K152: =ROUND([1]Lastfluss!BV168,1) -> 3,897 | L152: =ROUND([1]Lastfluss!AU168,1) -> 2,022 | M152: =ROUND([1]Lastfluss!BM168,1) -> 2,165 | N152: =ROUND([1]Lastfluss!CA168,1) -> 131
A153: =[1]Lastfluss!A169 -> 2021-01-02T11:45:00 | B153: =ROUND([1]Lastfluss!CJ169,1) -> -6 | C153: =ROUND([1]Lastfluss!AW169,1) -> 2,552 | D153: =ROUND([1]Lastfluss!BO169,1) -> 4,155 | E153: =ROUND([1]Lastfluss!CD169,1) -> 3,880 | F153: =ROUND([1]Lastfluss!CH169,1) -> 3,525 | G153: =ROUND([1]Lastfluss!B169,1) -> 284 | H153: =ROUND([1]Lastfluss!CI169,1) -> 3,531 | I153: =ROUND([1]Lastfluss!AL169,1) -> 588 | J153: =ROUND([1]Lastfluss!BD169,1) -> 2,023 | K153: =ROUND([1]Lastfluss!BV169,1) -> 3,939 | L153: =ROUND([1]Lastfluss!AU169,1) -> 2,001 | M153: =ROUND([1]Lastfluss!BM169,1) -> 2,192 | N153: =ROUND([1]Lastfluss!CA169,1) -> 128
A154: =[1]Lastfluss!A170 -> 2021-01-02T12:00:00 | B154: =ROUND([1]Lastfluss!CJ170,1) -> -7 | C154: =ROUND([1]Lastfluss!AW170,1) -> 2,606 | D154: =ROUND([1]Lastfluss!BO170,1) -> 4,232 | E154: =ROUND([1]Lastfluss!CD170,1) -> 3,943 | F154: =ROUND([1]Lastfluss!CH170,1) -> 3,581 | G154: =ROUND([1]Lastfluss!B170,1) -> 291 | H154: =ROUND([1]Lastfluss!CI170,1) -> 3,588 | I154: =ROUND([1]Lastfluss!AL170,1) -> 649 | J154: =ROUND([1]Lastfluss!BD170,1) -> 2,105 | K154: =ROUND([1]Lastfluss!BV170,1) -> 4,015 | L154: =ROUND([1]Lastfluss!AU170,1) -> 1,996 | M154: =ROUND([1]Lastfluss!BM170,1) -> 2,187 | N154: =ROUND([1]Lastfluss!CA170,1) -> 121
A155: =[1]Lastfluss!A171 -> 2021-01-02T12:15:00 | B155: =ROUND([1]Lastfluss!CJ171,1) -> -16 | C155: =ROUND([1]Lastfluss!AW171,1) -> 2,369 | D155: =ROUND([1]Lastfluss!BO171,1) -> 4,018 | E155: =ROUND([1]Lastfluss!CD171,1) -> 3,759 | F155: =ROUND([1]Lastfluss!CH171,1) -> 3,368 | G155: =ROUND([1]Lastfluss!B171,1) -> 269 | H155: =ROUND([1]Lastfluss!CI171,1) -> 3,384 | I155: =ROUND([1]Lastfluss!AL171,1) -> 373 | J155: =ROUND([1]Lastfluss!BD171,1) -> 1,880 | K155: =ROUND([1]Lastfluss!BV171,1) -> 3,794 | L155: =ROUND([1]Lastfluss!AU171,1) -> 2,029 | M155: =ROUND([1]Lastfluss!BM171,1) -> 2,195 | N155: =ROUND([1]Lastfluss!CA171,1) -> 143
A156: =[1]Lastfluss!A172 -> 2021-01-02T12:30:00 | B156: =ROUND([1]Lastfluss!CJ172,1) -> -13 | C156: =ROUND([1]Lastfluss!AW172,1) -> 2,324 | D156: =ROUND([1]Lastfluss!BO172,1) -> 3,919 | E156: =ROUND([1]Lastfluss!CD172,1) -> 3,665 | F156: =ROUND([1]Lastfluss!CH172,1) -> 3,281 | G156: =ROUND([1]Lastfluss!B172,1) -> 259 | H156: =ROUND([1]Lastfluss!CI172,1) -> 3,294 | I156: =ROUND([1]Lastfluss!AL172,1) -> 316 | J156: =ROUND([1]Lastfluss!BD172,1) -> 1,857 | K156: =ROUND([1]Lastfluss!BV172,1) -> 3,700 | L156: =ROUND([1]Lastfluss!AU172,1) -> 2,040 | M156: =ROUND([1]Lastfluss!BM172,1) -> 2,118 | N156: =ROUND([1]Lastfluss!CA172,1) -> 136
A157: =[1]Lastfluss!A173 -> 2021-01-02T12:45:00 | B157: =ROUND([1]Lastfluss!CJ173,1) -> -14 | C157: =ROUND([1]Lastfluss!AW173,1) -> 2,235 | D157: =ROUND([1]Lastfluss!BO173,1) -> 3,824 | E157: =ROUND([1]Lastfluss!CD173,1) -> 3,555 | F157: =ROUND([1]Lastfluss!CH173,1) -> 3,172 | G157: =ROUND([1]Lastfluss!B173,1) -> 248 | H157: =ROUND([1]Lastfluss!CI173,1) -> 3,186 | I157: =ROUND([1]Lastfluss!AL173,1) -> 257 | J157: =ROUND([1]Lastfluss!BD173,1) -> 1,732 | K157: =ROUND([1]Lastfluss!BV173,1) -> 3,608 | L157: =ROUND([1]Lastfluss!AU173,1) -> 2,008 | M157: =ROUND([1]Lastfluss!BM173,1) -> 2,147 | N157: =ROUND([1]Lastfluss!CA173,1) -> 109
A158: =[1]Lastfluss!A174 -> 2021-01-02T13:00:00 | B158: =ROUND([1]Lastfluss!CJ174,1) -> -14 | C158: =ROUND([1]Lastfluss!AW174,1) -> 2,179 | D158: =ROUND([1]Lastfluss!BO174,1) -> 3,791 | E158: =ROUND([1]Lastfluss!CD174,1) -> 3,505 | F158: =ROUND([1]Lastfluss!CH174,1) -> 3,143 | G158: =ROUND([1]Lastfluss!B174,1) -> 243 | H158: =ROUND([1]Lastfluss!CI174,1) -> 3,157 | I158: =ROUND([1]Lastfluss!AL174,1) -> 205 | J158: =ROUND([1]Lastfluss!BD174,1) -> 1,663 | K158: =ROUND([1]Lastfluss!BV174,1) -> 3,561 | L158: =ROUND([1]Lastfluss!AU174,1) -> 2,003 | M158: =ROUND([1]Lastfluss!BM174,1) -> 2,183 | N158: =ROUND([1]Lastfluss!CA174,1) -> 102
A159: =[1]Lastfluss!A175 -> 2021-01-02T13:15:00 | B159: =ROUND([1]Lastfluss!CJ175,1) -> -17 | C159: =ROUND([1]Lastfluss!AW175,1) -> 2,541 | D159: =ROUND([1]Lastfluss!BO175,1) -> 3,639 | E159: =ROUND([1]Lastfluss!CD175,1) -> 3,375 | F159: =ROUND([1]Lastfluss!CH175,1) -> 3,021 | G159: =ROUND([1]Lastfluss!B175,1) -> 240 | H159: =ROUND([1]Lastfluss!CI175,1) -> 3,037 | I159: =ROUND([1]Lastfluss!AL175,1) -> 560 | J159: =ROUND([1]Lastfluss!BD175,1) -> 2,038 | K159: =ROUND([1]Lastfluss!BV175,1) -> 3,420 | L159: =ROUND([1]Lastfluss!AU175,1) -> 2,018 | M159: =ROUND([1]Lastfluss!BM175,1) -> 1,655 | N159: =ROUND([1]Lastfluss!CA175,1) -> 105
A160: =[1]Lastfluss!A176 -> 2021-01-02T13:30:00 | B160: =ROUND([1]Lastfluss!CJ176,1) -> -19 | C160: =ROUND([1]Lastfluss!AW176,1) -> 2,340 | D160: =ROUND([1]Lastfluss!BO176,1) -> 3,618 | E160: =ROUND([1]Lastfluss!CD176,1) -> 3,355 | F160: =ROUND([1]Lastfluss!CH176,1) -> 3,006 | G160: =ROUND([1]Lastfluss!B176,1) -> 234 | H160: =ROUND([1]Lastfluss!CI176,1) -> 3,025 | I160: =ROUND([1]Lastfluss!AL176,1) -> 353 | J160: =ROUND([1]Lastfluss!BD176,1) -> 1,900 | K160: =ROUND([1]Lastfluss!BV176,1) -> 3,399 | L160: =ROUND([1]Lastfluss!AU176,1) -> 2,019 | M160: =ROUND([1]Lastfluss!BM176,1) -> 1,772 | N160: =ROUND([1]Lastfluss!CA176,1) -> 105
A161: =[1]Lastfluss!A177 -> 2021-01-02T13:45:00 | B161: =ROUND([1]Lastfluss!CJ177,1) -> -18 | C161: =ROUND([1]Lastfluss!AW177,1) -> 2,743 | D161: =ROUND([1]Lastfluss!BO177,1) -> 3,548 | E161: =ROUND([1]Lastfluss!CD177,1) -> 3,286 | F161: =ROUND([1]Lastfluss!CH177,1) -> 2,933 | G161: =ROUND([1]Lastfluss!B177,1) -> 238 | H161: =ROUND([1]Lastfluss!CI177,1) -> 2,951 | I161: =ROUND([1]Lastfluss!AL177,1) -> 769 | J161: =ROUND([1]Lastfluss!BD177,1) -> 2,313 | K161: =ROUND([1]Lastfluss!BV177,1) -> 3,329 | L161: =ROUND([1]Lastfluss!AU177,1) -> 2,015 | M161: =ROUND([1]Lastfluss!BM177,1) -> 1,288 | N161: =ROUND([1]Lastfluss!CA177,1) -> 101
A162: =[1]Lastfluss!A178 -> 2021-01-02T14:00:00 | B162: =ROUND([1]Lastfluss!CJ178,1) -> -21 | C162: =ROUND([1]Lastfluss!AW178,1) -> 2,523 | D162: =ROUND([1]Lastfluss!BO178,1) -> 3,507 | E162: =ROUND([1]Lastfluss!CD178,1) -> 3,244 | F162: =ROUND([1]Lastfluss!CH178,1) -> 2,899 | G162: =ROUND([1]Lastfluss!B178,1) -> 230 | H162: =ROUND([1]Lastfluss!CI178,1) -> 2,920 | I162: =ROUND([1]Lastfluss!AL178,1) -> 557 | J162: =ROUND([1]Lastfluss!BD178,1) -> 2,074 | K162: =ROUND([1]Lastfluss!BV178,1) -> 3,287 | L162: =ROUND([1]Lastfluss!AU178,1) -> 2,003 | M162: =ROUND([1]Lastfluss!BM178,1) -> 1,486 | N162: =ROUND([1]Lastfluss!CA178,1) -> 98
A163: =[1]Lastfluss!A179 -> 2021-01-02T14:15:00 | B163: =ROUND([1]Lastfluss!CJ179,1) -> -20 | C163: =ROUND([1]Lastfluss!AW179,1) -> 3,704 | D163: =ROUND([1]Lastfluss!BO179,1) -> 3,344 | E163: =ROUND([1]Lastfluss!CD179,1) -> 3,102 | F163: =ROUND([1]Lastfluss!CH179,1) -> 2,755 | G163: =ROUND([1]Lastfluss!B179,1) -> 251 | H163: =ROUND([1]Lastfluss!CI179,1) -> 2,774 | I163: =ROUND([1]Lastfluss!AL179,1) -> 1,772 | J163: =ROUND([1]Lastfluss!BD179,1) -> 3,248 | K163: =ROUND([1]Lastfluss!BV179,1) -> 3,137 | L163: =ROUND([1]Lastfluss!AU179,1) -> 2,000 | M163: =ROUND([1]Lastfluss!BM179,1) -> 147 | N163: =ROUND([1]Lastfluss!CA179,1) -> 97
A164: =[1]Lastfluss!A180 -> 2021-01-02T14:30:00 | B164: =ROUND([1]Lastfluss!CJ180,1) -> -18 | C164: =ROUND([1]Lastfluss!AW180,1) -> 2,561 | D164: =ROUND([1]Lastfluss!BO180,1) -> 3,448 | E164: =ROUND([1]Lastfluss!CD180,1) -> 3,186 | F164: =ROUND([1]Lastfluss!CH180,1) -> 2,827 | G164: =ROUND([1]Lastfluss!B180,1) -> 226 | H164: =ROUND([1]Lastfluss!CI180,1) -> 2,846 | I164: =ROUND([1]Lastfluss!AL180,1) -> 606 | J164: =ROUND([1]Lastfluss!BD180,1) -> 2,164 | K164: =ROUND([1]Lastfluss!BV180,1) -> 3,236 | L164: =ROUND([1]Lastfluss!AU180,1) -> 1,993 | M164: =ROUND([1]Lastfluss!BM180,1) -> 1,336 | N164: =ROUND([1]Lastfluss!CA180,1) -> 87
A165: =[1]Lastfluss!A181 -> 2021-01-02T14:45:00 | B165: =ROUND([1]Lastfluss!CJ181,1) -> -19 | C165: =ROUND([1]Lastfluss!AW181,1) -> 2,250 | D165: =ROUND([1]Lastfluss!BO181,1) -> 3,488 | E165: =ROUND([1]Lastfluss!CD181,1) -> 3,223 | F165: =ROUND([1]Lastfluss!CH181,1) -> 2,844 | G165: =ROUND([1]Lastfluss!B181,1) -> 222 | H165: =ROUND([1]Lastfluss!CI181,1) -> 2,862 | I165: =ROUND([1]Lastfluss!AL181,1) -> 308 | J165: =ROUND([1]Lastfluss!BD181,1) -> 1,796 | K165: =ROUND([1]Lastfluss!BV181,1) -> 3,274 | L165: =ROUND([1]Lastfluss!AU181,1) -> 1,973 | M165: =ROUND([1]Lastfluss!BM181,1) -> 1,744 | N165: =ROUND([1]Lastfluss!CA181,1) -> 88
A166: =[1]Lastfluss!A182 -> 2021-01-02T15:00:00 | B166: =ROUND([1]Lastfluss!CJ182,1) -> -18 | C166: =ROUND([1]Lastfluss!AW182,1) -> 2,456 | D166: =ROUND([1]Lastfluss!BO182,1) -> 3,459 | E166: =ROUND([1]Lastfluss!CD182,1) -> 3,194 | F166: =ROUND([1]Lastfluss!CH182,1) -> 2,827 | G166: =ROUND([1]Lastfluss!B182,1) -> 224 | H166: =ROUND([1]Lastfluss!CI182,1) -> 2,845 | I166: =ROUND([1]Lastfluss!AL182,1) -> 491 | J166: =ROUND([1]Lastfluss!BD182,1) -> 2,011 | K166: =ROUND([1]Lastfluss!BV182,1) -> 3,247 | L166: =ROUND([1]Lastfluss!AU182,1) -> 2,000 | M166: =ROUND([1]Lastfluss!BM182,1) -> 1,500 | N166: =ROUND([1]Lastfluss!CA182,1) -> 84
A167: =[1]Lastfluss!A183 -> 2021-01-02T15:15:00 | B167: =ROUND([1]Lastfluss!CJ183,1) -> -17 | C167: =ROUND([1]Lastfluss!AW183,1) -> 2,104 | D167: =ROUND([1]Lastfluss!BO183,1) -> 3,471 | E167: =ROUND([1]Lastfluss!CD183,1) -> 3,196 | F167: =ROUND([1]Lastfluss!CH183,1) -> 2,832 | G167: =ROUND([1]Lastfluss!B183,1) -> 218 | H167: =ROUND([1]Lastfluss!CI183,1) -> 2,849 | I167: =ROUND([1]Lastfluss!AL183,1) -> 120 | J167: =ROUND([1]Lastfluss!BD183,1) -> 1,641 | K167: =ROUND([1]Lastfluss!BV183,1) -> 3,254 | L167: =ROUND([1]Lastfluss!AU183,1) -> 2,012 | M167: =ROUND([1]Lastfluss!BM183,1) -> 1,883 | N167: =ROUND([1]Lastfluss!CA183,1) -> 80
A168: =[1]Lastfluss!A184 -> 2021-01-02T15:30:00 | B168: =ROUND([1]Lastfluss!CJ184,1) -> -15 | C168: =ROUND([1]Lastfluss!AW184,1) -> 2,630 | D168: =ROUND([1]Lastfluss!BO184,1) -> 3,548 | E168: =ROUND([1]Lastfluss!CD184,1) -> 3,267 | F168: =ROUND([1]Lastfluss!CH184,1) -> 2,903 | G168: =ROUND([1]Lastfluss!B184,1) -> 234 | H168: =ROUND([1]Lastfluss!CI184,1) -> 2,918 | I168: =ROUND([1]Lastfluss!AL184,1) -> 654 | J168: =ROUND([1]Lastfluss!BD184,1) -> 2,193 | K168: =ROUND([1]Lastfluss!BV184,1) -> 3,335 | L168: =ROUND([1]Lastfluss!AU184,1) -> 2,015 | M168: =ROUND([1]Lastfluss!BM184,1) -> 1,408 | N168: =ROUND([1]Lastfluss!CA184,1) -> 74
A169: =[1]Lastfluss!A185 -> 2021-01-02T15:45:00 | B169: =ROUND([1]Lastfluss!CJ185,1) -> -15 | C169: =ROUND([1]Lastfluss!AW185,1) -> 2,601 | D169: =ROUND([1]Lastfluss!BO185,1) -> 3,489 | E169: =ROUND([1]Lastfluss!CD185,1) -> 3,226 | F169: =ROUND([1]Lastfluss!CH185,1) -> 2,877 | G169: =ROUND([1]Lastfluss!B185,1) -> 230 | H169: =ROUND([1]Lastfluss!CI185,1) -> 2,893 | I169: =ROUND([1]Lastfluss!AL185,1) -> 644 | J169: =ROUND([1]Lastfluss!BD185,1) -> 2,150 | K169: =ROUND([1]Lastfluss!BV185,1) -> 3,295 | L169: =ROUND([1]Lastfluss!AU185,1) -> 1,995 | M169: =ROUND([1]Lastfluss!BM185,1) -> 1,391 | N169: =ROUND([1]Lastfluss!CA185,1) -> 70
A170: =[1]Lastfluss!A186 -> 2021-01-02T16:00:00 | B170: =ROUND([1]Lastfluss!CJ186,1) -> -16 | C170: =ROUND([1]Lastfluss!AW186,1) -> 3,472 | D170: =ROUND([1]Lastfluss!BO186,1) -> 3,404 | E170: =ROUND([1]Lastfluss!CD186,1) -> 3,132 | F170: =ROUND([1]Lastfluss!CH186,1) -> 2,786 | G170: =ROUND([1]Lastfluss!B186,1) -> 246 | H170: =ROUND([1]Lastfluss!CI186,1) -> 2,802 | I170: =ROUND([1]Lastfluss!AL186,1) -> 1,542 | J170: =ROUND([1]Lastfluss!BD186,1) -> 3,002 | K170: =ROUND([1]Lastfluss!BV186,1) -> 3,198 | L170: =ROUND([1]Lastfluss!AU186,1) -> 1,992 | M170: =ROUND([1]Lastfluss!BM186,1) -> 452 | N170: =ROUND([1]Lastfluss!CA186,1) -> 67
A171: =[1]Lastfluss!A187 -> 2021-01-02T16:15:00 | B171: =ROUND([1]Lastfluss!CJ187,1) -> -16 | C171: =ROUND([1]Lastfluss!AW187,1) -> 3,624 | D171: =ROUND([1]Lastfluss!BO187,1) -> 3,490 | E171: =ROUND([1]Lastfluss!CD187,1) -> 3,211 | F171: =ROUND([1]Lastfluss!CH187,1) -> 2,853 | G171: =ROUND([1]Lastfluss!B187,1) -> 257 | H171: =ROUND([1]Lastfluss!CI187,1) -> 2,869 | I171: =ROUND([1]Lastfluss!AL187,1) -> 1,691 | J171: =ROUND([1]Lastfluss!BD187,1) -> 3,156 | K171: =ROUND([1]Lastfluss!BV187,1) -> 3,283 | L171: =ROUND([1]Lastfluss!AU187,1) -> 1,999 | M171: =ROUND([1]Lastfluss!BM187,1) -> 386 | N171: =ROUND([1]Lastfluss!CA187,1) -> 66
A172: =[1]Lastfluss!A188 -> 2021-01-02T16:30:00 | B172: =ROUND([1]Lastfluss!CJ188,1) -> -15 | C172: =ROUND([1]Lastfluss!AW188,1) -> 3,667 | D172: =ROUND([1]Lastfluss!BO188,1) -> 3,555 | E172: =ROUND([1]Lastfluss!CD188,1) -> 3,267 | F172: =ROUND([1]Lastfluss!CH188,1) -> 2,923 | G172: =ROUND([1]Lastfluss!B188,1) -> 263 | H172: =ROUND([1]Lastfluss!CI188,1) -> 2,938 | I172: =ROUND([1]Lastfluss!AL188,1) -> 1,724 | J172: =ROUND([1]Lastfluss!BD188,1) -> 3,222 | K172: =ROUND([1]Lastfluss!BV188,1) -> 3,343 | L172: =ROUND([1]Lastfluss!AU188,1) -> 2,010 | M172: =ROUND([1]Lastfluss!BM188,1) -> 386 | N172: =ROUND([1]Lastfluss!CA188,1) -> 67
A173: =[1]Lastfluss!A189 -> 2021-01-02T16:45:00 | B173: =ROUND([1]Lastfluss!CJ189,1) -> -14 | C173: =ROUND([1]Lastfluss!AW189,1) -> 3,697 | D173: =ROUND([1]Lastfluss!BO189,1) -> 3,555 | E173: =ROUND([1]Lastfluss!CD189,1) -> 3,270 | F173: =ROUND([1]Lastfluss!CH189,1) -> 2,942 | G173: =ROUND([1]Lastfluss!B189,1) -> 264 | H173: =ROUND([1]Lastfluss!CI189,1) -> 2,956 | I173: =ROUND([1]Lastfluss!AL189,1) -> 1,758 | J173: =ROUND([1]Lastfluss!BD189,1) -> 3,220 | K173: =ROUND([1]Lastfluss!BV189,1) -> 3,346 | L173: =ROUND([1]Lastfluss!AU189,1) -> 2,008 | M173: =ROUND([1]Lastfluss!BM189,1) -> 387 | N173: =ROUND([1]Lastfluss!CA189,1) -> 67
A174: =[1]Lastfluss!A190 -> 2021-01-02T17:00:00 | B174: =ROUND([1]Lastfluss!CJ190,1) -> -13 | C174: =ROUND([1]Lastfluss!AW190,1) -> 2,420 | D174: =ROUND([1]Lastfluss!BO190,1) -> 3,767 | E174: =ROUND([1]Lastfluss!CD190,1) -> 3,447 | F174: =ROUND([1]Lastfluss!CH190,1) -> 3,109 | G174: =ROUND([1]Lastfluss!B190,1) -> 244 | H174: =ROUND([1]Lastfluss!CI190,1) -> 3,122 | I174: =ROUND([1]Lastfluss!AL190,1) -> 460 | J174: =ROUND([1]Lastfluss!BD190,1) -> 1,929 | K174: =ROUND([1]Lastfluss!BV190,1) -> 3,535 | L174: =ROUND([1]Lastfluss!AU190,1) -> 1,995 | M174: =ROUND([1]Lastfluss!BM190,1) -> 1,893 | N174: =ROUND([1]Lastfluss!CA190,1) -> 67
A175: =[1]Lastfluss!A191 -> 2021-01-02T17:15:00 | B175: =ROUND([1]Lastfluss!CJ191,1) -> -12 | C175: =ROUND([1]Lastfluss!AW191,1) -> 2,212 | D175: =ROUND([1]Lastfluss!BO191,1) -> 3,800 | E175: =ROUND([1]Lastfluss!CD191,1) -> 3,476 | F175: =ROUND([1]Lastfluss!CH191,1) -> 3,137 | G175: =ROUND([1]Lastfluss!B191,1) -> 242 | H175: =ROUND([1]Lastfluss!CI191,1) -> 3,149 | I175: =ROUND([1]Lastfluss!AL191,1) -> 246 | J175: =ROUND([1]Lastfluss!BD191,1) -> 1,675 | K175: =ROUND([1]Lastfluss!BV191,1) -> 3,566 | L175: =ROUND([1]Lastfluss!AU191,1) -> 1,996 | M175: =ROUND([1]Lastfluss!BM191,1) -> 2,180 | N175: =ROUND([1]Lastfluss!CA191,1) -> 67
A176: =[1]Lastfluss!A192 -> 2021-01-02T17:30:00 | B176: =ROUND([1]Lastfluss!CJ192,1) -> -9 | C176: =ROUND([1]Lastfluss!AW192,1) -> 2,432 | D176: =ROUND([1]Lastfluss!BO192,1) -> 3,938 | E176: =ROUND([1]Lastfluss!CD192,1) -> 3,603 | F176: =ROUND([1]Lastfluss!CH192,1) -> 3,262 | G176: =ROUND([1]Lastfluss!B192,1) -> 257 | H176: =ROUND([1]Lastfluss!CI192,1) -> 3,272 | I176: =ROUND([1]Lastfluss!AL192,1) -> 470 | J176: =ROUND([1]Lastfluss!BD192,1) -> 1,954 | K176: =ROUND([1]Lastfluss!BV192,1) -> 3,702 | L176: =ROUND([1]Lastfluss!AU192,1) -> 1,996 | M176: =ROUND([1]Lastfluss!BM192,1) -> 2,041 | N176: =ROUND([1]Lastfluss!CA192,1) -> 67
A177: =[1]Lastfluss!A193 -> 2021-01-02T17:45:00 | B177: =ROUND([1]Lastfluss!CJ193,1) -> -19 | C177: =ROUND([1]Lastfluss!AW193,1) -> 1,094 | D177: =ROUND([1]Lastfluss!BO193,1) -> 4,092 | E177: =ROUND([1]Lastfluss!CD193,1) -> 3,764 | F177: =ROUND([1]Lastfluss!CH193,1) -> 3,400 | G177: =ROUND([1]Lastfluss!B193,1) -> 280 | H177: =ROUND([1]Lastfluss!CI193,1) -> 3,418 | I177: =ROUND([1]Lastfluss!AL193,1) -> 0 | J177: =ROUND([1]Lastfluss!BD193,1) -> 615 | K177: =ROUND([1]Lastfluss!BV193,1) -> 3,876 | L177: =ROUND([1]Lastfluss!AU193,1) -> 1,994 | M177: =ROUND([1]Lastfluss!BM193,1) -> 3,535 | N177: =ROUND([1]Lastfluss!CA193,1) -> 67
A178: =[1]Lastfluss!A194 -> 2021-01-02T18:00:00 | B178: =ROUND([1]Lastfluss!CJ194,1) -> -23 | C178: =ROUND([1]Lastfluss!AW194,1) -> 948 | D178: =ROUND([1]Lastfluss!BO194,1) -> 4,050 | E178: =ROUND([1]Lastfluss!CD194,1) -> 3,733 | F178: =ROUND([1]Lastfluss!CH194,1) -> 3,357 | G178: =ROUND([1]Lastfluss!B194,1) -> 281 | H178: =ROUND([1]Lastfluss!CI194,1) -> 3,379 | I178: =ROUND([1]Lastfluss!AL194,1) -> 0 | J178: =ROUND([1]Lastfluss!BD194,1) -> 418 | K178: =ROUND([1]Lastfluss!BV194,1) -> 3,842 | L178: =ROUND([1]Lastfluss!AU194,1) -> 2,004 | M178: =ROUND([1]Lastfluss!BM194,1) -> 3,691 | N178: =ROUND([1]Lastfluss!CA194,1) -> 67
A179: =[1]Lastfluss!A195 -> 2021-01-02T18:15:00 | B179: =ROUND([1]Lastfluss!CJ195,1) -> -25 | C179: =ROUND([1]Lastfluss!AW195,1) -> 922 | D179: =ROUND([1]Lastfluss!BO195,1) -> 4,058 | E179: =ROUND([1]Lastfluss!CD195,1) -> 3,725 | F179: =ROUND([1]Lastfluss!CH195,1) -> 3,353 | G179: =ROUND([1]Lastfluss!B195,1) -> 281 | H179: =ROUND([1]Lastfluss!CI195,1) -> 3,377 | I179: =ROUND([1]Lastfluss!AL195,1) -> 0 | J179: =ROUND([1]Lastfluss!BD195,1) -> 424 | K179: =ROUND([1]Lastfluss!BV195,1) -> 3,833 | L179: =ROUND([1]Lastfluss!AU195,1) -> 2,013 | M179: =ROUND([1]Lastfluss!BM195,1) -> 3,692 | N179: =ROUND([1]Lastfluss!CA195,1) -> 67
A180: =[1]Lastfluss!A196 -> 2021-01-02T18:30:00 | B180: =ROUND([1]Lastfluss!CJ196,1) -> -25 | C180: =ROUND([1]Lastfluss!AW196,1) -> 895 | D180: =ROUND([1]Lastfluss!BO196,1) -> 4,026 | E180: =ROUND([1]Lastfluss!CD196,1) -> 3,699 | F180: =ROUND([1]Lastfluss!CH196,1) -> 3,326 | G180: =ROUND([1]Lastfluss!B196,1) -> 280 | H180: =ROUND([1]Lastfluss!CI196,1) -> 3,352 | I180: =ROUND([1]Lastfluss!AL196,1) -> 0 | J180: =ROUND([1]Lastfluss!BD196,1) -> 392 | K180: =ROUND([1]Lastfluss!BV196,1) -> 3,806 | L180: =ROUND([1]Lastfluss!AU196,1) -> 2,014 | M180: =ROUND([1]Lastfluss!BM196,1) -> 3,692 | N180: =ROUND([1]Lastfluss!CA196,1) -> 67
A181: =[1]Lastfluss!A197 -> 2021-01-02T18:45:00 | B181: =ROUND([1]Lastfluss!CJ197,1) -> -16 | C181: =ROUND([1]Lastfluss!AW197,1) -> 1,373 | D181: =ROUND([1]Lastfluss!BO197,1) -> 4,013 | E181: =ROUND([1]Lastfluss!CD197,1) -> 3,680 | F181: =ROUND([1]Lastfluss!CH197,1) -> 3,322 | G181: =ROUND([1]Lastfluss!B197,1) -> 267 | H181: =ROUND([1]Lastfluss!CI197,1) -> 3,338 | I181: =ROUND([1]Lastfluss!AL197,1) -> 0 | J181: =ROUND([1]Lastfluss!BD197,1) -> 866 | K181: =ROUND([1]Lastfluss!BV197,1) -> 3,786 | L181: =ROUND([1]Lastfluss!AU197,1) -> 2,008 | M181: =ROUND([1]Lastfluss!BM197,1) -> 3,204 | N181: =ROUND([1]Lastfluss!CA197,1) -> 67
A182: =[1]Lastfluss!A198 -> 2021-01-02T19:00:00 | B182: =ROUND([1]Lastfluss!CJ198,1) -> -13 | C182: =ROUND([1]Lastfluss!AW198,1) -> 1,769 | D182: =ROUND([1]Lastfluss!BO198,1) -> 3,878 | E182: =ROUND([1]Lastfluss!CD198,1) -> 3,566 | F182: =ROUND([1]Lastfluss!CH198,1) -> 3,211 | G182: =ROUND([1]Lastfluss!B198,1) -> 248 | H182: =ROUND([1]Lastfluss!CI198,1) -> 3,224 | I182: =ROUND([1]Lastfluss!AL198,1) -> 0 | J182: =ROUND([1]Lastfluss!BD198,1) -> 1,274 | K182: =ROUND([1]Lastfluss!BV198,1) -> 3,662 | L182: =ROUND([1]Lastfluss!AU198,1) -> 1,997 | M182: =ROUND([1]Lastfluss!BM198,1) -> 2,660 | N182: =ROUND([1]Lastfluss!CA198,1) -> 67
A183: =[1]Lastfluss!A199 -> 2021-01-02T19:15:00 | B183: =ROUND([1]Lastfluss!CJ199,1) -> -33 | C183: =ROUND([1]Lastfluss!AW199,1) -> 793 | D183: =ROUND([1]Lastfluss!BO199,1) -> 3,880 | E183: =ROUND([1]Lastfluss!CD199,1) -> 3,554 | F183: =ROUND([1]Lastfluss!CH199,1) -> 3,206 | G183: =ROUND([1]Lastfluss!B199,1) -> 269 | H183: =ROUND([1]Lastfluss!CI199,1) -> 3,239 | I183: =ROUND([1]Lastfluss!AL199,1) -> 0 | J183: =ROUND([1]Lastfluss!BD199,1) -> 282 | K183: =ROUND([1]Lastfluss!BV199,1) -> 3,651 | L183: =ROUND([1]Lastfluss!AU199,1) -> 1,998 | M183: =ROUND([1]Lastfluss!BM199,1) -> 3,654 | N183: =ROUND([1]Lastfluss!CA199,1) -> 66
A184: =[1]Lastfluss!A200 -> 2021-01-02T19:30:00 | B184: =ROUND([1]Lastfluss!CJ200,1) -> -19 | C184: =ROUND([1]Lastfluss!AW200,1) -> 1,586 | D184: =ROUND([1]Lastfluss!BO200,1) -> 3,757 | E184: =ROUND([1]Lastfluss!CD200,1) -> 3,446 | F184: =ROUND([1]Lastfluss!CH200,1) -> 3,108 | G184: =ROUND([1]Lastfluss!B200,1) -> 242 | H184: =ROUND([1]Lastfluss!CI200,1) -> 3,127 | I184: =ROUND([1]Lastfluss!AL200,1) -> 0 | J184: =ROUND([1]Lastfluss!BD200,1) -> 1,103 | K184: =ROUND([1]Lastfluss!BV200,1) -> 3,534 | L184: =ROUND([1]Lastfluss!AU200,1) -> 1,999 | M184: =ROUND([1]Lastfluss!BM200,1) -> 2,709 | N184: =ROUND([1]Lastfluss!CA200,1) -> 66
A185: =[1]Lastfluss!A201 -> 2021-01-02T19:45:00 | B185: =ROUND([1]Lastfluss!CJ201,1) -> -24 | C185: =ROUND([1]Lastfluss!AW201,1) -> 1,304 | D185: =ROUND([1]Lastfluss!BO201,1) -> 3,761 | E185: =ROUND([1]Lastfluss!CD201,1) -> 3,449 | F185: =ROUND([1]Lastfluss!CH201,1) -> 3,103 | G185: =ROUND([1]Lastfluss!B201,1) -> 248 | H185: =ROUND([1]Lastfluss!CI201,1) -> 3,127 | I185: =ROUND([1]Lastfluss!AL201,1) -> 0 | J185: =ROUND([1]Lastfluss!BD201,1) -> 829 | K185: =ROUND([1]Lastfluss!BV201,1) -> 3,538 | L185: =ROUND([1]Lastfluss!AU201,1) -> 1,996 | M185: =ROUND([1]Lastfluss!BM201,1) -> 2,986 | N185: =ROUND([1]Lastfluss!CA201,1) -> 66
A186: =[1]Lastfluss!A202 -> 2021-01-02T20:00:00 | B186: =ROUND([1]Lastfluss!CJ202,1) -> -14 | C186: =ROUND([1]Lastfluss!AW202,1) -> 2,541 | D186: =ROUND([1]Lastfluss!BO202,1) -> 3,615 | E186: =ROUND([1]Lastfluss!CD202,1) -> 3,313 | F186: =ROUND([1]Lastfluss!CH202,1) -> 2,974 | G186: =ROUND([1]Lastfluss!B202,1) -> 236 | H186: =ROUND([1]Lastfluss!CI202,1) -> 2,987 | I186: =ROUND([1]Lastfluss!AL202,1) -> 560 | J186: =ROUND([1]Lastfluss!BD202,1) -> 2,026 | K186: =ROUND([1]Lastfluss!BV202,1) -> 3,392 | L186: =ROUND([1]Lastfluss!AU202,1) -> 2,017 | M186: =ROUND([1]Lastfluss!BM202,1) -> 1,642 | N186: =ROUND([1]Lastfluss!CA202,1) -> 66
A187: =[1]Lastfluss!A203 -> 2021-01-02T20:15:00 | B187: =ROUND([1]Lastfluss!CJ203,1) -> -16 | C187: =ROUND([1]Lastfluss!AW203,1) -> 2,545 | D187: =ROUND([1]Lastfluss!BO203,1) -> 3,513 | E187: =ROUND([1]Lastfluss!CD203,1) -> 3,234 | F187: =ROUND([1]Lastfluss!CH203,1) -> 2,929 | G187: =ROUND([1]Lastfluss!B203,1) -> 229 | H187: =ROUND([1]Lastfluss!CI203,1) -> 2,946 | I187: =ROUND([1]Lastfluss!AL203,1) -> 570 | J187: =ROUND([1]Lastfluss!BD203,1) -> 2,069 | K187: =ROUND([1]Lastfluss!BV203,1) -> 3,308 | L187: =ROUND([1]Lastfluss!AU203,1) -> 2,012 | M187: =ROUND([1]Lastfluss!BM203,1) -> 1,496 | N187: =ROUND([1]Lastfluss!CA203,1) -> 67
A188: =[1]Lastfluss!A204 -> 2021-01-02T20:30:00 | B188: =ROUND([1]Lastfluss!CJ204,1) -> -18 | C188: =ROUND([1]Lastfluss!AW204,1) -> 2,385 | D188: =ROUND([1]Lastfluss!BO204,1) -> 3,376 | E188: =ROUND([1]Lastfluss!CD204,1) -> 3,103 | F188: =ROUND([1]Lastfluss!CH204,1) -> 2,821 | G188: =ROUND([1]Lastfluss!B204,1) -> 216 | H188: =ROUND([1]Lastfluss!CI204,1) -> 2,839 | I188: =ROUND([1]Lastfluss!AL204,1) -> 397 | J188: =ROUND([1]Lastfluss!BD204,1) -> 1,931 | K188: =ROUND([1]Lastfluss!BV204,1) -> 3,169 | L188: =ROUND([1]Lastfluss!AU204,1) -> 2,021 | M188: =ROUND([1]Lastfluss!BM204,1) -> 1,496 | N188: =ROUND([1]Lastfluss!CA204,1) -> 67
A189: =[1]Lastfluss!A205 -> 2021-01-02T20:45:00 | B189: =ROUND([1]Lastfluss!CJ205,1) -> -19 | C189: =ROUND([1]Lastfluss!AW205,1) -> 2,271 | D189: =ROUND([1]Lastfluss!BO205,1) -> 3,244 | E189: =ROUND([1]Lastfluss!CD205,1) -> 3,010 | F189: =ROUND([1]Lastfluss!CH205,1) -> 2,728 | G189: =ROUND([1]Lastfluss!B205,1) -> 207 | H189: =ROUND([1]Lastfluss!CI205,1) -> 2,747 | I189: =ROUND([1]Lastfluss!AL205,1) -> 284 | J189: =ROUND([1]Lastfluss!BD205,1) -> 1,797 | K189: =ROUND([1]Lastfluss!BV205,1) -> 3,070 | L189: =ROUND([1]Lastfluss!AU205,1) -> 2,018 | M189: =ROUND([1]Lastfluss!BM205,1) -> 1,496 | N189: =ROUND([1]Lastfluss!CA205,1) -> 66
A190: =[1]Lastfluss!A206 -> 2021-01-02T21:00:00 | B190: =ROUND([1]Lastfluss!CJ206,1) -> -19 | C190: =ROUND([1]Lastfluss!AW206,1) -> 2,576 | D190: =ROUND([1]Lastfluss!BO206,1) -> 3,161 | E190: =ROUND([1]Lastfluss!CD206,1) -> 2,932 | F190: =ROUND([1]Lastfluss!CH206,1) -> 2,652 | G190: =ROUND([1]Lastfluss!B206,1) -> 208 | H190: =ROUND([1]Lastfluss!CI206,1) -> 2,671 | I190: =ROUND([1]Lastfluss!AL206,1) -> 602 | J190: =ROUND([1]Lastfluss!BD206,1) -> 2,100 | K190: =ROUND([1]Lastfluss!BV206,1) -> 2,987 | L190: =ROUND([1]Lastfluss!AU206,1) -> 2,011 | M190: =ROUND([1]Lastfluss!BM206,1) -> 1,109 | N190: =ROUND([1]Lastfluss!CA206,1) -> 67
A191: =[1]Lastfluss!A207 -> 2021-01-02T21:15:00 | B191: =ROUND([1]Lastfluss!CJ207,1) -> -21 | C191: =ROUND([1]Lastfluss!AW207,1) -> 2,024 | D191: =ROUND([1]Lastfluss!BO207,1) -> 3,035 | E191: =ROUND([1]Lastfluss!CD207,1) -> 2,810 | F191: =ROUND([1]Lastfluss!CH207,1) -> 2,560 | G191: =ROUND([1]Lastfluss!B207,1) -> 189 | H191: =ROUND([1]Lastfluss!CI207,1) -> 2,581 | I191: =ROUND([1]Lastfluss!AL207,1) -> 40 | J191: =ROUND([1]Lastfluss!BD207,1) -> 1,596 | K191: =ROUND([1]Lastfluss!BV207,1) -> 2,858 | L191: =ROUND([1]Lastfluss!AU207,1) -> 2,011 | M191: =ROUND([1]Lastfluss!BM207,1) -> 1,486 | N191: =ROUND([1]Lastfluss!CA207,1) -> 66
A192: =[1]Lastfluss!A208 -> 2021-01-02T21:30:00 | B192: =ROUND([1]Lastfluss!CJ208,1) -> -26 | C192: =ROUND([1]Lastfluss!AW208,1) -> 1,873 | D192: =ROUND([1]Lastfluss!BO208,1) -> 2,924 | E192: =ROUND([1]Lastfluss!CD208,1) -> 2,710 | F192: =ROUND([1]Lastfluss!CH208,1) -> 2,507 | G192: =ROUND([1]Lastfluss!B208,1) -> 184 | H192: =ROUND([1]Lastfluss!CI208,1) -> 2,533 | I192: =ROUND([1]Lastfluss!AL208,1) -> 0 | J192: =ROUND([1]Lastfluss!BD208,1) -> 1,474 | K192: =ROUND([1]Lastfluss!BV208,1) -> 2,752 | L192: =ROUND([1]Lastfluss!AU208,1) -> 2,013 | M192: =ROUND([1]Lastfluss!BM208,1) -> 1,497 | N192: =ROUND([1]Lastfluss!CA208,1) -> 67
A193: =[1]Lastfluss!A209 -> 2021-01-02T21:45:00 | B193: =ROUND([1]Lastfluss!CJ209,1) -> -26 | C193: =ROUND([1]Lastfluss!AW209,1) -> 1,880 | D193: =ROUND([1]Lastfluss!BO209,1) -> 2,899 | E193: =ROUND([1]Lastfluss!CD209,1) -> 2,680 | F193: =ROUND([1]Lastfluss!CH209,1) -> 2,462 | G193: =ROUND([1]Lastfluss!B209,1) -> 181 | H193: =ROUND([1]Lastfluss!CI209,1) -> 2,488 | I193: =ROUND([1]Lastfluss!AL209,1) -> 0 | J193: =ROUND([1]Lastfluss!BD209,1) -> 1,449 | K193: =ROUND([1]Lastfluss!BV209,1) -> 2,721 | L193: =ROUND([1]Lastfluss!AU209,1) -> 2,005 | M193: =ROUND([1]Lastfluss!BM209,1) -> 1,496 | N193: =ROUND([1]Lastfluss!CA209,1) -> 67
A194: =[1]Lastfluss!A210 -> 2021-01-02T22:00:00 | B194: =ROUND([1]Lastfluss!CJ210,1) -> -22 | C194: =ROUND([1]Lastfluss!AW210,1) -> 2,162 | D194: =ROUND([1]Lastfluss!BO210,1) -> 2,807 | E194: =ROUND([1]Lastfluss!CD210,1) -> 2,599 | F194: =ROUND([1]Lastfluss!CH210,1) -> 2,373 | G194: =ROUND([1]Lastfluss!B210,1) -> 178 | H194: =ROUND([1]Lastfluss!CI210,1) -> 2,395 | I194: =ROUND([1]Lastfluss!AL210,1) -> 186 | J194: =ROUND([1]Lastfluss!BD210,1) -> 1,744 | K194: =ROUND([1]Lastfluss!BV210,1) -> 2,635 | L194: =ROUND([1]Lastfluss!AU210,1) -> 2,005 | M194: =ROUND([1]Lastfluss!BM210,1) -> 1,109 | N194: =ROUND([1]Lastfluss!CA210,1) -> 67
A195: =[1]Lastfluss!A211 -> 2021-01-02T22:15:00 | B195: =ROUND([1]Lastfluss!CJ211,1) -> -20 | C195: =ROUND([1]Lastfluss!AW211,1) -> 3,060 | D195: =ROUND([1]Lastfluss!BO211,1) -> 2,661 | E195: =ROUND([1]Lastfluss!CD211,1) -> 2,469 | F195: =ROUND([1]Lastfluss!CH211,1) -> 2,269 | G195: =ROUND([1]Lastfluss!B211,1) -> 191 | H195: =ROUND([1]Lastfluss!CI211,1) -> 2,289 | I195: =ROUND([1]Lastfluss!AL211,1) -> 1,104 | J195: =ROUND([1]Lastfluss!BD211,1) -> 2,629 | K195: =ROUND([1]Lastfluss!BV211,1) -> 2,499 | L195: =ROUND([1]Lastfluss!AU211,1) -> 2,006 | M195: =ROUND([1]Lastfluss!BM211,1) -> 77 | N195: =ROUND([1]Lastfluss!CA211,1) -> 67
A196: =[1]Lastfluss!A212 -> 2021-01-02T22:30:00 | B196: =ROUND([1]Lastfluss!CJ212,1) -> -20 | C196: =ROUND([1]Lastfluss!AW212,1) -> 3,038 | D196: =ROUND([1]Lastfluss!BO212,1) -> 2,620 | E196: =ROUND([1]Lastfluss!CD212,1) -> 2,444 | F196: =ROUND([1]Lastfluss!CH212,1) -> 2,245 | G196: =ROUND([1]Lastfluss!B212,1) -> 189 | H196: =ROUND([1]Lastfluss!CI212,1) -> 2,265 | I196: =ROUND([1]Lastfluss!AL212,1) -> 1,081 | J196: =ROUND([1]Lastfluss!BD212,1) -> 2,665 | K196: =ROUND([1]Lastfluss!BV212,1) -> 2,473 | L196: =ROUND([1]Lastfluss!AU212,1) -> 2,006 | M196: =ROUND([1]Lastfluss!BM212,1) -> 0 | N196: =ROUND([1]Lastfluss!CA212,1) -> 67
A197: =[1]Lastfluss!A213 -> 2021-01-02T22:45:00 | B197: =ROUND([1]Lastfluss!CJ213,1) -> -20 | C197: =ROUND([1]Lastfluss!AW213,1) -> 2,969 | D197: =ROUND([1]Lastfluss!BO213,1) -> 2,528 | E197: =ROUND([1]Lastfluss!CD213,1) -> 2,356 | F197: =ROUND([1]Lastfluss!CH213,1) -> 2,171 | G197: =ROUND([1]Lastfluss!B213,1) -> 182 | H197: =ROUND([1]Lastfluss!CI213,1) -> 2,190 | I197: =ROUND([1]Lastfluss!AL213,1) -> 996 | J197: =ROUND([1]Lastfluss!BD213,1) -> 2,572 | K197: =ROUND([1]Lastfluss!BV213,1) -> 2,380 | L197: =ROUND([1]Lastfluss!AU213,1) -> 2,020 | M197: =ROUND([1]Lastfluss!BM213,1) -> 0 | N197: =ROUND([1]Lastfluss!CA213,1) -> 67
A198: =[1]Lastfluss!A214 -> 2021-01-02T23:00:00 | B198: =ROUND([1]Lastfluss!CJ214,1) -> -20 | C198: =ROUND([1]Lastfluss!AW214,1) -> 2,866 | D198: =ROUND([1]Lastfluss!BO214,1) -> 2,423 | E198: =ROUND([1]Lastfluss!CD214,1) -> 2,259 | F198: =ROUND([1]Lastfluss!CH214,1) -> 2,081 | G198: =ROUND([1]Lastfluss!B214,1) -> 174 | H198: =ROUND([1]Lastfluss!CI214,1) -> 2,100 | I198: =ROUND([1]Lastfluss!AL214,1) -> 900 | J198: =ROUND([1]Lastfluss!BD214,1) -> 2,466 | K198: =ROUND([1]Lastfluss!BV214,1) -> 2,279 | L198: =ROUND([1]Lastfluss!AU214,1) -> 2,011 | M198: =ROUND([1]Lastfluss!BM214,1) -> 0 | N198: =ROUND([1]Lastfluss!CA214,1) -> 66
A199: =[1]Lastfluss!A215 -> 2021-01-02T23:15:00 | B199: =ROUND([1]Lastfluss!CJ215,1) -> -20 | C199: =ROUND([1]Lastfluss!AW215,1) -> 2,846 | D199: =ROUND([1]Lastfluss!BO215,1) -> 2,392 | E199: =ROUND([1]Lastfluss!CD215,1) -> 2,227 | F199: =ROUND([1]Lastfluss!CH215,1) -> 2,046 | G199: =ROUND([1]Lastfluss!B215,1) -> 172 | H199: =ROUND([1]Lastfluss!CI215,1) -> 2,066 | I199: =ROUND([1]Lastfluss!AL215,1) -> 874 | J199: =ROUND([1]Lastfluss!BD215,1) -> 2,435 | K199: =ROUND([1]Lastfluss!BV215,1) -> 2,246 | L199: =ROUND([1]Lastfluss!AU215,1) -> 2,016 | M199: =ROUND([1]Lastfluss!BM215,1) -> 0 | N199: =ROUND([1]Lastfluss!CA215,1) -> 67
A200: =[1]Lastfluss!A216 -> 2021-01-02T23:30:00 | B200: =ROUND([1]Lastfluss!CJ216,1) -> -20 | C200: =ROUND([1]Lastfluss!AW216,1) -> 2,771 | D200: =ROUND([1]Lastfluss!BO216,1) -> 2,331 | E200: =ROUND([1]Lastfluss!CD216,1) -> 2,169 | F200: =ROUND([1]Lastfluss!CH216,1) -> 1,996 | G200: =ROUND([1]Lastfluss!B216,1) -> 167 | H200: =ROUND([1]Lastfluss!CI216,1) -> 2,016 | I200: =ROUND([1]Lastfluss!AL216,1) -> 797 | J200: =ROUND([1]Lastfluss!BD216,1) -> 2,374 | K200: =ROUND([1]Lastfluss!BV216,1) -> 2,185 | L200: =ROUND([1]Lastfluss!AU216,1) -> 2,016 | M200: =ROUND([1]Lastfluss!BM216,1) -> 0 | N200: =ROUND([1]Lastfluss!CA216,1) -> 67
A201: =[1]Lastfluss!A217 -> 2021-01-02T23:45:00 | B201: =ROUND([1]Lastfluss!CJ217,1) -> -19 | C201: =ROUND([1]Lastfluss!AW217,1) -> 2,715 | D201: =ROUND([1]Lastfluss!BO217,1) -> 2,264 | E201: =ROUND([1]Lastfluss!CD217,1) -> 2,107 | F201: =ROUND([1]Lastfluss!CH217,1) -> 1,932 | G201: =ROUND([1]Lastfluss!B217,1) -> 163 | H201: =ROUND([1]Lastfluss!CI217,1) -> 1,951 | I201: =ROUND([1]Lastfluss!AL217,1) -> 754 | J201: =ROUND([1]Lastfluss!BD217,1) -> 2,306 | K201: =ROUND([1]Lastfluss!BV217,1) -> 2,120 | L201: =ROUND([1]Lastfluss!AU217,1) -> 2,002 | M201: =ROUND([1]Lastfluss!BM217,1) -> 0 | N201: =ROUND([1]Lastfluss!CA217,1) -> 66
... 4299 more rows
